date,department,beneficiary,amount,summary of purpose,category,Transaction number,SAP vendor number
16.02.2024,Collection Fund,GREATER LONDON AUTHORITY,"9,289,051.00",NNDR ACCOUNT - GLA SHARE,EXTERNAL AGENCIES AND BODIES,5902622607,1000015827
08.02.2024,Collection Fund,GREATER LONDON AUTHORITY,"4,752,146.41",GLA PRECEPT,LEVIES,5902621350,1000015827
22.02.2024,Housing,BY DEVELOPMENT LTD,"3,122,943.73",CAPITAL PS (HRA),CONSTRUCTION MAIN CONTRACT -CERTIFICATED,2103829520,3000002255
29.02.2024,Children and Adults,LONDON BOROUGH OF LAMBETH,"3,028,153.75",SEXUAL HEALTH - STI,EXTERNAL AGENCIES AND BODIES,5902624924,1000044545
22.02.2024,Housing,HILL PARTNERSHIP LTD,"3,012,161.82",CAPITAL PS (HRA),CONSTRUCTION MAIN CONTRACT -CERTIFICATED,2103828112,3000002185
19.02.2024,Suspense,HM REVENUE & CUSTOMS,"2,903,058.39",SUSPENSE ACCOUNT (COMPANY CODE 1000),INLAND REVENUE,2103813273,1016231
19.02.2024,Suspense,HM REVENUE & CUSTOMS,"2,598,244.52",SUSPENSE ACCOUNT (COMPANY CODE 1000),INLAND REVENUE,2103813272,1016231
02.02.2024,Housing,KENT COUNTY COUNCIL - LASER,"2,254,901.85",HEATING ACCOUNT,GAS,5902619642,1000012926
02.02.2024,Corporate,TRANSPORT TRADING LTD,"2,121,100.56",FREEDOM PASS,CONCESSIONARY FARES,5902620438,1000019757
14.02.2024,Children and Adults,TEACHERS' PENSIONS,"1,486,959.87",TEACHERS PENSION MONTHLY RETURN,PAYROLL CREDITORS - TEACHERS PENSIONS & AVCS,5902622331,1000015184
29.02.2024,Children and Adults,LONDON BOROUGH OF LAMBETH,"1,400,091.50",SEXUAL HEALTH - CONTRACEPTION,EXTERNAL AGENCIES AND BODIES,5902624924,1000044545
22.02.2024,Environment Neighbourhoods and Growth,BOUYGUES (UK) LTD,"1,240,243.68",CAPITAL PS (REGEN),CONSTRUCTION MAIN CONTRACT -CERTIFICATED,2103828482,3000002179
12.02.2024,Housing,A & E ELKINS LTD,"1,215,048.40",CAPITAL PS (HRA),CONSTRUCTION,2103823489,4012501
26.02.2024,Finance,LONDON BOROUGH OF BRENT,"969,644.00",SHARED SERVICES,COMMS & COMPUTING CONTRACT CHARGES,5902623981,1000064734
02.02.2024,Governance and Assurance,MATRIX SCM LIMITED,"968,790.38",WEEKLY PAYMENTS,AGENCY STAFF,5902620434,1000089740
22.02.2024,Housing,SMITH & BYFORD LTD,"954,638.33",SMITH AND BYFORD,I-WORLD CONTRACTORS HOLDING ACCOUNT,2103829330,3000000520
02.02.2024,Finance,LONDON BOROUGH OF BRENT,"927,247.00",SHARED SERVICES,COMMS & COMPUTING CONTRACT CHARGES,5902620420,1000064734
09.02.2024,Governance and Assurance,MATRIX SCM LIMITED,"902,502.64",WEEKLY PAYMENTS,AGENCY STAFF,5902621516,1000089740
16.02.2024,Governance and Assurance,MATRIX SCM LIMITED,"878,599.53",WEEKLY PAYMENTS,AGENCY STAFF,5902622852,1000089740
29.02.2024,Governance and Assurance,MATRIX SCM LIMITED,"867,605.78",WEEKLY PAYMENTS,AGENCY STAFF,5902624747,1000089740
23.02.2024,Governance and Assurance,MATRIX SCM LIMITED,"854,545.29",WEEKLY PAYMENTS,AGENCY STAFF,5902623865,1000089740
27.02.2024,Collection Fund,GREATER LONDON AUTHORITY,"823,053.00",GLA CROSSRAIL BUSINESS RATE SUPPLEMENT,LEVIES,5902624133,1000015827
28.02.2024,Children and Adults,RIVERSIDE PRIMARY SCHOOL,"818,192.00",RIVERSIDE PRIMARY SCHOOL,SCHOOLS CAPITATION,5902624385,5001000056
10.02.2024,Housing,A & E ELKINS LTD,"757,647.40",CAPITAL PS (HRA),CONSTRUCTION MAIN CONTRACT -CERTIFICATED,2103820073,4012501
10.02.2024,Housing,A & E ELKINS LTD,"747,882.98",CAPITAL PS (HRA),CONSTRUCTION MAIN CONTRACT -CERTIFICATED,2103820309,4012501
29.02.2024,Children and Adults,NEILCOTT SPECIAL WORKS LTD,"701,535.41",CAPITAL PS (EDUCATION),CONSTRUCTION,2103832708,3000000770
06.02.2024,Environment Neighbourhoods and Growth,BOUYGUES (UK) LTD,"687,777.01",CAPITAL PS (REGEN),CONSTRUCTION MAIN CONTRACT -CERTIFICATED,2103818546,3000002179
16.02.2024,Collection Fund,MINISTRY OF HOUSING COMMUNITIES & LOCAL GOVERNMENT,"619,187.00",NNDR CLG SHARE,EXTERNAL AGENCIES AND BODIES,5902622610,1000081809
12.02.2024,Children and Adults,THE ST THOMAS THE APOSTLE COLLEGE,"601,029.00",THE ST THOMAS THE APOSTLE COLLEGE,SCHOOLS CAPITATION,5902621841,5001000074
20.02.2024,Housing,OCO LIMITED,"544,610.48",PAYMENTS CONTROL ACCOUNT - OCO,I-WORLD CONTRACTORS HOLDING ACCOUNT,5902623216,1006066
05.02.2024,Housing,BUILDTRUST LTD,"535,380.74",BUILD TRUST,I-WORLD CONTRACTORS HOLDING ACCOUNT,2103818357,3000002010
22.02.2024,Housing,HILL PARTNERSHIP LTD,"522,577.52",CAPITAL PS (HRA),CONSTRUCTION MAIN CONTRACT -CERTIFICATED,2103828346,3000002185
26.02.2024,Children and Adults,TURNEY SCHOOL,"505,561.36",OTHER LA SPECIAL,STATEMENTED FEES,2103829816,1000072254
23.02.2024,Environment Neighbourhoods and Growth,APCOA PARKING (UK) LTD,"502,569.47",PARKING OVERHEADS,OTHER CONTRACTORS,5902623909,1718645
26.02.2024,Housing,SPOKEMEAD MAINTENANCE LTD,"440,116.86",PAYMENTS CONTROL ACCOUNT - SPOKEMEAD,I-WORLD CONTRACTORS HOLDING ACCOUNT,5902623308,1000059211
15.02.2024,Housing,HIGGINS PARTNERSHIPS,"435,694.30",CAPITAL PS (HRA),CONSTRUCTION,2103827402,4000859
29.02.2024,Environment Neighbourhoods and Growth,GUILDMORE LTD,"412,724.75",CAPITAL PS (REGEN),CONSTRUCTION MAIN CONTRACT -CERTIFICATED,2103834050,3000002150
17.02.2024,Housing,GLENMAN CORPORATION LTD,"409,685.81",CAPITAL PS (HRA),CONSTRUCTION MAIN CONTRACT -CERTIFICATED,2103826566,3000002230
02.02.2024,Housing,KENT COUNTY COUNCIL - LASER,"409,043.36",HEATING ACCOUNT,ELECTRICITY,5902619572,1000012926
08.02.2024,Children and Adults,NEWCASTLE COLLEGE GROUP,"403,531.67",FURTHER EDUCATION,STATEMENTED FEES,2103820415,1000080965
16.02.2024,Children and Adults,THE ST THOMAS THE APOSTLE COLLEGE,"400,681.00",THE ST THOMAS THE APOSTLE COLLEGE,SCHOOLS CAPITATION,5902622777,5001000074
12.02.2024,Finance,POST OFFICE LTD,"400,000.00",HOUSEHOLD SUPPORT GRANT,GRANTS,2103823494,1000087679
29.02.2024,Governance and Assurance,ATALIAN SERVEST LTD,"380,373.82",FM SERVICES BY INTERSERVE,INTEGRATED FACILITIES MANAGEMENT CONTRACT,5902624551,1000088775
07.02.2024,Housing,NATIONWIDE ACCOMMODATION,"362,260.50",NIGHTLY TA (NSC),EXTERNAL AGENCIES AND BODIES,5902621122,1000076112
15.02.2024,Housing,ARJ CONSTRUCTION LTD,"359,777.24",CAPITAL PS (HRA),CONSTRUCTION MAIN CONTRACT,2103820423,3000002232
23.02.2024,Environment Neighbourhoods and Growth,F M CONWAY LTD,"349,749.00",CAPITAL PS (LEISURE),CONSTRUCTION,2103828119,4001384
09.02.2024,Children and Adults,SOUTH LONDON & MAUDSLEY HOSPITAL,"343,189.00",SLAM SPOT MH RES,EXTERNAL AGENCIES AND BODIES,5902620302,1000013096
28.02.2024,Housing,ZFA ACCOMMODATION LTD,"337,200.00",NIGHTLY TA (NSC),EXTERNAL AGENCIES AND BODIES,5902624404,1000082620
09.02.2024,Children and Adults,SOUTH LONDON & MAUDSLEY HOSPITAL,"336,664.00",SLAM SPOT MH RES,EXTERNAL AGENCIES AND BODIES,5902620304,1000013096
12.02.2024,Housing,GUILDMORE LTD,"328,670.08",CAPITAL PS (HRA),CONSTRUCTION MAIN CONTRACT -CERTIFICATED,2103820417,3000002150
29.02.2024,Children and Adults,IVYDALE PRIMARY SCHOOL,"310,000.00",IVYDALE PRIMARY SCHOOL,SCHOOLS CAPITATION,2103833901,5001000038
11.02.2024,Children and Adults,CHANGE GROW LIVE SERVICES LTD,"302,915.41",ADULT SM SERVICE,OTHER CONTRACTORS,5902620976,1000082721
26.02.2024,Children and Adults,SOUTH LONDON & MAUDSLEY HOSPITAL,"299,446.74",SLAM SLA CAMHS TEAM,EXTERNAL AGENCIES AND BODIES,5902623979,1000013096
01.02.2024,Housing,SPOKEMEAD MAINTENANCE LTD,"285,039.82",PAYMENTS CONTROL ACCOUNT - SPOKEMEAD,I-WORLD CONTRACTORS HOLDING ACCOUNT,5902619866,1000059211
05.02.2024,Housing,HIGGINS PARTNERSHIPS,"272,046.52",CAPITAL PS (HRA),CONSTRUCTION,2103818359,4000859
20.02.2024,Environment Neighbourhoods and Growth,QUADRON SERVICES LIMITED,"268,766.74",CLIENT SERV(GRNS MAIN),OTHER CONTRACTORS,5902623145,1000066528
12.02.2024,Children and Adults,PHOENIX PRIMARY SCHOOL,"261,582.00",PHOENIX PRIMARY SCHOOL,SCHOOLS CAPITATION,5902621737,5001000032
06.02.2024,Housing,EQUANS REGENERATION (APOLLO) LTD,"260,450.84",CAPITAL PS (HRA),CONSTRUCTION MAIN CONTRACT -CERTIFICATED,2103818553,4000449
28.02.2024,Corporate,4 FUTURES PHASE 1 LIMITED,"250,642.05",ONGOING SCHOOLS PFI COSTS,PFI/PPP PAYMENTS,5902624475,1000061400
22.02.2024,Finance,POST OFFICE LTD,"238,000.00",COST OF LIVING FUND,GRANTS,5902623122,1000087679
28.02.2024,Corporate,4 FUTURES PHASE 2 LTD,"235,804.20",ONGOING SCHOOLS PFI COSTS,PFI/PPP PAYMENTS,5902624525,1000068567
28.02.2024,Corporate,4 FUTURES PHASE 2 LTD,"235,804.20",ONGOING SCHOOLS PFI COSTS,PFI/PPP PAYMENTS,5902624525,1000068567
12.02.2024,Children and Adults,BESSEMER GRANGE PRIMARY SCHOOL,"235,656.00",BESSEMER GRANGE PRIMARY SCHOOL,SCHOOLS CAPITATION,5902621681,5001000009
23.02.2024,Children and Adults,AGE UK  LEWISHAM & SOUTHWARK,"229,701.51",OLDER PEOPLES HUBS,EXTERNAL AGENCIES AND BODIES,5902622601,1000066751
02.02.2024,Corporate,LONDON COUNCILS,"226,571.37",FREEDOM PASS,CONCESSIONARY FARES,5902620437,11237079
12.02.2024,Children and Adults,JOHN RUSKIN PRIMARY SCHOOL,"221,989.00",JOHN RUSKIN PRIMARY SCHOOL,SCHOOLS CAPITATION,5902621757,5001000040
17.02.2024,Housing,GLENMAN CORPORATION LTD,"218,217.45",CAPITAL PS (HRA),CONSTRUCTION MAIN CONTRACT -CERTIFICATED,2103826565,3000002230
08.02.2024,Housing,WILLOW ESTATE AGENTS (LONDON) LTD,"217,287.71",NIGHTLY TA (NSC),EXTERNAL AGENCIES AND BODIES,5902621320,1000060607
21.02.2024,Housing,BCS (ELECTRICAL & BUILDING SERVICES LTD),"214,149.38",BCS,I-WORLD CONTRACTORS HOLDING ACCOUNT,5902623307,1000062321
11.02.2024,Housing,TKC HOUSING LIMITED,"213,764.53",PSL PLACEMENTS,EXTERNAL AGENCIES AND BODIES,5902621256,1000088199
12.02.2024,Children and Adults,CRAWFORD PRIMARY SCHOOL,"209,469.00",CRAWFORD PRIMARY SCHOOL,SCHOOLS CAPITATION,5902621719,5001000024
12.02.2024,Children and Adults,MICHAEL FARADAY PRIMARY SCHOOL,"206,283.00",MICHAEL FARADAY PRIMARY SCHOOL,SCHOOLS CAPITATION,5902621774,5001000048
12.02.2024,Children and Adults,ST JAMES CE PRIMARY SCHOOL,"206,053.00",ST JAMES' CE PRIMARY SCHOOL,SCHOOLS CAPITATION,5902621830,5001000070
12.02.2024,Children and Adults,ALBION PRIMARY SCHOOL,"204,446.00",ALBION PRIMARY SCHOOL,SCHOOLS CAPITATION,5902621667,5001000000
12.02.2024,Children and Adults,DULWICH WOOD PRIMARY SCHOOL,"204,089.00",DULWICH WOOD PRIMARY SCHOOL,SCHOOLS CAPITATION,5902621766,5001000042
12.02.2024,Corporate,GALLAGHER BASSETT INTERNATIONAL LTD,"200,000.00",LIABILITY RELATED INSURANCE,COMPENSATION,5902621409,1000005701
12.02.2024,Children and Adults,SOUTHWARK PARK PRIMARY SCHOOL,"199,293.00",SOUTHWARK PARK PRIMARY SCHOOL,SCHOOLS CAPITATION,5902621812,5001000062
12.02.2024,Children and Adults,ST ANTHONYS RC SCHOOL,"193,935.00",ST ANTHONY'S CATHOLIC PRIMARY SCHOOL,SCHOOLS CAPITATION,5902621816,5001000064
06.02.2024,Governance and Assurance,ATALIAN SERVEST LTD,"191,729.89",FM SERVICES BY INTERSERVE,BUILDING R&M,5902620968,1000088775
22.02.2024,Housing,NIBLOCK (BUILDERS) LTD,"189,778.82",CAPITAL PS (HRA),CONSTRUCTION,2103829329,3000000235
21.02.2024,Environment Neighbourhoods and Growth,KENT COUNTY COUNCIL - LASER,"188,287.97",STREET LIGHTING REACTIVE,ELECTRICITY,5902623488,1000012926
12.02.2024,Children and Adults,ALFRED SALTER PRIMARY SCHOOL,"187,229.00",ALFRED SALTER PRIMARY SCHOOL,SCHOOLS CAPITATION,5902621671,5001000005
12.02.2024,Children and Adults,BRUNSWICK PARK PRIMARY SCHOOL,"185,605.00",BRUNSWICK PARK PRIMARY SCHOOL,SCHOOLS CAPITATION,5902621689,5001000013
10.02.2024,Children and Adults,OASIS AQUILA HOUSING,"184,920.25",SEMI-IND CONTRACTS,EXTERNAL AGENCIES AND BODIES,5902621396,1000002184
12.02.2024,Children and Adults,CAMELOT PRIMARY SCHOOL,"179,542.00",CAMELOT PRIMARY SCHOOL,SCHOOLS CAPITATION,5902621695,5001000014
12.02.2024,Children and Adults,OLIVER GOLDSMITH PRIMARY SCHOOL,"177,788.00",OLIVER GOLDSMITH PRIMARY SCHOOL,SCHOOLS CAPITATION,5902621779,5001000051
29.02.2024,Children and Adults,KINTORE WAY CHILDRENS CENTRE,"175,774.00",DSG FUNDING - SAFETY VALVE,SCHOOLS CAPITATION,2103833902,5001000047
12.02.2024,Children and Adults,HIGHSHORE SCHOOL,"175,500.00",HIGHSHORE,HIGH NEEDS - TOP UP FUNDING,5902621771,5001000046
12.02.2024,Children and Adults,ST JOHNS & ST CLEMENTS CE SCHOOL,"175,491.00",ST JOHN'S & ST CLEMENT'S CE PRIMARY SCHO,SCHOOLS CAPITATION,5902621837,5001000073
29.02.2024,Children and Adults,COMBER GROVE PRIMARY SCHOOL,"175,000.00",COMBER GROVE PRIMARY SCHOOL,SCHOOLS CAPITATION,2103833906,5001000022
16.02.2024,Children and Adults,PHOENIX PRIMARY SCHOOL,"174,385.00",PHOENIX PRIMARY SCHOOL,SCHOOLS CAPITATION,5902622679,5001000032
11.02.2024,Children and Adults,CHANGE GROW LIVE SERVICES LTD,"173,075.35",SSMTRG,OTHER CONTRACTORS,5902621511,1000082721
12.02.2024,Children and Adults,KEYWORTH PRIMARY SCHOOL,"170,721.00",KEYWORTH PRIMARY SCHOOL,SCHOOLS CAPITATION,5902621763,5001000041
12.02.2024,Children and Adults,CHERRY GARDEN SCHOOL,"169,333.00",CHERRY GARDEN PRIMARY SCHOOL,HIGH NEEDS - TOP UP FUNDING,5902621711,5001000020
29.02.2024,Housing,LETTING INTERNATIONAL LTD,"168,927.00",NIGHTLY TA (NSC),EXTERNAL AGENCIES AND BODIES,5902624884,1000070102
12.02.2024,Children and Adults,GRANGE PRIMARY SCHOOL,"168,700.00",GRANGE PRIMARY SCHOOL,SCHOOLS CAPITATION,5902621727,5001000029
12.02.2024,Children and Adults,ENGLISH MARTYRS RC PRIMARY SCHOOL,"168,613.00",ENGLISH MARTYRS RC PRIMARY SCHOOL,SCHOOLS CAPITATION,5902621731,5001000030
02.02.2024,Housing,THEORI HOUSING MANAGEMENT SERVICES,"162,571.35",PSL PLACEMENTS,EXTERNAL AGENCIES AND BODIES,5902620432,1000079264
02.02.2024,Housing,OCO LIMITED,"161,372.83",PAYMENTS CONTROL ACCOUNT - OCO,I-WORLD CONTRACTORS HOLDING ACCOUNT,5902620435,1006066
29.02.2024,Housing,THEORI HOUSING MANAGEMENT SERVICES,"161,167.12",PSL PLACEMENTS,EXTERNAL AGENCIES AND BODIES,5902624902,1000079264
10.02.2024,Housing,A & E ELKINS LTD,"160,247.55",CAPITAL PS (HRA),CONSTRUCTION,2103818288,4012501
29.02.2024,Environment Neighbourhoods and Growth,F M CONWAY LTD,"158,119.41",CAPITAL PS (LEISURE),CONSTRUCTION,2103829854,4001384
16.02.2024,Children and Adults,BESSEMER GRANGE PRIMARY SCHOOL,"157,109.00",BESSEMER GRANGE PRIMARY SCHOOL,SCHOOLS CAPITATION,5902622626,5001000009
12.02.2024,Children and Adults,TUKE SCHOOL,"152,750.00",TUKE SCHOOL,HIGH NEEDS - TOP UP FUNDING,5902621877,5001000097
07.02.2024,Corporate,GREATER LONDON AUTHORITY,"152,354.90",LONDON PENSION FUND,LEVIES,5902621103,1000015827
16.02.2024,Children and Adults,GOODRICH PRIMARY SCHOOL,"152,066.00",GOODRICH PRIMARY SCHOOL,SCHOOLS CAPITATION,5902622668,5001000028
01.02.2024,Environment Neighbourhoods and Growth,F M CONWAY LTD,"149,288.41",HIGHWAY MAINTENANCE OVERHEADS,HIGHWAYS TERM CONTRACT,2103817899,4001384
12.02.2024,Children and Adults,ST FRANCIS'S RC PRIMARY SCHOOL,"148,391.00",ST FRANCIS RC PRIMARY SCHOOL,SCHOOLS CAPITATION,5902621820,5001000067
16.02.2024,Children and Adults,JOHN RUSKIN PRIMARY SCHOOL,"147,994.00",JOHN RUSKIN PRIMARY SCHOOL,SCHOOLS CAPITATION,5902622697,5001000040
21.02.2024,Housing,MAIER LANG LIMITED,"147,968.98",NIGHTLY TA (NSC),EXTERNAL AGENCIES AND BODIES,5902623450,1000084930
16.02.2024,Children and Adults,THE ST THOMAS THE APOSTLE COLLEGE,"147,517.00",YPLA SCHL SIXTH FORM,SCHOOLS CAPITATION,5902622778,5001000074
12.02.2024,Children and Adults,THE ST THOMAS THE APOSTLE COLLEGE,"147,515.00",YPLA SCHL SIXTH FORM,SCHOOLS CAPITATION,5902621842,5001000074
16.02.2024,Housing,BRIDGEWATER ROOFING CONTRACTORS LTD,"145,521.55",BRC,I-WORLD CONTRACTORS HOLDING ACCOUNT,2103828130,3000001482
13.02.2024,Children and Adults,HATS GROUP LTD,"145,149.68",SCH TRANS � TRAVEL,CAB FARES,5902622205,1000042743
28.02.2024,Children and Adults,STANDAGE & CO LTD,"143,362.84",CAPITAL PS (SOC SERV),CONSTRUCTION MAIN CONTRACT -CERTIFICATED,2103830414,4002817
02.02.2024,Housing,SMITH & BYFORD LTD,"140,141.00",SMITH AND BYFORD,I-WORLD CONTRACTORS HOLDING ACCOUNT,5902620436,11212119
17.02.2024,Housing,SMITH & BYFORD LTD,"139,691.10",CAPITAL PS (HRA),CONSTRUCTION,2103826564,3000000520
16.02.2024,Children and Adults,CRAWFORD PRIMARY SCHOOL,"139,641.00",CRAWFORD PRIMARY SCHOOL,SCHOOLS CAPITATION,5902622662,5001000024
16.02.2024,Children and Adults,MICHAEL FARADAY PRIMARY SCHOOL,"137,525.00",MICHAEL FARADAY PRIMARY SCHOOL,SCHOOLS CAPITATION,5902622713,5001000048
16.02.2024,Children and Adults,ST JAMES CE PRIMARY SCHOOL,"137,373.00",ST JAMES' CE PRIMARY SCHOOL,SCHOOLS CAPITATION,5902622766,5001000070
29.02.2024,Governance and Assurance,ATALIAN SERVEST LTD,"136,896.68",FM SERVICES BY INTERSERVE,BUILDING R&M,5902624594,1000088775
12.02.2024,Children and Adults,HEBER PRIMARY SCHOOL,"136,879.00",HEBER PRIMARY SCHOOL,SCHOOLS CAPITATION,5902621745,5001000035
16.02.2024,Housing,PRB ESTATES LTD,"136,466.74",PRBE,I-WORLD CONTRACTORS HOLDING ACCOUNT,2103828137,3000001691
16.02.2024,Children and Adults,ALBION PRIMARY SCHOOL,"136,292.00",ALBION PRIMARY SCHOOL,SCHOOLS CAPITATION,5902622612,5001000000
16.02.2024,Children and Adults,DULWICH WOOD PRIMARY SCHOOL,"136,055.00",DULWICH WOOD PRIMARY SCHOOL,SCHOOLS CAPITATION,5902622706,5001000042
17.02.2024,Housing,SMITH & BYFORD LTD,"136,020.06",CAPITAL PS (HRA),CONSTRUCTION,2103826563,3000000520
12.02.2024,Children and Adults,RYE OAK PRIMARY SCHOOL,"135,089.00",RYE OAK  DFES,SCHOOLS CAPITATION,5902621800,5001000059
19.02.2024,Children and Adults,STANDAGE & CO LTD,"134,273.42",CAPITAL PS (SOC SERV),CONSTRUCTION MAIN CONTRACT -CERTIFICATED,2103828344,4002817
22.02.2024,Suspense,LONDON MUTUAL CREDIT UNION,"133,425.00",SUSPENSE ACCOUNT (COMPANY CODE 1000),PAYROLL - 3RD PARTY DEDUCTIONS,2103829527,1000015860
16.02.2024,Children and Adults,SOUTHWARK PARK PRIMARY SCHOOL,"132,857.00",SOUTHWARK PARK PRIMARY SCHOOL,SCHOOLS CAPITATION,5902622749,5001000062
12.02.2024,Housing,MX ESTATES LTD,"132,085.75",NIGHTLY TA (NSC),EXTERNAL AGENCIES AND BODIES,5902621944,1000083639
29.02.2024,Housing,DUCTCLEAN (UK) LTD,"130,950.74",DUCTCLEAN,I-WORLD CONTRACTORS HOLDING ACCOUNT,2103832719,3000001635
12.02.2024,Children and Adults,BETHLEM & MAUDSLEY HOSPITAL SCHOOL,"130,340.00",MAUDSLEY & BETHLEM,HIGH NEEDS - TOP UP FUNDING,5902621685,5001000010
13.02.2024,Children and Adults,KINTORE WAY CHILDRENS CENTRE,"130,000.00",KINTORE WAY CHILDRENS CENTRE,SCHOOLS CAPITATION,2103826394,5001000047
08.02.2024,Finance,SAP (UK) LTD,"129,919.31",SAP OPERATING COSTS,SOFTWARE,5902621424,1000002550
29.02.2024,Children and Adults,METROPOLITAN HOUSING TRUST LTD,"129,599.25",S75 SUPHSG SCH LBS LEAD,EXTERNAL AGENCIES AND BODIES,5902624830,1000047547
12.02.2024,Children and Adults,ILDERTON PRIMARY SCHOOL,"129,347.00",ILDERTON PRIMARY SCHOOL,SCHOOLS CAPITATION,5902621750,5001000037
16.02.2024,Children and Adults,ST ANTHONYS RC SCHOOL,"129,287.00",ST ANTHONY'S CATHOLIC PRIMARY SCHOOL,SCHOOLS CAPITATION,5902622752,5001000064
22.02.2024,Environment Neighbourhoods and Growth,CIVICA UK LTD,"129,207.87",EH & TS MANAGER,SOFTWARE,5902623523,1730625
12.02.2024,Children and Adults,DULWICH VILLAGE CE INFANTS SCHOOL,"128,946.00",DULWICH VILLAGE CE INFANTS' SCHOOL,SCHOOLS CAPITATION,5902621722,5001000027
12.02.2024,Children and Adults,HIGHSHORE SCHOOL,"127,500.00",HIGHSHORE,HIGH NEEDS - BASE FUNDING,5902621770,5001000046
23.02.2024,Children and Adults,NELL GWYNN NURSERY SCHOOL,"126,000.00",NELL GWYNN CHILDRENS CENTRE,SCHOOLS CAPITATION,2103829542,5001000049
21.02.2024,Children and Adults,CITY OF LONDON CORPORATION,"125,774.67",SEXUAL HEALTH - STI,MEDICAL / HEALTH & SAFETY SERVICES,5902623385,1000052061
07.02.2024,Housing,EQUANS REGENERATION LTD,"124,944.87",CAPITAL PS (HRA),CONSTRUCTION MAIN CONTRACT -CERTIFICATED,2103818861,3000002035
16.02.2024,Children and Adults,ALFRED SALTER PRIMARY SCHOOL,"124,822.00",ALFRED SALTER PRIMARY SCHOOL,SCHOOLS CAPITATION,5902622616,5001000005
12.02.2024,Children and Adults,HAYMERLE SCHOOL,"124,417.00",HAYMERLE PRIMARY SCHOOL,HIGH NEEDS - TOP UP FUNDING,5902621769,5001000045
16.02.2024,Children and Adults,BRUNSWICK PARK PRIMARY SCHOOL,"123,733.00",BRUNSWICK PARK PRIMARY SCHOOL,SCHOOLS CAPITATION,5902622634,5001000013
13.02.2024,Environment Neighbourhoods and Growth,F M CONWAY LTD,"123,413.50",CAPITAL PS (LEISURE),CONSTRUCTION FEES  - EXTERNAL,2103825070,4001384
12.02.2024,Children and Adults,ST JOSEPHS RC JUNIOR  SCHOOL,"123,142.00",ST JOSEPHS RC JUNIOR(5203) SCHOOL,SCHOOLS CAPITATION,5902621703,5001000017
29.02.2024,Housing,FINEFAIR LTD,"122,161.21",PSL PLACEMENTS,EXTERNAL AGENCIES AND BODIES,5902624668,1000075570
21.02.2024,Environment Neighbourhoods and Growth,MARWOOD ELECTRICAL COMPANY LTD,"119,858.09",PUBLIC LIGHTING,MATERIALS,5902623302,1001874
16.02.2024,Children and Adults,CAMELOT PRIMARY SCHOOL,"119,700.00",CAMELOT PRIMARY SCHOOL,SCHOOLS CAPITATION,5902622640,5001000014
10.02.2024,Housing,STAR PEOPLE LTD,"119,657.40",NIGHTLY TA (NSC),EXTERNAL AGENCIES AND BODIES,5902620781,1000088790
12.02.2024,Children and Adults,CAMELOT PRIMARY SCHOOL,"119,466.35",CAMELOT PRIMARY SCHOOL,SCHOOLS CAPITATION,5902621698,5001000014
16.02.2024,Children and Adults,CAMELOT PRIMARY SCHOOL,"119,466.35",CAMELOT PRIMARY SCHOOL,SCHOOLS CAPITATION,5902622643,5001000014
16.02.2024,Housing,PRB ESTATES LTD,"119,416.88",PRBE,I-WORLD CONTRACTORS HOLDING ACCOUNT,2103828134,3000001691
09.02.2024,Housing,WALWORTH HOMES LTD,"119,295.00",CAPITAL PS (HRA),CONSTRUCTION FEES  - EXTERNAL,5902621526,1000079197
16.02.2024,Children and Adults,OLIVER GOLDSMITH PRIMARY SCHOOL,"118,527.00",OLIVER GOLDSMITH PRIMARY SCHOOL,SCHOOLS CAPITATION,5902622717,5001000051
16.02.2024,Children and Adults,HIGHSHORE SCHOOL,"117,000.00",HIGHSHORE,HIGH NEEDS - TOP UP FUNDING,5902622711,5001000046
16.02.2024,Children and Adults,ST JOHNS & ST CLEMENTS CE SCHOOL,"116,999.00",ST JOHN'S & ST CLEMENT'S CE PRIMARY SCHO,SCHOOLS CAPITATION,5902622773,5001000073
12.02.2024,Children and Adults,ST JAMES THE GREAT RC SCHOOL,"115,945.00",ST JAMES THE GREAT RC PRIMARY SCHOOL,SCHOOLS CAPITATION,5902621834,5001000071
25.02.2024,Children and Adults,MIHOMECARE LTD,"115,920.00",REABLEMENT CONTRACT,HOMECARE - IC,5902623577,1000042594
29.02.2024,Children and Adults,ANN BERNADT NURSERY SCHOOL,"114,211.00",DSG FUNDING - SAFETY VALVE,SCHOOLS CAPITATION,2103833903,5001000085
16.02.2024,Children and Adults,KEYWORTH PRIMARY SCHOOL,"113,815.00",KEYWORTH PRIMARY SCHOOL,SCHOOLS CAPITATION,5902622703,5001000041
22.02.2024,Children and Adults,NEILCOTT SPECIAL WORKS LTD,"113,558.54",CAPITAL PS (EDUCATION),CONSTRUCTION,5902623651,1000049404
12.02.2024,Children and Adults,CRAMPTON PRIMARY SCHOOL,"113,229.00",CRAMPTON PRIMARY SCHOOL,SCHOOLS CAPITATION,5902621716,5001000023
16.02.2024,Children and Adults,CHERRY GARDEN SCHOOL,"112,893.00",CHERRY GARDEN PRIMARY SCHOOL,HIGH NEEDS - TOP UP FUNDING,5902622655,5001000020
16.02.2024,Children and Adults,GRANGE PRIMARY SCHOOL,"112,472.00",GRANGE PRIMARY SCHOOL,SCHOOLS CAPITATION,5902622670,5001000029
16.02.2024,Children and Adults,ENGLISH MARTYRS RC PRIMARY SCHOOL,"112,403.00",ENGLISH MARTYRS RC PRIMARY SCHOOL,SCHOOLS CAPITATION,5902622674,5001000030
12.02.2024,Children and Adults,ST JOHNS RC PRIMARY SCHOOL,"109,938.00",ST JOHN'S RC PRIMARY SCHOOL,SCHOOLS CAPITATION,5902621845,5001000075
12.02.2024,Children and Adults,ST JOSEPHS CATHOLIC PRIMARY SCHOOL,"109,513.00",ST JOSEPHS RC (3476) PRIMARY SCHOOL,SCHOOLS CAPITATION,5902621853,5001000078
12.02.2024,Children and Adults,CATHEDRAL SCHOOL OF ST SAVIOUR & MARY,"107,888.00",THE CATHEDRAL OF ST. SAVIOUR & ST OLAVES,SCHOOLS CAPITATION,5902621865,5001000088
12.02.2024,Children and Adults,PILGRIM'S WAY PRIMARY SCHOOL,"107,575.00",PILGRIMS WAY PRIMARY SCHOOL,SCHOOLS CAPITATION,5902621788,5001000054
12.02.2024,Children and Adults,BOUCHER C OF E PRIMARY SCHOOL,"106,752.00",BOUTCHER CE PRIMARY SCHOOL,SCHOOLS CAPITATION,5902621686,5001000011
16.02.2024,Housing,A & E ELKINS LTD,"104,834.00",A&E ELKINS,I-WORLD CONTRACTORS HOLDING ACCOUNT,2103828127,4012501
12.02.2024,Children and Adults,BELLENDEN PRIMARY SCHOOL,"104,329.00",BELLENDEN PRIMARY SCHOOL,SCHOOLS CAPITATION,5902621675,5001000007
29.02.2024,Children and Adults,LONDON BOROUGH OF LAMBETH,"104,240.52",SEXUAL HEALTH - STI,EXTERNAL AGENCIES AND BODIES,5902624926,1000044545
12.02.2024,Children and Adults,ST JOSEPHS CATHOLIC SCHOOL,"103,446.00",ST JOSEPHS RC (3484) SCHOOL,SCHOOLS CAPITATION,5902621849,5001000076
12.02.2024,Children and Adults,ROBERT BROWNING PRIMARY SCHOOL,"103,224.00",ROBERT BROWNING PRIMARY SCHOOL,SCHOOLS CAPITATION,5902621795,5001000057
13.02.2024,Environment Neighbourhoods and Growth,F M CONWAY LTD,"102,844.58",CAPITAL PS (LEISURE),CONSTRUCTION FEES  - EXTERNAL,2103825069,4001384
16.02.2024,Children and Adults,TUKE SCHOOL,"101,833.00",TUKE SCHOOL,HIGH NEEDS - TOP UP FUNDING,5902622811,5001000097
12.02.2024,Children and Adults,ST PETERS CE SCHOOL,"101,694.00",ST PETER'S CE PRIMARY SCHOOL,SCHOOLS CAPITATION,5902621858,5001000083
27.02.2024,Environment Neighbourhoods and Growth,CONSTELLIA PUBLIC LIMITED,"100,962.30",CAPITAL PS (LEISURE),CONSTRUCTION FEES,5902624144,1000088137
29.02.2024,Children and Adults,THE CHARTER SCHOOL EDUCATIONAL TRUST,"100,294.90",AC & FREE - MSTREAM,STATEMENTED FEES,2103834035,1000079578
29.02.2024,Children and Adults,LONDON BOROUGH OF LAMBETH,"100,023.00",SEXUAL HEALTH - ADVICE,EXTERNAL AGENCIES AND BODIES,5902624924,1000044545
13.02.2024,Children and Adults,FAITHFUL & GOULD,"99,867.11",CAPITAL PS (EDUCATION),CONSTRUCTION FEES  - EXTERNAL,5902622036,1000061390
14.02.2024,Housing,NATIONWIDE ACCOMMODATION,"99,335.07",PSL PLACEMENTS,EXTERNAL AGENCIES AND BODIES,5902622312,1000076112
12.02.2024,Children and Adults,FRIARS PRIMARY (FOUNDATION) SCHOOL,"99,265.00",FRIARS FOUNDATION PRIMARY SCHOOL,SCHOOLS CAPITATION,5902621741,5001000033
29.02.2024,Environment Neighbourhoods and Growth,GUILDMORE LTD,"98,806.95",CAPITAL PS (REGEN),CONSTRUCTION MAIN CONTRACT -CERTIFICATED,2103834049,3000002150
29.02.2024,Housing,BUILDING ASSOCIATES LTD,"98,166.62",CAPITAL PS (HRA),CONSTRUCTION MAIN CONTRACT,2103831481,3000002218
12.02.2024,Children and Adults,SNOWSFIELDS PRIMARY SCHOOL,"97,656.00",SNOWSFIELDS PRIMARY SCHOOL,SCHOOLS CAPITATION,5902621806,5001000061
27.02.2024,Housing,FINEFAIR LTD,"97,035.51",NIGHTLY TA (NSC),EXTERNAL AGENCIES AND BODIES,5902624210,1000075570
26.02.2024,Children and Adults,PRORITE LTD,"96,800.92",CAPITAL PS (EDUCATION),CONSTRUCTION,5902624057,1000090646
10.02.2024,Environment Neighbourhoods and Growth,WARWICK LANDSCAPING LTD,"96,644.63",CAPITAL PS (LEISURE),CONSTRUCTION MAIN CONTRACT -CERTIFICATED,2103818361,3000001705
23.02.2024,Environment Neighbourhoods and Growth,BLAKEDOWN LANDSCAPES,"96,297.92",CAPITAL PS (REGEN),CONSTRUCTION MAIN CONTRACT,2103829550,4005399
12.02.2024,Children and Adults,CHARLOTTE  SHARMAN PRIMARY SCHOOL,"96,267.00",CHARLOTTE SHARMAN PRIMARY SCHOOL,SCHOOLS CAPITATION,5902621700,5001000016
01.02.2024,Housing,SPOKEMEAD MAINTENANCE LTD,"96,178.34",PAYMENTS CONTROL ACCOUNT - SPOKEMEAD,I-WORLD CONTRACTORS HOLDING ACCOUNT,5902618975,1000059211
12.02.2024,Children and Adults,TOWER BRIDGE PRIMARY SCHOOL,"95,256.00",TOWER BRIDGE PRIMARY SCHOOL,SCHOOLS CAPITATION,5902621873,5001000095
16.02.2024,Children and Adults,ST FRANCIS'S RC PRIMARY SCHOOL,"94,665.00",ST FRANCIS RC PRIMARY SCHOOL,SCHOOLS CAPITATION,5902622756,5001000067
12.02.2024,Children and Adults,COUNTRY COURT CARE HOMES 2 LTD,"94,591.52",PHY LTS 65+,NURSING PLACEMENTS FEES,2103822950,1000080172
08.02.2024,Housing,BLOOM PROCUREMENT SERVICES LTD,"92,668.80",LEDBURY ESTATE,SECURITY SERVICES,5902620377,1000082531
06.02.2024,Housing,SITTARA LTD,"92,129.54",NIGHTLY TA (NSC),EXTERNAL AGENCIES AND BODIES,5902620806,1000080857
12.02.2024,Children and Adults,ST GEORGES CE SCHOOL,"92,127.00",ST GEORGE'S CE PRIMARY SCHOOL,SCHOOLS CAPITATION,5902621827,5001000069
12.02.2024,Children and Adults,ST GEORGES RC SCHOOL,"92,116.00",ST GEORGE'S CATHEDRAL RC PRIMARY SCHOOL,SCHOOLS CAPITATION,5902621824,5001000068
12.02.2024,Children and Adults,SOUTHWARK INCLUSIVE LEARNING SERVICE,"92,071.00",SILS,HIGH NEEDS - TOP UP FUNDING,5902621884,5001000105
12.02.2024,Children and Adults,HOLLYDALE PRIMARY SCHOOL,"91,852.00",HOLLYDALE PRIMARY SCHOOL,SCHOOLS CAPITATION,5902621747,5001000036
12.02.2024,Children and Adults,COMBER GROVE PRIMARY SCHOOL,"91,381.00",COMBER GROVE PRIMARY SCHOOL,SCHOOLS CAPITATION,5902621713,5001000022
16.02.2024,Children and Adults,RYE OAK PRIMARY SCHOOL,"90,062.00",RYE OAK  DFES,SCHOOLS CAPITATION,5902622737,5001000059
12.02.2024,Environment Neighbourhoods and Growth,ALLPAY LTD,"89,937.00",NO RECOURSE TO PUBLIC FUNDS,OTHER PAYMENTS FOR CLIENTS,5902621622,1000078859
29.02.2024,Children and Adults,THE CHARTER SCHOOL EDUCATIONAL TRUST,"89,369.45",AC & FREE - MSTREAM,STATEMENTED FEES,2103834034,1000079578
10.02.2024,Finance,BETTER BANKSIDE,"88,707.27",BETTER BANKSIDE,EXTERNAL AGENCIES AND BODIES,5902621222,1000036227
10.02.2024,Housing,APCOA PARKING (UK) LTD,"87,547.08",PARKING CONTROL,OTHER CONTRACTORS,5902621098,1718645
11.02.2024,Housing,PROPERTYPLACEBOOK LTD,"87,109.90",NIGHTLY TA (NSC),EXTERNAL AGENCIES AND BODIES,5902621391,1000077817
16.02.2024,Children and Adults,BETHLEM & MAUDSLEY HOSPITAL SCHOOL,"86,898.00",MAUDSLEY & BETHLEM,HIGH NEEDS - TOP UP FUNDING,5902622630,5001000010
16.02.2024,Children and Adults,ILDERTON PRIMARY SCHOOL,"86,231.00",ILDERTON PRIMARY SCHOOL,SCHOOLS CAPITATION,5902622691,5001000037
16.02.2024,Children and Adults,DULWICH VILLAGE CE INFANTS SCHOOL,"85,963.00",DULWICH VILLAGE CE INFANTS' SCHOOL,SCHOOLS CAPITATION,5902622665,5001000027
12.02.2024,Housing,BCS (ELECTRICAL & BUILDING SERVICES LTD),"85,528.52",PAYMENTS CONTROL ACCOUNT - SPOKEMEAD,I-WORLD CONTRACTORS HOLDING ACCOUNT,5902621372,1000062321
16.02.2024,Children and Adults,HIGHSHORE SCHOOL,"85,000.00",HIGHSHORE,HIGH NEEDS - BASE FUNDING,5902622710,5001000046
12.02.2024,Children and Adults,ST SAVIOURS & ST OLAVES SCHOOL,"84,467.00",YPLA SCHL SIXTH FORM,SCHOOLS CAPITATION,5902621861,5001000084
16.02.2024,Children and Adults,ST SAVIOURS & ST OLAVES SCHOOL,"84,464.00",YPLA SCHL SIXTH FORM,SCHOOLS CAPITATION,5902622795,5001000084
16.02.2024,Children and Adults,HAYMERLE SCHOOL,"82,941.00",HAYMERLE PRIMARY SCHOOL,HIGH NEEDS - TOP UP FUNDING,5902622709,5001000045
14.02.2024,Suspense,INLAND REVENUE,"82,934.96",SUSPENSE ACCOUNT (COMPANY CODE 1000),CONSTRUCTION INDUSTRY TAX,2103827225,4003039
16.02.2024,Children and Adults,ST JOSEPHS RC JUNIOR  SCHOOL,"82,100.00",ST JOSEPHS RC JUNIOR(5203) SCHOOL,SCHOOLS CAPITATION,5902622647,5001000017
08.02.2024,Housing,DENHAN PROPERTY SERVICES LTD,"82,080.66",PSL PLACEMENTS,EXTERNAL AGENCIES AND BODIES,5902621279,1000082464
13.02.2024,Children and Adults,ANN BERNADT NURSERY SCHOOL,"80,000.00",ANN BERNADT (SUMNER),EARLY YEARS - 3 AND 4 YEAR OLDS,2103826395,5001000085
12.02.2024,Children and Adults,SOUTHWARK INCLUSIVE LEARNING SERVICE,"79,167.00",SILS,HIGH NEEDS - BASE FUNDING,5902621883,5001000105
14.02.2024,Housing,DENHAN PROPERTY SERVICES LTD,"79,166.10",PSL PLACEMENTS,EXTERNAL AGENCIES AND BODIES,5902622347,1000082464
21.02.2024,Environment Neighbourhoods and Growth,SOFTCAT PLC,"78,920.36",LEISURE CENTRAL COST,COMPUTER MAINTENANCE,5902623386,1000088809
12.02.2024,Children and Adults,TUKE SCHOOL,"78,403.00",TUKE SCHOOL,HIGH NEEDS - BASE FUNDING,5902621876,5001000097
16.02.2024,Children and Adults,ST JAMES THE GREAT RC SCHOOL,"77,302.00",ST JAMES THE GREAT RC PRIMARY SCHOOL,SCHOOLS CAPITATION,5902622770,5001000071
16.02.2024,Housing,FRANKLYN SHAW ASSOCIATES LTD,"77,002.52",FRANKLIN SHAW ASSOCIATES,I-WORLD CONTRACTORS HOLDING ACCOUNT,2103828475,3000001465
19.02.2024,Housing,FRANKLYN SHAW ASSOCIATES LTD,"77,002.52",FRANKLIN SHAW ASSOCIATES,I-WORLD CONTRACTORS HOLDING ACCOUNT,2103828477,3000001465
29.02.2024,Children and Adults,ANN BERNADT NURSERY SCHOOL,"76,000.00",ANN BERNADT (SUMNER),EARLY YEARS - 3 AND 4 YEAR OLDS,2103831889,5001000085
16.02.2024,Housing,MX ESTATES LTD,"75,843.62",PSL PLACEMENTS,EXTERNAL AGENCIES AND BODIES,5902622533,1000083639
08.02.2024,Housing,PRB ESTATES LTD,"75,546.43",GARAGE REPAIRS,BUILDING R&M,2103820074,3000001691
16.02.2024,Children and Adults,CRAMPTON PRIMARY SCHOOL,"75,487.00",CRAMPTON PRIMARY SCHOOL,SCHOOLS CAPITATION,5902622659,5001000023
23.02.2024,Housing,PROPERTY FACILITIES GROUP PLC,"75,000.00",PROPERTY FACILITIES GROUP,I-WORLD CONTRACTORS HOLDING ACCOUNT,2103829551,3000001420
29.02.2024,Children and Adults,REDACTED PERSONAL DATA,"75,000.00",CENTRAL COSTS - SEN,STATEMENTED FEES,2103834048,1000088860
29.02.2024,Children and Adults,NELL GWYNN NURSERY SCHOOL,"74,668.00",DSG FUNDING - SAFETY VALVE,SCHOOLS CAPITATION,2103833904,5001000049
02.02.2024,Finance,BETTER BANKSIDE,"74,473.22",BETTER BANKSIDE,EXTERNAL AGENCIES AND BODIES,5902620503,1000036227
12.02.2024,Children and Adults,EVELINA HOSPITAL SCHOOL,"74,231.00",EVELINA HOSPITAL SCHOOL,HIGH NEEDS - TOP UP FUNDING,5902621735,5001000031
16.02.2024,Children and Adults,ST JOHNS RC PRIMARY SCHOOL,"73,291.00",ST JOHN'S RC PRIMARY SCHOOL,SCHOOLS CAPITATION,5902622781,5001000075
16.02.2024,Children and Adults,ST JOSEPHS CATHOLIC PRIMARY SCHOOL,"73,013.00",ST JOSEPHS RC (3476) PRIMARY SCHOOL,SCHOOLS CAPITATION,5902622787,5001000078
05.02.2024,Environment Neighbourhoods and Growth,LIBRA CONSTRUCTION SERVICES LTD,"72,963.00",CAPITAL PS (REGEN),CONSTRUCTION MAIN CONTRACT,2103818352,3000000875
26.02.2024,Children and Adults,PROSPERO RECRUITMENT LTD,"72,646.00",AP & HOSPITAL SCHLS,STATEMENTED FEES,2103829847,1000082492
28.02.2024,Children and Adults,ALLPAY LTD (APPOINTEESHIPS - ADULTS,"72,000.00",APPOINTEESHIPS,EXTERNAL AGENCIES AND BODIES,2103830603,1000079890
16.02.2024,Children and Adults,CATHEDRAL SCHOOL OF ST SAVIOUR & MARY,"71,928.00",THE CATHEDRAL OF ST. SAVIOUR & ST OLAVES,SCHOOLS CAPITATION,5902622799,5001000088
29.02.2024,Children and Adults,THE CHARTER SCHOOL EDUCATIONAL TRUST,"71,842.85",AC & FREE - MSTREAM,STATEMENTED FEES,2103834036,1000079578
16.02.2024,Children and Adults,PILGRIM'S WAY PRIMARY SCHOOL,"71,714.00",PILGRIMS WAY PRIMARY SCHOOL,SCHOOLS CAPITATION,5902622725,5001000054
15.02.2024,Children and Adults,TIGERS CHILDCARE LTD,"71,597.30",NURSERY ED GRANT 3 AND 4 YR OLDS,GRANTS,2103827392,1000084290
19.02.2024,Corporate,HM REVENUE & CUSTOMS,"70,570.61",APPRENTICESHIP LEVY,APPRENTICESHIP LEVY,2103813289,1016231
15.02.2024,Children and Adults,STONEGROVE LIMITED,"70,539.95",CAPITAL PS (EDUCATION),CONSTRUCTION,2103827397,3000001525
16.02.2024,Children and Adults,BELLENDEN PRIMARY SCHOOL,"69,555.00",BELLENDEN PRIMARY SCHOOL,SCHOOLS CAPITATION,5902622620,5001000007
12.02.2024,Children and Adults,PETER HILLS CE SCHOOL,"69,509.00",PETER HILLS CE PRIMARY SCHOOL,SCHOOLS CAPITATION,5902621783,5001000053
16.02.2024,Children and Adults,BOUCHER C OF E PRIMARY SCHOOL,"69,191.00",BOUTCHER CE PRIMARY SCHOOL,SCHOOLS CAPITATION,5902622631,5001000011
16.02.2024,Children and Adults,ST JOSEPHS CATHOLIC SCHOOL,"68,964.00",ST JOSEPHS RC (3484) SCHOOL,SCHOOLS CAPITATION,5902622784,5001000076
16.02.2024,Children and Adults,ROBERT BROWNING PRIMARY SCHOOL,"68,811.00",ROBERT BROWNING PRIMARY SCHOOL,SCHOOLS CAPITATION,5902622732,5001000057
03.02.2024,Environment Neighbourhoods and Growth,F M CONWAY LTD,"68,778.08",CAPITAL PS (LEISURE),CONSTRUCTION,2103817902,4001384
08.02.2024,Housing,A & E ELKINS LTD,"68,675.49",CAPITAL PS (HRA),CONSTRUCTION MAIN CONTRACT -CERTIFICATED,2103817900,4012501
12.02.2024,Children and Adults,VICTORY SCHOOL,"68,672.00",VICTORY PRIMARY SCHOOL,SCHOOLS CAPITATION,5902621879,5001000098
15.02.2024,Children and Adults,THE VILLA SCHOOL & NURSERY LTD,"68,132.25",NURSERY ED GRANT 3 AND 4 YR OLDS,GRANTS,2103827391,1000003742
16.02.2024,Children and Adults,ST PETERS CE SCHOOL,"67,795.00",ST PETER'S CE PRIMARY SCHOOL,SCHOOLS CAPITATION,5902622792,5001000083
08.02.2024,Children and Adults,ACCESS MOBILITY TRANSPORT LTD,"67,610.00",SCH TRANS � TRAVEL,CAB FARES,5902621360,1000074637
21.02.2024,Housing,ZFA ACCOMMODATION LTD,"67,295.00",TA PLACEMENTS,EXTERNAL AGENCIES AND BODIES,5902623468,1000082620
07.02.2024,Children and Adults,CHAILEY HERITAGE FOUNDATION,"66,807.65",DISABILITIES LAC,RESIDENTIAL CARE,2103819095,1000045082
12.02.2024,Children and Adults,ST MARY MAGDALENE CE SCHOOL,"66,404.00",ST MARY MAGDALENE CE PRIMARY SCHOOL,SCHOOLS CAPITATION,5902621856,5001000080
16.02.2024,Children and Adults,FRIARS PRIMARY (FOUNDATION) SCHOOL,"66,175.00",FRIARS FOUNDATION PRIMARY SCHOOL,SCHOOLS CAPITATION,5902622683,5001000033
22.02.2024,Children and Adults,GIMS CARE SOLUTION LIMITED,"66,028.00",CHILDREN�S RESID,RESIDENTIAL CARE,2103829386,1000090263
08.02.2024,Housing,STANDAGE & CO LTD,"66,014.69",CAPITAL PS (HRA),CONSTRUCTION MAIN CONTRACT -CERTIFICATED,2103820056,4002817
07.02.2024,Children and Adults,PRIORS COURT SERVICES LTD,"65,730.70",DISABILITIES LAC,RESIDENTIAL CARE,2103819093,1000085127
28.02.2024,Housing,HOMES 2 LET UK LTD,"65,701.40",NIGHTLY TA (NSC),EXTERNAL AGENCIES AND BODIES,5902624452,1000079868
06.02.2024,Environment Neighbourhoods and Growth,ST MUNGOS,"65,530.00",MH ST. MUNGO'S,OTHER CONTRACTORS,5902620786,1000017600
09.02.2024,Housing,SPOKEMEAD MAINTENANCE LTD,"65,418.22",PAYMENTS CONTROL ACCOUNT - SPOKEMEAD,I-WORLD CONTRACTORS HOLDING ACCOUNT,5902621560,1000059211
12.02.2024,Children and Adults,ST JOSEPHS CATHOLIC INFANTS SCHOOL,"65,237.00",ST JOSEPHS RC INFANT(5204),SCHOOLS CAPITATION,5902621705,5001000018
16.02.2024,Children and Adults,SNOWSFIELDS PRIMARY SCHOOL,"65,105.00",SNOWSFIELDS PRIMARY SCHOOL,SCHOOLS CAPITATION,5902622743,5001000061
29.02.2024,Housing,NORBURY PROPERTY SERVICES (LONDON) LTD,"64,860.30",NIGHTLY TA (NSC),EXTERNAL AGENCIES AND BODIES,5902624677,1000075566
23.02.2024,Governance and Assurance,KENT COUNTY COUNCIL - LASER,"64,400.46",160 TOOLEY ST.,ELECTRICITY,5902623825,1000012926
29.02.2024,Children and Adults,BLAK DIAMOND SOCIAL CARE LTD,"64,369.29",SEMI-IND LAC 16-17,EXTERNAL AGENCIES AND BODIES,2103831871,1000090161
16.02.2024,Children and Adults,CHARLOTTE  SHARMAN PRIMARY SCHOOL,"64,179.00",CHARLOTTE SHARMAN PRIMARY SCHOOL,SCHOOLS CAPITATION,5902622644,5001000016
29.02.2024,Housing,DUCTCLEAN (UK) LTD,"63,975.60",DUCTCLEAN,I-WORLD CONTRACTORS HOLDING ACCOUNT,2103832718,3000001635
16.02.2024,Children and Adults,TOWER BRIDGE PRIMARY SCHOOL,"63,507.00",TOWER BRIDGE PRIMARY SCHOOL,SCHOOLS CAPITATION,5902622807,5001000095
15.02.2024,Children and Adults,1ST PLACE CHILDREN & PARENTS CENTRE,"62,101.35",NURSERY ED GRANT 3 AND 4 YR OLDS,GRANTS,2103827274,1000049952
29.02.2024,Children and Adults,REDACTED PERSONAL DATA,"61,548.00",CENTRAL COSTS - SEN,STATEMENTED FEES,2103834046,1000088860
16.02.2024,Children and Adults,ST GEORGES CE SCHOOL,"61,413.00",ST GEORGE'S CE PRIMARY SCHOOL,SCHOOLS CAPITATION,5902622763,5001000069
16.02.2024,Children and Adults,ST GEORGES RC SCHOOL,"61,405.00",ST GEORGE'S CATHEDRAL RC PRIMARY SCHOOL,SCHOOLS CAPITATION,5902622760,5001000068
16.02.2024,Children and Adults,SOUTHWARK INCLUSIVE LEARNING SERVICE,"61,379.00",SILS,HIGH NEEDS - TOP UP FUNDING,5902622818,5001000105
08.02.2024,Housing,SEVILLE DEVELOPMENTS LIMITED,"61,274.62",CAPITAL PS (HRA),CONSTRUCTION MAIN CONTRACT -CERTIFICATED,5902619902,1000090393
16.02.2024,Children and Adults,HOLLYDALE PRIMARY SCHOOL,"61,236.00",HOLLYDALE PRIMARY SCHOOL,SCHOOLS CAPITATION,5902622688,5001000036
08.02.2024,Housing,ARCHITECTURAL DECORATORS LTD,"60,948.62",CAPITAL PS (HRA),CONSTRUCTION MAIN CONTRACT -CERTIFICATED,2103820053,3000001065
16.02.2024,Children and Adults,COMBER GROVE PRIMARY SCHOOL,"60,920.00",COMBER GROVE PRIMARY SCHOOL,SCHOOLS CAPITATION,5902622656,5001000022
12.02.2024,Housing,LETTING INTERNATIONAL LTD,"60,613.94",PSL PLACEMENTS,EXTERNAL AGENCIES AND BODIES,5902621662,1000070102
12.02.2024,Children and Adults,HAYMERLE SCHOOL,"60,278.00",HAYMERLE PRIMARY SCHOOL,HIGH NEEDS - BASE FUNDING,5902621768,5001000045
21.02.2024,Finance,POST OFFICE LTD,"60,000.00",HOUSEHOLD SUPPORT GRANT,GRANTS,5902623430,1000087679
02.02.2024,Environment Neighbourhoods and Growth,BAYLIS LANDSCAPE CONTRACTORS LTD,"59,981.34",CAPITAL PS (REGEN),CONSTRUCTION FEES  - EXTERNAL,2103818077,3000001440
09.02.2024,Housing,WALWORTH HOMES LTD,"59,336.54",CAPITAL PS (HRA),CONSTRUCTION FEES  - EXTERNAL,5902621524,1000079197
06.02.2024,Housing,DIAMOND PROPERTY MANAGEMENT LTD,"59,294.85",NIGHTLY TA (NSC),EXTERNAL AGENCIES AND BODIES,5902620827,1000088789
22.02.2024,Strategy and Communities,LONDON COUNCILS,"59,259.50",LONDON COUNCILS,OTHER LOCAL AUTHORITIES,5902623650,11237079
16.02.2024,Environment Neighbourhoods and Growth,CONSTELLIA PUBLIC LIMITED,"59,018.76",CAPITAL PS (LEISURE),CONSTRUCTION FEES,5902622595,1000088137
27.02.2024,Children and Adults,AEGIS 24/7 LTD,"57,966.65",CHILDREN�S RESID,RESIDENTIAL CARE,2103830333,1000089533
10.02.2024,Housing,A & E ELKINS LTD,"57,877.41",CAPITAL PS (HRA),CONSTRUCTION MAIN CONTRACT -CERTIFICATED,2103820310,4012501
12.02.2024,Children and Adults,MCRAE RESIDENTIAL CARE SERVICES LTD,"57,745.56",CHILDREN�S RESID,RESIDENTIAL CARE,2103823427,1000050558
01.02.2024,Housing,SHARPE PRITCHARD LLP,"57,659.74",CAPITAL PS (HRA),CONSTRUCTION FEES - LEGAL,5902619488,1790085
09.02.2024,Housing,WALWORTH HOMES LTD,"57,521.58",CAPITAL PS (HRA),CONSTRUCTION FEES  - EXTERNAL,5902621523,1000079197
15.02.2024,Children and Adults,MINI TREASURES NURSERY,"57,317.40",NURSERY ED GRANT 3 AND 4 YR OLDS,GRANTS,2103827352,1000062250
12.02.2024,Children and Adults,ST JUDES CHURCH OF ENGLAND PRIMARY,"56,091.00",ST JUDE'S CE PRIMARY SCHOOL,SCHOOLS CAPITATION,5902621707,5001000019
05.02.2024,Children and Adults,RAYTELL ELECTRICAL CO LTD,"55,938.42",CAPITAL PS (EDUCATION),UTILITIES INSTALLATION,2103818356,4010552
08.02.2024,Housing,GUIDELINE LIFT SERVICES LTD,"55,689.97",GUIDELINE,I-WORLD CONTRACTORS HOLDING ACCOUNT,5902621378,1000064176
10.02.2024,Children and Adults,RAYTELL ELECTRICAL CO LTD,"54,644.18",CAPITAL PS (EDUCATION),UTILITIES INSTALLATION,2103820418,4010552
16.02.2024,Housing,BRIDGEWATER ROOFING CONTRACTORS LTD,"54,407.40",A&E ELKINS,I-WORLD CONTRACTORS HOLDING ACCOUNT,2103828129,3000001482
18.02.2024,Housing,BONDS BUILDERS AND CONTRACTORS LTD,"54,259.82",CAPITAL PS (HRA),CONSTRUCTION MAIN CONTRACT -CERTIFICATED,2103823488,3000002137
13.02.2024,Housing,TKC HOUSING LIMITED,"54,000.00",PSL PLACEMENTS,GRANTS,5902622175,1000088199
13.02.2024,Children and Adults,THE CHARTER SCHOOLS EDUCATIONAL TRUST,"53,400.35",FREE HEALTHY SCHOOL MEALS,EARLY YEARS - 3 AND 4 YEAR OLDS,2103826377,1000066949
12.02.2024,Children and Adults,BETHLEM & MAUDSLEY HOSPITAL SCHOOL,"53,333.00",MAUDSLEY & BETHLEM,HIGH NEEDS - BASE FUNDING,5902621684,5001000010
12.02.2024,Housing,CROMWOOD HOUSING,"53,142.50",NIGHTLY TA (NSC),EXTERNAL AGENCIES AND BODIES,5902621911,1000071450
16.02.2024,Children and Adults,SOUTHWARK INCLUSIVE LEARNING SERVICE,"52,774.00",SILS,HIGH NEEDS - BASE FUNDING,5902622817,5001000105
15.02.2024,Children and Adults,LITTLE RABBIT DAY NURSERY,"52,687.13",NURSERY ED GRANT 3 AND 4 YR OLDS,GRANTS,2103827343,1000084320
16.02.2024,Children and Adults,TUKE SCHOOL,"52,266.00",TUKE SCHOOL,HIGH NEEDS - BASE FUNDING,5902622810,5001000097
29.02.2024,Children and Adults,SOLACE CARE PARTNERS LTD,"51,873.96",CHILDREN�S RESID,RESIDENTIAL CARE,2103832732,1000090499
15.02.2024,Children and Adults,WATERGATE SCHOOL,"51,775.00",OTHER LA SPECIAL,STATEMENTED FEES,2103827229,1000081484
04.02.2024,Housing,BUILDING ASSOCIATES LTD,"51,354.72",CAPITAL PS (HRA),CONSTRUCTION MAIN CONTRACT,2103815830,3000002218
06.02.2024,Children and Adults,AGINCARE (SOUTHWARK) LIMITED,"50,738.69",PHY LTS 65+,RESIDENTIAL CARE,5902620934,1000089635
12.02.2024,Housing,A & E ELKINS LTD,"50,722.38",CAPITAL PS (HRA),CONSTRUCTION,2103823492,4012501
16.02.2024,Corporate,ZURICH MUNICIPAL (IMPREST ACCOUNT),"50,000.00",MOTOR RELATED INSURANCE,COMPENSATION,5902622546,1000079549
21.02.2024,Environment Neighbourhoods and Growth,THAMES REACH,"49,972.04",CHIEF EXECUTIVE'S OFFICE,EXTERNAL AGENCIES AND BODIES,5902623357,1723415
16.02.2024,Children and Adults,EVELINA HOSPITAL SCHOOL,"49,482.00",EVELINA HOSPITAL SCHOOL,HIGH NEEDS - TOP UP FUNDING,5902622678,5001000031
10.02.2024,Children and Adults,LONDON CARE LTD,"49,464.13",EXTRA CARE CONTRACT,HOMECARE - C&V,5902620524,1000003398
08.02.2024,Children and Adults,NHS SOUTH EAST LONDON CCG,"48,952.00",DIR OF ASC,PROFESSIONAL FEES,5902621361,1000085592
08.02.2024,Children and Adults,CAMBIAN GROUP LTD,"47,955.00",NMSS/ INDEP SPECIAL,STATEMENTED FEES,2103820400,1000077659
23.02.2024,Housing,BUILDTRUST LTD,"47,586.94",BUILD TRUST,I-WORLD CONTRACTORS HOLDING ACCOUNT,2103829553,3000002010
27.02.2024,Children and Adults,PCS SERVICES LIMITED,"47,164.00",CHILDREN�S RESID,RESIDENTIAL CARE,2103830322,1000087059
09.02.2024,Environment Neighbourhoods and Growth,STONEGROVE LIMITED,"46,859.90",CAPITAL PS (REGEN),CONSTRUCTION MAIN CONTRACT,2103818859,3000001525
16.02.2024,Children and Adults,PETER HILLS CE SCHOOL,"46,335.00",PETER HILLS CE PRIMARY SCHOOL,SCHOOLS CAPITATION,5902622720,5001000053
05.02.2024,DSO,BCS (ELECTRICAL & BUILDING SERVICES LTD),"46,300.63",ELECTRICAL TEAM,OTHER CONTRACTORS,5902620600,1000062321
19.02.2024,Housing,JUDGE AND PRIESTLEY SOLICITORS,"46,296.25",DISREPAIR,BUILDING R&M,5902623059,1472217
10.02.2024,Children and Adults,LONDON CARE LTD,"45,789.43",EXTRA CARE CONTRACT,HOMECARE - C&V,5902620487,1000003398
16.02.2024,Children and Adults,VICTORY SCHOOL,"45,780.00",VICTORY PRIMARY SCHOOL,SCHOOLS CAPITATION,5902622813,5001000098
07.02.2024,Environment Neighbourhoods and Growth,CABLE TEST LTD,"45,053.82",PUBLIC LIGHTING,OTHER CONTRACTORS,5902621191,1000079183
29.02.2024,Children and Adults,FLEET TUTORS,"45,013.00",AP & HOSPITAL SCHLS,STATEMENTED FEES,2103834044,1000044820
08.02.2024,Children and Adults,NORTHUMBERLAND COUNTY COUNCIL,"44,950.00",CHILDREN�S RESID,RESIDENTIAL CARE,2103820187,1000030424
15.02.2024,Children and Adults,LITTLE ME CANADA WATER LTD,"44,920.16",NURSERY ED GRANT 3 AND 4 YR OLDS,GRANTS,2103827341,1000083348
23.02.2024,Housing,K3 PROPERTY MANAGEMENT LTD,"44,890.00",NIGHTLY TA (NSC),EXTERNAL AGENCIES AND BODIES,5902623819,1000068219
12.02.2024,Children and Adults,CHERRY GARDEN SCHOOL,"44,777.00",CHERRY GARDEN PRIMARY SCHOOL,HIGH NEEDS - BASE FUNDING,5902621710,5001000020
12.02.2024,Children and Adults,BEORMUND PRIMARY SCHOOL,"44,500.00",BEORMUND PRIMARY SCHOOL,HIGH NEEDS - TOP UP FUNDING,5902621679,5001000008
15.02.2024,Children and Adults,REDRIFF PRIMARY SCHOOL,"44,428.05",NURSERY ED GRANT 3 AND 4 YR OLDS,GRANTS,2103827369,1000067877
15.02.2024,Children and Adults,1ST PLACE CHILDREN & PARENTS CENTRE,"44,325.53",NURSERY ED GRANT 3 AND 4 YR OLDS,GRANTS,2103827275,1000049952
12.02.2024,Children and Adults,EVELINA HOSPITAL SCHOOL,"44,167.00",EVELINA HOSPITAL SCHOOL,HIGH NEEDS - BASE FUNDING,5902621734,5001000031
12.02.2024,Children and Adults,LONDON RESIDENTIAL HEALTHCARE LTD,"44,116.02",PHY LTS 18-64,NURSING PLACEMENTS FEES,2103822300,1000030895
29.02.2024,Children and Adults,THE GROVE CHILDRENS CENTRE,"44,016.85",NURSERY ED GRANT 3 AND 4 YR OLDS,EARLY YEARS - 3 AND 4 YEAR OLDS,2103832080,5001000090
23.02.2024,Housing,K3 PROPERTY MANAGEMENT LTD,"43,848.00",NIGHTLY TA (NSC),EXTERNAL AGENCIES AND BODIES,5902623824,1000068219
16.02.2024,Children and Adults,ST MARY MAGDALENE CE SCHOOL,"43,716.00",ST MARY MAGDALENE CE PRIMARY SCHOOL,SCHOOLS CAPITATION,5902622790,5001000080
10.02.2024,Children and Adults,LONDON CARE LTD,"43,688.81",EXTRA CARE CONTRACT,HOMECARE - C&V,5902620522,1000003398
15.02.2024,Children and Adults,SURREY SQUARE PRIMARY SCHOOL,"43,669.43",NURSERY ED GRANT 3 AND 4 YR OLDS,GRANTS,2103827387,1000082648
15.02.2024,Children and Adults,CHARLES DICKENS PRIMARY SCHOOL,"43,608.83",NURSERY ED GRANT 3 AND 4 YR OLDS,GRANTS,2103827297,1000085158
15.02.2024,Children and Adults,BLAK DIAMOND SOCIAL CARE LTD,"43,465.14",SEMI-IND LAC 16-17,EXTERNAL AGENCIES AND BODIES,2103827906,1000090161
23.02.2024,Governance and Assurance,CORPORATE DOCUMENT SERVICES LTD,"43,376.97",REPAIR AND MAINTENANCE SERVICES,PRINTING,5902623849,11324274
21.02.2024,Environment Neighbourhoods and Growth,RENAISI LTD,"43,261.55",CHIEF EXECUTIVE'S OFFICE,EXTERNAL AGENCIES AND BODIES,5902623484,1000022051
10.02.2024,Environment Neighbourhoods and Growth,METIS CONSULTANTS LIMITED,"43,258.59",STREETS FOR PEOPLE - WALKING,CONSULTANTS SERVICES,5902620631,1000086330
10.02.2024,Housing,A & E ELKINS LTD,"42,854.64",CAPITAL PS (HRA),CONSTRUCTION,2103818350,4012501
29.02.2024,Housing,STENFORD PROPERTY LTD,"42,840.25",NIGHTLY TA (NSC),EXTERNAL AGENCIES AND BODIES,5902624744,1000074759
02.02.2024,Housing,STENFORD PROPERTY LTD,"42,509.25",NIGHTLY TA (NSC),EXTERNAL AGENCIES AND BODIES,5902620473,1000074759
23.02.2024,Children and Adults,AGINCARE (SOUTHWARK) LIMITED,"42,455.07",REABLEMENT BEDS,FURNITURE PURCHASE & REPAIR,5902623886,1000089635
15.02.2024,Children and Adults,LITTLE ACORNS DAY NURSERY,"41,989.35",NURSERY ED GRANT 3 AND 4 YR OLDS,GRANTS,2103827334,1000015844
07.02.2024,Environment Neighbourhoods and Growth,LONDON COUNCILS,"41,934.17",ALG ACCOUNT,PROFESSIONAL FEES,5902621234,11237079
15.02.2024,Children and Adults,LOGICOUS LTD,"41,747.78",NURSERY ED GRANT 3 AND 4 YR OLDS,GRANTS,2103827284,1000073852
11.02.2024,Housing,SEVILLE DEVELOPMENTS LIMITED,"41,641.51",CAPITAL PS (HRA),CONSTRUCTION MAIN CONTRACT -CERTIFICATED,5902621469,1000090393
15.02.2024,Children and Adults,LONDON EARLY YEARS FOUNDATION,"41,334.45",NURSERY ED GRANT 3 AND 4 YR OLDS,GRANTS,2103827290,1000077919
16.02.2024,Children and Adults,ST JOSEPHS CATHOLIC INFANTS SCHOOL,"41,128.00",ST JOSEPHS RC INFANT(5204),SCHOOLS CAPITATION,5902622649,5001000018
02.02.2024,Children and Adults,CEDAR HOUSE (KENT) LTD,"40,395.21",CHILDREN�S RESID,RESIDENTIAL CARE,2103818161,1000090433
16.02.2024,Children and Adults,HAYMERLE SCHOOL,"40,182.00",HAYMERLE PRIMARY SCHOOL,HIGH NEEDS - BASE FUNDING,5902622708,5001000045
16.02.2024,Environment Neighbourhoods and Growth,PECAN LTD,"40,084.00",CHIEF EXECUTIVE'S OFFICE,EXTERNAL AGENCIES AND BODIES,5902621246,11263114
24.02.2024,Environment Neighbourhoods and Growth,KNOX BHAVAN ARCHITECTS LLP,"39,884.46",CAPITAL PS (REGEN),CONSTRUCTION FEES - ARCHITECT,5902623483,1000088675
15.02.2024,Children and Adults,CHARTER SCHOOLS EDUCATIONAL TRUST T/A LYNDHURST PRIMARY SCHOOL,"39,640.88",NURSERY ED GRANT 3 AND 4 YR OLDS,GRANTS,2103827345,1000086766
05.02.2024,Environment Neighbourhoods and Growth,ESTATE LIGHTING SOLUTIONS LTD,"39,498.50",PUBLIC LIGHTING,OTHER CONTRACTORS,2103818353,3000002130
29.02.2024,Children and Adults,COMBER GROVE PRIMARY SCHOOL,"39,067.00",DSG FUNDING - SAFETY VALVE,SCHOOLS CAPITATION,2103833905,5001000022
10.02.2024,Environment Neighbourhoods and Growth,METIS CONSULTANTS LIMITED,"38,929.97",CAPITAL PS (LEISURE),CONSTRUCTION FEES - ARCHITECT,5902620407,1000086330
20.02.2024,Housing,KENT COUNTY COUNCIL - LASER,"38,276.04",RESIDENT SERVICES BUSINESS SUPPORT,ELECTRICITY,5902623199,1000012926
08.02.2024,Housing,SALTASH ENTERPRISES LTD,"38,028.21",CAPITAL PS (HRA),CONSTRUCTION MAIN CONTRACT -CERTIFICATED,2103820052,4013605
23.02.2024,Environment Neighbourhoods and Growth,SALIX MECHANICAL SERVICES LLP,"38,024.00",CAPITAL PS (LEISURE),"PLANT, MACHINERY & EQUIPMENT ACQUISITION",5902623758,1000088961
18.02.2024,Housing,NIBLOCK (BUILDERS) LTD,"37,980.83",CAPITAL PS (HRA),CONSTRUCTION MAIN CONTRACT -CERTIFICATED,2103823493,3000000235
15.02.2024,Children and Adults,DULWICH OAKS MONTESSORI NURSERY SCHOOL,"37,755.53",NURSERY ED GRANT 3 AND 4 YR OLDS,GRANTS,2103827303,1000070726
16.02.2024,Children and Adults,ST JUDES CHURCH OF ENGLAND PRIMARY,"37,395.00",ST JUDE'S CE PRIMARY SCHOOL,SCHOOLS CAPITATION,5902622651,5001000019
08.02.2024,Strategy and Communities,GRANICUS-FIRMSTEP LTD,"36,867.60",MEDIA & E-COMMUNICATIONS,OFFICE EXPENSES,5902620728,1000078094
08.02.2024,Children and Adults,LONDON BOROUGH OF HAMMERSMITH & FULHAM,"36,849.43",OTHER LA SPECIAL,STATEMENTED FEES,2103820414,1000047234
12.02.2024,Governance and Assurance,MACMUNNIS LIMITED,"36,748.00",CFM OPERATIONAL BUDGET,SOFTWARE,5902621987,1000086846
14.02.2024,Environment Neighbourhoods and Growth,ST GILES TRUST,"36,727.10",CHIEF EXECUTIVE'S OFFICE,EXTERNAL AGENCIES AND BODIES,5902622338,1013828
13.02.2024,Finance,NEC SOFTWARE SOLUTIONS UK LTD,"36,429.00",ADMINISTRATIVE SUPPORT,POSTAGES,5902622221,1000087043
27.02.2024,Environment Neighbourhoods and Growth,NATIONWIDE ACCOMMODATION,"36,366.60",NO RECOURSE TO PUBLIC FUNDS,ACCOMMODATION CHARGES,5902624130,1000076112
28.02.2024,Children and Adults,CHAILEY HERITAGE FOUNDATION,"36,362.67",NMSS/ INDEP SPECIAL,STATEMENTED FEES,2103830544,1000045082
06.02.2024,Children and Adults,BLAK DIAMOND SOCIAL CARE LTD,"36,358.57",SEMI-IND LAC 16-17,EXTERNAL AGENCIES AND BODIES,2103818588,1000090161
15.02.2024,Children and Adults,SMART START NURSERY,"36,294.00",NURSERY ED GRANT 3 AND 4 YR OLDS,GRANTS,2103827377,1000056317
03.02.2024,Environment Neighbourhoods and Growth,F M CONWAY LTD,"36,137.21",CAPITAL PS (LEISURE),CONSTRUCTION,2103817901,4001384
16.02.2024,Finance,JON MILLER IT LTD,"36,000.00",CAPITAL PS (STRAT SERV),ICT ACQUISITION,5902621506,1000088937
29.02.2024,Children and Adults,THE ST THOMAS THE APOSTLE COLLEGE,"35,958.00",YPLA SCHL SIXTH FORM,SCHOOLS CAPITATION,2103831886,5001000074
08.02.2024,Housing,ARCHITECTURAL DECORATORS LTD,"35,841.83",CAPITAL PS (HRA),CONSTRUCTION MAIN CONTRACT -CERTIFICATED,2103820076,3000001065
06.02.2024,Children and Adults,UK POWER NETWORKS (OPERATIONS) LTD,"35,810.10",CAPITAL PS (EDUCATION),UTILITIES INSTALLATION,2103818820,3000000340
16.02.2024,Housing,FRANKLYN SHAW ASSOCIATES LTD,"35,727.53",FRANKLIN SHAW ASSOCIATES,I-WORLD CONTRACTORS HOLDING ACCOUNT,2103828475,3000001465
19.02.2024,Housing,FRANKLYN SHAW ASSOCIATES LTD,"35,727.53",FRANKLIN SHAW ASSOCIATES,I-WORLD CONTRACTORS HOLDING ACCOUNT,2103828477,3000001465
16.02.2024,Children and Adults,BETHLEM & MAUDSLEY HOSPITAL SCHOOL,"35,559.00",MAUDSLEY & BETHLEM,HIGH NEEDS - BASE FUNDING,5902622629,5001000010
08.02.2024,Housing,ARCHITECTURAL DECORATORS LTD,"35,557.36",CAPITAL PS (HRA),CONSTRUCTION MAIN CONTRACT -CERTIFICATED,2103820313,3000001065
29.02.2024,Children and Adults,HSB ENGINEERING INSURANCE SERVICES,"35,488.36",DIRECTOR OF EDUCATION,PROPERTY INSURANCE COSTS,5902624538,1000089047
07.02.2024,Housing,RSM RISK ASSURANCE SERVICES LLP,"35,455.00",GENERAL HOLDING AC,PROFESSIONAL FEES,5902621124,1000050690
10.02.2024,Environment Neighbourhoods and Growth,C S G (USHERS) LTD,"35,395.00",TREES TERM CONTRACT,TREE MAINTENANCE,5902620738,1000073203
01.02.2024,Children and Adults,REDACTED PERSONAL DATA,"35,167.86",SEMI-IND CARELEAVERS,OTHER PAYMENTS FOR CLIENTS,2103818255,1000084982
28.02.2024,Housing,NIBLOCK (BUILDERS) LTD,"34,760.14",CAPITAL PS (HRA),LAND & BUILDINGS ACQUISITION FEES,5902624421,1000088153
15.02.2024,Children and Adults,1ST PLACE CHILDREN & PARENTS CENTRE,"34,551.98",NURSERY ED GRANT 3 AND 4 YR OLDS,GRANTS,2103827276,1000049952
08.02.2024,Children and Adults,LOOK AHEAD CARE AND SUPPORT LTD,"34,522.86",S75 SUPHSG SCH LBS LEAD,EXTERNAL AGENCIES AND BODIES,5902619435,1000047299
02.02.2024,Children and Adults,OAKLEY HOUSE (KENT) LIMITED,"34,370.14",CHILDREN�S RESID,RESIDENTIAL CARE,2103818159,1000090039
29.02.2024,Children and Adults,REDACTED PERSONAL DATA,"34,365.00",CENTRAL COSTS - SEN,STATEMENTED FEES,2103834045,1000088860
21.02.2024,Environment Neighbourhoods and Growth,THAMES REACH,"34,265.18",CHIEF EXECUTIVE'S OFFICE,EXTERNAL AGENCIES AND BODIES,5902623358,1723415
08.02.2024,Children and Adults,Rise Adaptations Ltd,"34,200.00",CAPITAL PS (SOC SERV),CONSTRUCTION FEES - ARCHITECT,2103820308,3000002270
06.02.2024,Finance,FAMILY FUND TRADING LTD,"34,094.94",SESS,OTHER PAYMENTS FOR CLIENTS,5902620988,1000071092
13.02.2024,Housing,DMS PROPERTIES SERVICES LTD,"34,067.25",NIGHTLY TA (NSC),EXTERNAL AGENCIES AND BODIES,5902622141,1000081522
13.02.2024,Children and Adults,REDRIFF PRIMARY SCHOOL,"34,007.95",FREE HEALTHY SCHOOL MEALS,EARLY YEARS - 3 AND 4 YEAR OLDS,2103826384,1000067877
02.02.2024,Environment Neighbourhoods and Growth,PEL UK RENTALS LTD,"33,600.00",STREET CLEANSING,STREET CLEANSING CONTRACT,5902620537,1000090202
13.02.2024,Housing,GUILDMORE LTD,"33,192.60",CAPITAL PS (HRA),CONSTRUCTION MAIN CONTRACT -CERTIFICATED,2103826561,3000002150
27.02.2024,Children and Adults,NETPEX LTD CORPORATE SERVICES,"33,170.00",CHILDREN�S RESID,RESIDENTIAL CARE,2103830324,1000076073
23.02.2024,Housing,IEG4 LIMITED,"33,000.00",MSHO,SOFTWARE,5902623804,1000083899
20.02.2024,Environment Neighbourhoods and Growth,HM PRISON & PROBATION SERVICE,"32,940.00",RADAR-IOM,GRANTS,5902623226,1000083827
15.02.2024,Children and Adults,S R C COMMUNITY NURSERY,"32,885.70",NURSERY ED GRANT 3 AND 4 YR OLDS,GRANTS,2103827380,1414681
13.02.2024,Children and Adults,THE BELHAM PRIMARY SCHOOL,"32,770.32",FREE HEALTHY SCHOOL MEALS,EARLY YEARS - 3 AND 4 YEAR OLDS,2103826389,1000080044
10.02.2024,Finance,FAMILY FUND TRADING LTD,"32,765.40",SESS,OTHER PAYMENTS FOR CLIENTS,5902621090,1000071092
22.02.2024,Housing,IHS GLOBAL LTD,"32,731.65",ENG CONTRACTS,SUBSCRIPTIONS,5902623661,1000053404
21.02.2024,Environment Neighbourhoods and Growth,SITTARA LTD,"32,097.00",NO RECOURSE TO PUBLIC FUNDS,ACCOMMODATION CHARGES,5902623507,1000080857
23.02.2024,Children and Adults,THE COMPLETE WORKS INDEPENDENT SCHOOL,"32,065.00",INDEP MAINSTREAM,STATEMENTED FEES,2103829758,1000033256
24.02.2024,Environment Neighbourhoods and Growth,KENT COUNTY COUNCIL - LASER,"31,631.35",THE CASTLE CENTRE,GAS,5902623225,1000012926
13.02.2024,Environment Neighbourhoods and Growth,BRESLIN CONSTRUCTION LTD,"31,580.00",CAPITAL PS (REGEN),CONSTRUCTION SITE COSTS,2103825640,3000001948
15.02.2024,Children and Adults,LITTLE JUNGLE (U.K.) LIMITED,"31,560.30",NURSERY ED GRANT 3 AND 4 YR OLDS,GRANTS,2103827340,1000067064
14.02.2024,Environment Neighbourhoods and Growth,ST GILES TRUST,"31,548.71",CHIEF EXECUTIVE'S OFFICE,EXTERNAL AGENCIES AND BODIES,5902622332,1013828
11.02.2024,Children and Adults,SOUTHSIDE PARTNERSHIP LTD,"31,213.98",S75 SUPHSG SCH LBS LEAD,EXTERNAL AGENCIES AND BODIES,5902620750,1716624
06.02.2024,Environment Neighbourhoods and Growth,PROPERTYPLACEBOOK LTD,"31,164.00",NO RECOURSE TO PUBLIC FUNDS,ACCOMMODATION CHARGES,5902620772,1000077817
29.02.2024,Children and Adults,FLEET TUTORS,"31,106.00",AP & HOSPITAL SCHLS,STATEMENTED FEES,2103834041,1000044820
13.02.2024,Children and Adults,JUDITH KERR PRIMARY SCHOOL,"31,041.37",FREE HEALTHY SCHOOL MEALS,EARLY YEARS - 3 AND 4 YEAR OLDS,2103826382,1000073200
15.02.2024,Children and Adults,LILIES DAY NURSERY,"30,795.15",NURSERY ED GRANT 3 AND 4 YR OLDS,GRANTS,2103827333,1000078155
12.02.2024,Children and Adults,DULWICH WOOD CHILDRENS CENTRE,"30,639.00",DULWICH WOOD NURSERY SCHOOL,EARLY YEARS - 3 AND 4 YEAR OLDS,5902621881,5001000099
12.02.2024,Children and Adults,SPECTRA CARE LTD,"30,590.00",LD LTS 18-64,SUPPORTED LIVING,2103822361,1000086280
20.02.2024,Housing,KENT COUNTY COUNCIL - LASER,"30,459.83",RESIDENT SERVICES BUSINESS SUPPORT,ELECTRICITY,5902623198,1000012926
02.02.2024,Housing,BISHOPSGATE LAW LTD,"30,000.00",CAPITAL PS (HRA),CAPITAL GRANTS,2103818272,1000083055
12.02.2024,Housing,SARACENS SOLICITORS LTD,"30,000.00",CAPITAL PS (HRA),CAPITAL GRANTS,2103820051,1000090640
23.02.2024,Housing,PARIS SMITH LLP,"30,000.00",CAPITAL PS (HRA),CAPITAL GRANTS,2103829751,1000008059
08.02.2024,Children and Adults,CHANGE GROW LIVE SERVICES LTD,"30,000.00",ROUGH SLEEPERS SM,OTHER CONTRACTORS,5902621118,1000082721
17.02.2024,Housing,SOUTHWARK CITIZENS ADVICE,"30,000.00",RESIDENTS PARTICIPATION FUND,GRANTS,5902622572,1874379
21.02.2024,Children and Adults,ICE CREATES LTD,"29,950.00",STOP SMOKING,EXTERNAL AGENCIES AND BODIES,5902623285,1000087665
03.02.2024,Finance,BDO LLP,"29,936.08",INTERNAL AUDIT CONTRACTS,PAYMENTS FOR FINANCIAL SERVICES,5902620266,1000057898
28.02.2024,Environment Neighbourhoods and Growth,KENT COUNTY COUNCIL - LASER,"29,727.19",PECKHAM PULSE LEISURE CENTRE,ELECTRICITY,5902624301,1000012926
22.02.2024,Environment Neighbourhoods and Growth,BOUYGUES (UK) LTD,"29,717.08",CAPITAL PS (REGEN),CONSTRUCTION MAIN CONTRACT -CERTIFICATED,2103828481,3000002179
16.02.2024,Children and Adults,BEORMUND PRIMARY SCHOOL,"29,667.00",BEORMUND PRIMARY SCHOOL,HIGH NEEDS - TOP UP FUNDING,5902622624,5001000008
15.02.2024,Children and Adults,LONDON EARLY YEARS FOUNDATION,"29,652.73",NURSERY ED GRANT 3 AND 4 YR OLDS,GRANTS,2103827360,1000077919
29.02.2024,Children and Adults,FLEET TUTORS,"29,480.00",AP & HOSPITAL SCHLS,STATEMENTED FEES,2103834040,1000044820
23.02.2024,Housing,SPOKEMEAD MAINTENANCE LTD,"29,448.77",PAYMENTS CONTROL ACCOUNT - SPOKEMEAD,I-WORLD CONTRACTORS HOLDING ACCOUNT,2103829552,4002791
16.02.2024,Children and Adults,EVELINA HOSPITAL SCHOOL,"29,441.00",EVELINA HOSPITAL SCHOOL,HIGH NEEDS - BASE FUNDING,5902622677,5001000031
29.02.2024,Housing,DURKAN LTD,"29,261.94",CAPITAL PS (HRA),CONSTRUCTION MAIN CONTRACT -CERTIFICATED,2103832709,3000000960
01.02.2024,Environment Neighbourhoods and Growth,KENT COUNTY COUNCIL - LASER,"29,196.29",PECKHAM PULSE LEISURE CENTRE,ELECTRICITY,5902620082,1000012926
12.02.2024,Children and Adults,BEORMUND PRIMARY SCHOOL,"29,167.00",BEORMUND PRIMARY SCHOOL,HIGH NEEDS - BASE FUNDING,5902621678,5001000008
07.02.2024,Housing,RSM RISK ASSURANCE SERVICES LLP,"29,043.00",GF SUPPORT SERVICES,PROFESSIONAL FEES,5902621154,1000050690
05.02.2024,Environment Neighbourhoods and Growth,METIS CONSULTANTS LIMITED,"28,910.00",CAPITAL PS (LEISURE),CONSTRUCTION FEES - ARCHITECT,5902620569,1000086330
27.02.2024,Housing,KINDLY PROPERTIES LTD,"28,890.50",NIGHTLY TA (NSC),EXTERNAL AGENCIES AND BODIES,5902624247,1000060734
22.02.2024,Environment Neighbourhoods and Growth,DIAMOND PROPERTY MANAGEMENT LTD,"28,876.50",NO RECOURSE TO PUBLIC FUNDS,ACCOMMODATION CHARGES,5902623548,1000088789
02.02.2024,Children and Adults,INTERPRETING DIRECT CO (UK) LTD,"28,866.00",CENTRAL SUPPORT,INTERPRETING SERVICES,5902620554,1000070133
28.02.2024,Finance,CLUTTONS LLP,"28,850.00",TOOLEY STREET MOVE DEVELOPMENT CONTROL,PROFESSIONAL FEES,5902624455,1000028140
22.02.2024,Children and Adults,THE KENNEDY AND ELLIOTT PARTNERSHIP,"28,800.00",CHILDREN�S RESID,RESIDENTIAL CARE,2103829384,1000089711
26.02.2024,Finance,EMERGING TALENT PROGRAMME,"28,800.00",STRATEGIC APPLICATIONS,PROFESSIONAL FEES,5902624009,1000089510
13.02.2024,Children and Adults,COUNTRY COURT CARE HOMES 2 LTD,"28,782.00",PHY LTS 65+,RESIDENTIAL CARE,5902622050,1000080172
12.02.2024,Children and Adults,PRIORS COURT SERVICES LTD,"28,745.21",NMSS/ INDEP SPECIAL,STATEMENTED FEES,2103823498,1000085127
06.02.2024,Children and Adults,FEARON & CO SOLICITORS,"28,726.11",APPOINTEESHIPS,OTHER PAYMENTS FOR CLIENTS,2103819992,1000090725
06.02.2024,Children and Adults,FEARON & CO SOLICITORS,"28,726.11",APPOINTEESHIPS,OTHER PAYMENTS FOR CLIENTS,2103820008,1000090725
07.02.2024,Children and Adults,FEARON & CO SOLICITORS,"28,726.11",APPOINTEESHIPS,OTHER PAYMENTS FOR CLIENTS,2103820015,1000090725
15.02.2024,Children and Adults,ROCKINGHAM COMMUNITY DAY NURSERY,"28,720.88",NURSERY ED GRANT 3 AND 4 YR OLDS,GRANTS,2103827370,1095826
14.02.2024,Environment Neighbourhoods and Growth,ST GILES TRUST,"28,696.11",CHIEF EXECUTIVE'S OFFICE,EXTERNAL AGENCIES AND BODIES,5902622342,1013828
16.02.2024,Environment Neighbourhoods and Growth,DAVETHEDOG COMMUNICATIONS LTD,"28,675.00",CAPITAL PS (LEISURE),"PLANT, MACHINERY & EQUIPMENT ACQUISITION",5902622823,1000090633
22.02.2024,Housing,NATIONWIDE ACCOMMODATION,"28,658.00",TA PLACEMENTS,EXTERNAL AGENCIES AND BODIES,5902623638,1000076112
15.02.2024,Children and Adults,LITTLE BEARS 4 LMITED T/A LITTLE BEARS IN ELEPHANT CENTRE,"28,608.10",NURSERY ED GRANT 3 AND 4 YR OLDS,GRANTS,2103827338,1000082505
08.02.2024,Housing,EASYMOVE EA LIMITED,"28,580.27",PSL PLACEMENTS,EXTERNAL AGENCIES AND BODIES,5902621394,1000066859
13.02.2024,Children and Adults,ALEXANDRA ROSE CHARITY,"28,500.00",HEALTHY WEIGHT,EXTERNAL AGENCIES AND BODIES,5902622196,1000089616
10.02.2024,Environment Neighbourhoods and Growth,C S G (USHERS) LTD,"28,457.00",TREES TERM CONTRACT,TREE MAINTENANCE,5902620740,1000073203
15.02.2024,Children and Adults,ST. JOSEPH'S RC PRIMARY SCHOOL,"28,276.65",NURSERY ED GRANT 3 AND 4 YR OLDS,GRANTS,2103827382,1000089163
15.02.2024,Children and Adults,JOHN DONNE PRIMARY SCHOOL,"27,980.78",NURSERY ED GRANT 3 AND 4 YR OLDS,GRANTS,2103827325,1000073253
11.02.2024,Housing,SALVATION ARMY HOUSING ASSOCIATION,"27,964.24",DAVID BARKER HOSTEL,EXTERNAL AGENCIES AND BODIES,5902621009,1000089956
08.02.2024,Housing,APEX HOUSING SOLUTIONS LTD,"27,924.20",NIGHTLY TA (NSC),EXTERNAL AGENCIES AND BODIES,5902621298,1000079786
29.02.2024,Children and Adults,ICF CONSULTING SERVICES LTD,"27,875.00",PUBLIC HEALTH FHSM,EXTERNAL AGENCIES AND BODIES,5902624730,1000088204
12.02.2024,Children and Adults,PRIORS COURT SERVICES LTD,"27,790.26",NMSS/ INDEP SPECIAL,STATEMENTED FEES,2103823499,1000085127
21.02.2024,Environment Neighbourhoods and Growth,ETC SPORTS SURFACES LTD,"27,790.00",CAPITAL PS (LEISURE),CONSTRUCTION,2103829310,3000001845
05.02.2024,Environment Neighbourhoods and Growth,ETC SPORTS SURFACES LTD,"27,790.00",CAPITAL PS (LEISURE),CONSTRUCTION,5902620710,3000001845
29.02.2024,Children and Adults,FLEET TUTORS,"27,487.74",AP & HOSPITAL SCHLS,STATEMENTED FEES,2103834037,1000044820
19.02.2024,Housing,RS REAL ESTATE LTD,"27,388.50",NIGHTLY TA (NSC),EXTERNAL AGENCIES AND BODIES,5902623045,1000072485
15.02.2024,Children and Adults,SUCCESS ASSOCIATES LIMITED,"27,340.50",NURSERY ED GRANT 3 AND 4 YR OLDS,GRANTS,2103827332,1000060300
13.02.2024,Children and Adults,GREENVALE SCHOOL,"27,340.48",OTHER LA SPECIAL,STATEMENTED FEES,2103826553,1000047086
15.02.2024,Children and Adults,INTEGRATED FOSTERING SERVICES LTD,"27,226.99",FRIENDS & FAMILY FOSTERING,EXTERNAL AGENCIES AND BODIES,2103828047,1000082605
13.02.2024,Children and Adults,WEST HEATH SCHOOL,"27,216.00",NMSS/ INDEP SPECIAL,STATEMENTED FEES,2103826330,1000018362
13.02.2024,Children and Adults,CHARTER SCHOOLS EDUCATIONAL TRUST T/A LYNDHURST PRIMARY SCHOOL,"27,068.99",FREE HEALTHY SCHOOL MEALS,EARLY YEARS - 3 AND 4 YEAR OLDS,2103826383,1000086766
15.02.2024,Children and Adults,KATTZ (YH) LTD,"26,991.42",RESID PARENT ASSESS,RESIDENTIAL CARE,2103827889,1000090473
15.02.2024,Children and Adults,DULWICH MONTESSORI NURSERY SCHOOL,"26,764.66",NURSERY ED GRANT 3 AND 4 YR OLDS,GRANTS,2103827302,1000020859
19.02.2024,Housing,1ST ACE SECURITY LTD,"26,476.80",LAKANAL (TENANCY),SECURITY SERVICES,5902623053,1000006992
13.02.2024,Children and Adults,HARRIS PRIMARY ACADEMY EAST DULWICH,"26,468.99",FREE HEALTHY SCHOOL MEALS,EARLY YEARS - 3 AND 4 YEAR OLDS,2103826366,1000080271
24.02.2024,Governance and Assurance,KENT COUNTY COUNCIL - LASER,"26,397.58",160 TOOLEY ST.,GAS,5902623810,1000012926
26.02.2024,Children and Adults,CENMAC,"26,330.25",AP & HOSPITAL SCHLS,STATEMENTED FEES,2103829814,1000042131
15.02.2024,Children and Adults,LONDON EARLY YEARS FOUNDATION,"26,307.60",NURSERY ED GRANT 3 AND 4 YR OLDS,GRANTS,2103827321,1000077919
26.02.2024,Children and Adults,CENMAC,"26,292.75",AP & HOSPITAL SCHLS,STATEMENTED FEES,2103829813,1000042131
15.02.2024,Children and Adults,SMART KIDS DAY NURSERY LTD,"26,176.20",NURSERY ED GRANT 3 AND 4 YR OLDS,GRANTS,2103827376,1000074580
06.02.2024,Children and Adults,PCS SERVICES LIMITED,"26,022.00",CHILDREN�S RESID,RESIDENTIAL CARE,2103818619,1000087059
27.02.2024,Children and Adults,TUTELAGE CARE GROUP LTD,"25,950.59",CHILDREN�S RESID,RESIDENTIAL CARE,2103830323,1000088232
15.02.2024,Children and Adults,TUTELAGE CARE GROUP LTD,"25,944.00",CHILDREN�S RESID,RESIDENTIAL CARE,2103828052,1000088232
07.02.2024,Children and Adults,NORTHSTAR NEW SCHOOL,"25,920.75",NMSS/ INDEP SPECIAL,STATEMENTED FEES,2103819952,1000085863
15.02.2024,Children and Adults,LONDON EARLY YEARS FOUNDATION,"25,700.45",NURSERY ED GRANT 3 AND 4 YR OLDS,GRANTS,2103827292,1000077919
29.02.2024,Children and Adults,FLEET TUTORS,"25,690.00",AP & HOSPITAL SCHLS,STATEMENTED FEES,2103834039,1000044820
15.02.2024,Children and Adults,PIPLINGS NURSERY,"25,684.20",NURSERY ED GRANT 3 AND 4 YR OLDS,GRANTS,2103827362,1000070644
14.02.2024,Environment Neighbourhoods and Growth,SALTASH ENTERPRISES LTD,"25,683.45",CAPITAL PS (LEISURE),CONST'N MAIN CONTRACT - NON CERTIFICATED,2103826562,4013605
15.02.2024,Children and Adults,PLAYDAYS UK LTD,"25,639.88",NURSERY ED GRANT 3 AND 4 YR OLDS,GRANTS,2103827375,11210767
14.02.2024,Environment Neighbourhoods and Growth,ST GILES TRUST,"25,639.78",CHIEF EXECUTIVE'S OFFICE,EXTERNAL AGENCIES AND BODIES,5902622343,1013828
15.02.2024,Children and Adults,INTEGRATED FOSTERING SERVICES LTD,"25,597.01",FRIENDS & FAMILY FOSTERING,EXTERNAL AGENCIES AND BODIES,2103828049,1000082605
26.02.2024,Housing,SK HOUSING LTD,"25,590.20",NIGHTLY TA (NSC),EXTERNAL AGENCIES AND BODIES,5902624059,1000070716
13.02.2024,Housing,STEF & PHILIPS LTD,"25,555.00",NIGHTLY TA (NSC),EXTERNAL AGENCIES AND BODIES,5902622080,1000088522
15.02.2024,Children and Adults,LONDON EARLY YEARS FOUNDATION,"25,525.97",NURSERY ED GRANT 3 AND 4 YR OLDS,GRANTS,2103827378,1000077919
13.02.2024,Children and Adults,HATS GROUP LTD,"25,514.84",SCH TRANS � TRAVEL,CAB FARES,5902622202,1000042743
15.02.2024,Children and Adults,GOOSE GREEN PRIMARY AND NURSERY SCHOOL,"25,497.90",NURSERY ED GRANT 3 AND 4 YR OLDS,GRANTS,2103827319,1000070613
07.02.2024,Children and Adults,PRIORS COURT SERVICES LTD,"25,442.27",DISABILITIES LAC,RESIDENTIAL CARE,2103819094,1000085127
02.02.2024,Children and Adults,OWNLIFE RESIDENTIAL LTD,"25,242.86",CHILDREN�S RESID,RESIDENTIAL CARE,2103818171,1000085398
08.02.2024,Children and Adults,THURLOW EDUCATIONAL TRUST,"25,200.00",INDEP MAINSTREAM,STATEMENTED FEES,2103820392,1000090395
19.02.2024,Housing,DUCTCLEAN (UK) LTD,"25,067.72",DUCTCLEAN,I-WORLD CONTRACTORS HOLDING ACCOUNT,2103828479,3000001635
27.02.2024,Children and Adults,CHILDHOOD FIRST,"25,014.57",CHILDREN�S RESID,RESIDENTIAL CARE,2103830326,1000076330
02.02.2024,Children and Adults,PECAN LTD,"25,000.00",SUSTAINABLE FOOD,MEMBERS' TRAINING,5902620433,11263114
29.02.2024,Children and Adults,SOUTHWARK INCLUSIVE LEARNING SERVICE,"24,974.00",SILS,EARLY YEARS - 3 AND 4 YEAR OLDS,2103832225,5001000105
29.02.2024,DSO,SPECTRA-GLAZE SERVICES,"24,681.85",SR COMMUNAL - DELIVERY TEAM,OTHER CONTRACTORS,5902624574,1000077605
21.02.2024,Finance,INFOSYS LIMITED,"24,570.00",TECHNOLOGY TRANSFORMATION,SOFTWARE,5902623434,1000088973
23.02.2024,Children and Adults,CORAL SUPPORT AND CRISIS INTERVENTION SERVICE,"24,528.00",FAMILY ASSESSMENTS,RESIDENTIAL CARE,2103829574,1000081529
17.02.2024,Children and Adults,FAITHFUL & GOULD,"24,507.99",CAPITAL PS (EDUCATION),CONSTRUCTION FEES,5902621891,1000061390
15.02.2024,Children and Adults,THE FRUIT TREE DAY NURSERY,"24,280.13",NURSERY ED GRANT 3 AND 4 YR OLDS,GRANTS,2103827390,1000072492
29.02.2024,Children and Adults,THE FRUIT TREE DAY NURSERY,"24,280.13",NURSERY ED GRANT 3 AND 4 YR OLDS,GRANTS,2103831500,1000072492
15.02.2024,Housing,STEF & PHILIPS LTD,"24,220.00",NIGHTLY TA (NSC),EXTERNAL AGENCIES AND BODIES,5902622454,1000088522
20.02.2024,Environment Neighbourhoods and Growth,HM PRISON & PROBATION SERVICE,"24,205.00",SOUTHWARK ANTI VIOLENCE UNIT,GRANTS,5902623226,1000083827
12.02.2024,Housing,LONDON CARE LTD,"24,115.86",CAPITAL PS (HRA),CONSTRUCTION MAIN CONTRACT -CERTIFICATED,5902620793,1000003398
29.02.2024,Children and Adults,THE ST THOMAS THE APOSTLE COLLEGE,"24,081.00",COVID-19 SCHOOLS GRANTS,SCHOOLS CAPITATION,2103831906,5001000074
29.02.2024,Children and Adults,TUTELAGE CARE HARTLEY LTD,"24,075.04",CHILDREN�S RESID,RESIDENTIAL CARE,2103832731,1000088664
20.02.2024,Environment Neighbourhoods and Growth,HOMELY HOUSING LETS LTD,"23,774.52",NO RECOURSE TO PUBLIC FUNDS,ACCOMMODATION CHARGES,5902623261,1000050013
12.02.2024,Children and Adults,A&R CARE LTD,"23,712.00",MEM LTS 65+,OTHER PAYMENTS FOR CLIENTS,2103822443,1000088532
12.02.2024,Children and Adults,DULWICH WOOD CHILDRENS CENTRE,"23,571.00",DULWICH WOOD NURSERY SCHOOL,EARLY YEARS - 3 AND 4 YEAR OLDS,5902621882,5001000099
25.02.2024,Environment Neighbourhoods and Growth,JAAM AUTOMATION LTD,"23,460.90",PROJECT SUPPORT,SOFTWARE,5902623223,1000087571
26.02.2024,Environment Neighbourhoods and Growth,KENT COUNTY COUNCIL - LASER,"23,426.12",THE CASTLE CENTRE,ELECTRICITY,5902624065,1000012926
29.02.2024,Children and Adults,TRINITY CHILD CARE,"23,404.50",NURSERY ED GRANT 3 AND 4 YR OLDS,GRANTS,2103834032,1151305
15.02.2024,Children and Adults,MAGIC ROUNDABOUT NURSERIES LTD,"23,356.58",NURSERY ED GRANT 3 AND 4 YR OLDS,GRANTS,2103827347,1000045128
10.02.2024,Environment Neighbourhoods and Growth,METIS CONSULTANTS LIMITED,"23,334.00",CAPITAL PS (LEISURE),CONSTRUCTION FEES - ARCHITECT,5902621180,1000086330
02.02.2024,Children and Adults,BLANDFORD HOUSE UK LTD,"23,330.00",DISABILITIES LAC,EXTERNAL AGENCIES AND BODIES,2103818252,1000088662
21.02.2024,Environment Neighbourhoods and Growth,LEE VALLEY REGIONAL PARK AUTHORITY,"23,113.31",LEE VALLEY LEVY,LEVIES,5902623359,11020407
28.02.2024,Finance,CAPITA BUSINESS SERVICES LTD,"23,086.86",CAPITA,OTHER CONTRACTORS,5902624523,1000006291
15.02.2024,Children and Adults,EAST DULWICH GROVE NURSERY LTD,"23,067.23",NURSERY ED GRANT 3 AND 4 YR OLDS,GRANTS,2103827307,1000077140
15.02.2024,Children and Adults,MIATA EDUCATIONAL SERVICES LTD,"23,020.95",NURSERY ED GRANT 3 AND 4 YR OLDS,GRANTS,2103827306,1000003741
29.02.2024,Children and Adults,MOOR HOUSE SCHOOL & COLLEGE,"23,013.67",NMSS/ INDEP SPECIAL,STATEMENTED FEES,2103834042,1000080062
15.02.2024,Children and Adults,JUDITH KERR PRIMARY SCHOOL,"22,932.90",NURSERY ED GRANT 3 AND 4 YR OLDS,GRANTS,2103827328,1000073200
22.02.2024,Environment Neighbourhoods and Growth,C L ROADMARKINGS LTD,"22,842.00",ENGINEERING CRAFTS,OTHER CONTRACTORS,2103829331,3000000825
28.02.2024,Environment Neighbourhoods and Growth,TAAKSVALE HOUSING LTD,"22,838.75",NO RECOURSE TO PUBLIC FUNDS,ACCOMMODATION CHARGES,5902624459,1000073665
14.02.2024,Children and Adults,WALWORTH GARDEN LTD,"22,815.00",ADULT SKILLS BUDGET,GRANTS,5902622255,1000042204
09.02.2024,Children and Adults,CRESSEY OASIS EDUCATION LTD,"22,803.82",NMSS/ INDEP SPECIAL,STATEMENTED FEES,2103822051,1000068133
09.02.2024,Children and Adults,RIVERSTON SCHOOL,"22,796.00",INDEP MAINSTREAM,STATEMENTED FEES,2103822035,11213696
08.02.2024,Environment Neighbourhoods and Growth,ORTON ELECTRICAL SERVICES LIMITED,"22,671.31",CAPITAL PS (REGEN),CONSTRUCTION FEES  - EXTERNAL,5902620213,1000090749
15.02.2024,Children and Adults,EXCEL CHILD CARE SERVICES LTD,"22,517.70",NURSERY ED GRANT 3 AND 4 YR OLDS,GRANTS,2103827310,1000060429
15.02.2024,Children and Adults,KATTZ (YH) LTD,"22,484.57",RESID PARENT ASSESS,RESIDENTIAL CARE,2103827890,1000090473
15.02.2024,Children and Adults,ROTHERHITHE PRIMARY SCHOOL,"22,466.10",NURSERY ED GRANT 3 AND 4 YR OLDS,GRANTS,2103827372,1000089862
29.02.2024,Governance and Assurance,TABRIS LTD,"22,450.00",ILM COSTS,TRAINING,5902624672,1000080027
29.02.2024,Children and Adults,SOUTHWARK PARK PRIMARY SCHOOL,"22,406.18",NURSERY ED GRANT 3 AND 4 YR OLDS,EARLY YEARS - 3 AND 4 YEAR OLDS,2103832094,5001000062
12.02.2024,Children and Adults,JOHN RUSKIN PRIMARY SCHOOL,"22,169.00",NURSERY ED GRANT 3 AND 4 YR OLDS,EARLY YEARS - 3 AND 4 YEAR OLDS,5902621756,5001000040
23.02.2024,Children and Adults,CORAL SUPPORT AND CRISIS INTERVENTION SERVICE,"22,137.60",FAMILY ASSESSMENTS,RESIDENTIAL CARE,2103829572,1000081529
15.02.2024,Children and Adults,HARRIS PRIMARY ACADEMY PECKHAM PARK,"22,039.43",NURSERY ED GRANT 3 AND 4 YR OLDS,GRANTS,2103827323,1000068029
12.02.2024,Children and Adults,THE GROVE CHILDRENS CENTRE,"21,996.00",THE GROVE NURSERY SCHOOL,EARLY YEARS - 3 AND 4 YEAR OLDS,5902621868,5001000090
22.02.2024,Environment Neighbourhoods and Growth,SALIX MECHANICAL SERVICES LLP,"21,985.00",CAPITAL PS (LEISURE),"PLANT, MACHINERY & EQUIPMENT ACQUISITION",5902623636,1000088961
23.02.2024,Environment Neighbourhoods and Growth,ZFA ACCOMMODATION LTD,"21,966.00",NO RECOURSE TO PUBLIC FUNDS,ACCOMMODATION CHARGES,5902623818,1000082620
02.02.2024,Housing,NIBLOCK (BUILDERS) LTD,"21,963.33",CAPITAL PS (HRA),CONSTRUCTION MAIN CONTRACT -CERTIFICATED,2103814878,3000000235
15.02.2024,Children and Adults,NICKI DAY NURSERY LTD,"21,873.90",NURSERY ED GRANT 3 AND 4 YR OLDS,GRANTS,2103827358,1000045363
12.02.2024,Children and Adults,HC-ONE LTD (TOWER BRIDGE CARE HOME),"21,804.26",PHY LTS 65+,"MAND STATUTORY CHARGES, NURSING",2103822944,1000067670
23.02.2024,Environment Neighbourhoods and Growth,CITYGLEN LTD,"21,793.10",NO RECOURSE TO PUBLIC FUNDS,ACCOMMODATION CHARGES,5902623805,1000026239
08.02.2024,Housing,ARCHITECTURAL DECORATORS LTD,"21,712.21",CAPITAL PS (HRA),CONSTRUCTION MAIN CONTRACT -CERTIFICATED,2103820314,3000001065
13.02.2024,Children and Adults,REDACTED PERSONAL DATA,"21,700.00",CHILDREN�S RESID,RESIDENTIAL CARE,2103826518,1000057909
15.02.2024,Children and Adults,BRIGHT EXPLORERS DAY NURSERY,"21,685.28",NURSERY ED GRANT 3 AND 4 YR OLDS,GRANTS,2103827289,1000074268
23.02.2024,Governance and Assurance,KENT COUNTY COUNCIL - LASER,"21,683.55",QUEENS RD 1 (BLOCK F),ELECTRICITY,5902623796,1000012926
09.02.2024,Environment Neighbourhoods and Growth,METIS CONSULTANTS LIMITED,"21,666.67",FLOOD RISK MANAGEMENT,HIGHWAYS TERM CONTRACT,5902621474,1000086330
29.02.2024,Corporate,PHOENIX PRIMARY SCHOOL,"21,637.61",EDUCATION VAT INPUTS,VAT CONTROL ACCOUNT,2103832292,5001000032
15.02.2024,Children and Adults,BLOSSOM LOWER SCHOOL,"21,561.04",NMSS/ INDEP SPECIAL,STATEMENTED FEES,2103828062,1000040002
24.02.2024,Environment Neighbourhoods and Growth,KENT COUNTY COUNCIL - LASER,"21,430.07",DULWICH LEISURE CENTRE,GAS,5902623221,1000012926
15.02.2024,Children and Adults,THE BEECHES NURSERY GROUP LTD,"21,358.13",NURSERY ED GRANT 3 AND 4 YR OLDS,GRANTS,2103827312,11215743
15.02.2024,Children and Adults,CTY NURSERY LTD,"21,330.53",NURSERY ED GRANT 3 AND 4 YR OLDS,GRANTS,2103827299,1000063131
19.02.2024,Environment Neighbourhoods and Growth,ESCAPE FITNESS LIMITED,"21,281.26",LEISURE INSOURCING MOBILISATION COST,EQUIPMENT PURCHASE & REPAIR,5902622046,1000090334
15.02.2024,Children and Adults,MINI TREASURES NURSERY,"21,203.10",NURSERY ED GRANT 3 AND 4 YR OLDS,GRANTS,2103827353,1000062250
13.02.2024,Children and Adults,REDACTED PERSONAL DATA,"21,200.00",CHILDREN�S RESID,RESIDENTIAL CARE,2103826519,1000057909
16.02.2024,Children and Adults,CHERRY GARDEN SCHOOL,"21,166.00",CHERRY GARDEN PRIMARY SCHOOL,HIGH NEEDS - BASE FUNDING,5902622654,5001000020
15.02.2024,Children and Adults,GALAXY EXPLORERS DAY NURSERY LIMITED,"21,151.95",NURSERY ED GRANT 3 AND 4 YR OLDS,GRANTS,2103827314,1000085260
29.02.2024,Corporate,ALBION PRIMARY SCHOOL,"21,088.85",EDUCATION VAT INPUTS,VAT CONTROL ACCOUNT,2103832323,5001000000
29.02.2024,DSO,BUDMAX CONSTRUCTION LTD,"21,087.23",SR COMMUNAL - DELIVERY TEAM,OTHER CONTRACTORS,2103831602,3000001936
13.02.2024,Children and Adults,CHARLES DICKENS PRIMARY SCHOOL,"21,082.14",FREE HEALTHY SCHOOL MEALS,EARLY YEARS - 3 AND 4 YEAR OLDS,2103826375,1000085158
02.02.2024,Environment Neighbourhoods and Growth,KENT COUNTY COUNCIL - LASER,"21,037.47",SDM BUDGET,ELECTRICITY,5902619824,1000012926
06.02.2024,Finance,IMPROVEMENT AND DEVELOPMENT AGENCY,"21,000.00",CIPFA TRAINEES,TRAINING,5902620814,1000017731
09.02.2024,Children and Adults,WANDSWORTH COUNCIL,"20,886.20",OTHER LA SPECIAL,STATEMENTED FEES,2103822033,1000020692
29.02.2024,DSO,J KASH LTD,"20,838.83",DAMP & MOULD TEAM,OTHER CONTRACTORS,2103831606,3000002219
14.02.2024,Housing,HANNE & CO SOLICITORS LLP,"20,833.33",DISREPAIR,PAYMENTS FOR LEGAL SERVICES,2103826583,1000017312
27.02.2024,Children and Adults,STRIDES CHILDCARE SERVICES LTD,"20,694.26",CHILDREN�S RESID,RESIDENTIAL CARE,2103830332,1000090771
12.02.2024,Children and Adults,HESLEY GROUP LIMITED,"20,642.16",LD LTS 18-64,SUPPORTED LIVING,2103822556,1000089729
29.02.2024,DSO,SANDERSONS BUILDING SERVICES LTD,"20,549.58",SR - VOIDS TEAM,OTHER CONTRACTORS,2103831591,3000002065
06.02.2024,Housing,NOTTING HILL HOUSING TRUST,"20,479.55",HYDE/AMICUS AND HALS,EXTERNAL AGENCIES AND BODIES,5902620987,1000043205
04.02.2024,Corporate,HITACHI SOLUTIONS EUROPE LIMITED,"20,475.00",ONE-OFF NNDR LEVY RELEASE,MEDICAL / HEALTH & SAFETY SERVICES,5902620086,1000084180
28.02.2024,Children and Adults,WITHERSLACK GROUP LIMITED,"20,443.87",NMSS/ INDEP SPECIAL,STATEMENTED FEES,2103830536,1000090098
28.02.2024,Children and Adults,WITHERSLACK GROUP LIMITED,"20,443.87",NMSS/ INDEP SPECIAL,STATEMENTED FEES,2103830538,1000090098
16.02.2024,Children and Adults,DULWICH WOOD CHILDRENS CENTRE,"20,420.00",DULWICH WOOD NURSERY SCHOOL,EARLY YEARS - 3 AND 4 YEAR OLDS,5902622815,5001000099
12.02.2024,Children and Adults,BESSEMER GRANGE PRIMARY SCHOOL,"20,411.00",NURSERY ED GRANT 3 AND 4 YR OLDS,EARLY YEARS - 3 AND 4 YEAR OLDS,5902621680,5001000009
02.02.2024,Corporate,SCOTTISH EQUITABLE PLC,"20,379.66",A. V. C. TO OTHER PENSION,PAYROLL CREDITORS - EXTERNAL AVCS (LOCAL GOVT),2103818078,1000026367
27.02.2024,Children and Adults,ROCKSTEADY CARE LTD,"20,366.67",CHILDREN�S RESID,RESIDENTIAL CARE,2103830334,1000089573
15.02.2024,Children and Adults,DULWICH VILLAGE PRE-SCHOOL,"20,360.25",NURSERY ED GRANT 3 AND 4 YR OLDS,GRANTS,2103827304,11171932
29.02.2024,Children and Adults,DULWICH WOOD CHILDRENS CENTRE,"20,359.58",DULWICH WOOD NURSERY SCHOOL,EARLY YEARS - 3 AND 4 YEAR OLDS,2103832078,5001000099
08.02.2024,Environment Neighbourhoods and Growth,TYCO INTEGRATED FIRE & SECURITY,"20,354.00",SMALL WORKS,PROFESSIONAL FEES,5902620580,1000077948
08.02.2024,Environment Neighbourhoods and Growth,TYCO INTEGRATED FIRE & SECURITY,"20,351.66",SMALL WORKS,PROFESSIONAL FEES,5902620581,1000077948
25.02.2024,Finance,RIVERSIDE PARENTS & CARERS ASSN,"20,272.03",E&C ARTS,GRANTS,5902623121,1000060478
26.02.2024,Environment Neighbourhoods and Growth,ASD LIGHTING PLC,"20,177.64",PUBLIC LIGHTING,MATERIALS,5902623964,1000079671
15.02.2024,Children and Adults,LITTLE FINGERS MONTESSORI NURSERY LTD,"20,166.30",NURSERY ED GRANT 3 AND 4 YR OLDS,GRANTS,2103827339,1000073415
27.02.2024,Children and Adults,HEADSTART RESIDENTIAL CARE LIMITED,"20,092.94",CHILDREN�S RESID,RESIDENTIAL CARE,2103830331,1000088836
11.02.2024,Housing,TEATREE PROPERTY LIMITED,"20,084.00",NIGHTLY TA (NSC),EXTERNAL AGENCIES AND BODIES,5902621551,1000089741
24.02.2024,Environment Neighbourhoods and Growth,KENT COUNTY COUNCIL - LASER,"20,020.24",PECKHAM PULSE LEISURE CENTRE,GAS,5902623224,1000012926
12.02.2024,Environment Neighbourhoods and Growth,GREATER LONDON AUTHORITY,"20,000.00",BUSINESS SUPPORT,SOFTWARE,5902620871,1000015827
18.02.2024,Finance,FAMILY FUND TRADING LTD,"20,000.00",SESS,OTHER PAYMENTS FOR CLIENTS,5902622038,1000071092
14.02.2024,Housing,COMMONPLACE DIGITAL LTD,"20,000.00",DEVELOPMENT DELIVERY,PROFESSIONAL FEES,5902622242,1000078121
19.02.2024,Environment Neighbourhoods and Growth,LONDON WASTE & RECYCLING BOARD,"20,000.00",SOUTHWARK PIONEER FUND,GRANTS,5902622283,1000089554
21.02.2024,Environment Neighbourhoods and Growth,COTTRELL AND VERMEULEN ARCH LTD,"20,000.00",CAPITAL PS (REGEN),CONSTRUCTION FEES - ARCHITECT,5902623471,1000012119
13.02.2024,Children and Adults,NASH COLLEGE,"19,994.07",SPECIALIST POST-16,STATEMENTED FEES,2103826332,1000062581
27.02.2024,Children and Adults,THE CALDECOTT FOUNDATION,"19,989.28",CHILDREN�S RESID,RESIDENTIAL CARE,2103830325,1000074757
09.02.2024,Children and Adults,CHANNELS & CHOICES FOSTERING LTD,"19,800.00",CHILDREN�S RESID,RESIDENTIAL CARE,2103820782,1000052855
29.02.2024,Children and Adults,INTERPRETING DIRECT CO (UK) LTD,"19,746.00",CENTRAL SUPPORT,INTERPRETING SERVICES,5902624533,1000070133
07.02.2024,Children and Adults,LEWISHAM AND GREENWICH NHS TRUST,"19,658.34",SEXUAL HEALTH - STI,MEDICAL / HEALTH & SAFETY SERVICES,5902616868,1000076183
12.02.2024,Children and Adults,GOODRICH PRIMARY SCHOOL,"19,625.00",NURSERY ED GRANT 3 AND 4 YR OLDS,EARLY YEARS - 3 AND 4 YEAR OLDS,5902621724,5001000028
23.02.2024,Housing,PRB ESTATES LTD,"19,616.72",TA HOSTELS,BUILDING R&M,2103829554,3000001691
13.02.2024,Children and Adults,WEST HEATH SCHOOL,"19,600.00",NMSS/ INDEP SPECIAL,STATEMENTED FEES,2103826331,1000018362
15.02.2024,Children and Adults,BIG N ALL PRESCHOOL AND DAY NURSERY,"19,592.40",NURSERY ED GRANT 3 AND 4 YR OLDS,GRANTS,2103827286,1000089398
06.02.2024,Children and Adults,HIGHVIEW CARE LTD,"19,485.67",CHILDREN�S RESID,RESIDENTIAL CARE,2103818618,1000089728
16.02.2024,Children and Adults,BEORMUND PRIMARY SCHOOL,"19,441.00",BEORMUND PRIMARY SCHOOL,HIGH NEEDS - BASE FUNDING,5902622623,5001000008
08.02.2024,Children and Adults,CHIPTECH INTERNATIONAL LIMITED,"19,440.00",TELECARE EQUIPMENT,EQUIPMENT PURCHASE & REPAIR,5902621454,1000088502
14.02.2024,Children and Adults,SPRING COMMUNITY HUB,"19,440.00",HOLIDAY ACTIVITIES & FOOD,EXTERNAL AGENCIES AND BODIES,5902622306,1000083089
28.02.2024,Environment Neighbourhoods and Growth,KENT COUNTY COUNCIL - LASER,"19,353.35",CAMBERWELL LEISURE CENTRE,GAS,5902624283,1000012926
10.02.2024,Children and Adults,LONDON CARE LTD,"19,323.36",TRANSFORMING COM E,HOMECARE - C&V,5902620488,1000003398
28.02.2024,Children and Adults,WITHERSLACK GROUP LIMITED,"19,263.38",NMSS/ INDEP SPECIAL,STATEMENTED FEES,2103830537,1000090098
28.02.2024,Children and Adults,WITHERSLACK GROUP LIMITED,"19,263.38",NMSS/ INDEP SPECIAL,STATEMENTED FEES,2103830539,1000090098
15.02.2024,Children and Adults,T4 TRUST T/A IAN MIKARDO HIGH SCHOO,"19,230.77",OTHER LA SPECIAL,STATEMENTED FEES,2103827269,1000090796
15.02.2024,Children and Adults,T4 TRUST T/A IAN MIKARDO HIGH SCHOO,"19,230.77",OTHER LA SPECIAL,STATEMENTED FEES,2103827270,1000090796
08.02.2024,Housing,WRAYBURN COMMUNITIES ORGANISATION LTD,"19,203.25",WRAYBURN TMO,M&M ALLOWANCE CO-OPS,5902621328,1000078477
09.02.2024,Children and Adults,REDACTED PERSONAL DATA,"19,119.09",LD LTS 18-64,PAYMENTS TO CLIENTS (DIRECT PAYMENTS),2103822020,1000090740
08.02.2024,Environment Neighbourhoods and Growth,J C CONSULTANT SERVICES LTD,"19,112.00",SOUTHWARK ANTI VIOLENCE UNIT,GRANTS,5902621373,1000042476
14.02.2024,Strategy and Communities,PRIVATE PUBLIC LTD,"18,993.75",CORPORATE & DEPARTMENTAL EXPENDITURE,CONSULTANTS SERVICES,5902622256,1000081569
12.02.2024,Children and Adults,THE GROVE CHILDRENS CENTRE,"18,943.00",THE GROVE NURSERY SCHOOL,EARLY YEARS - 3 AND 4 YEAR OLDS,5902621869,5001000090
29.02.2024,Finance,DIGNITY FUNERALS LTD,"18,900.00",CORONER'S,OTHER CONTRACTORS,5902624711,1000041373
06.02.2024,Children and Adults,WESTGATE LIFESTYLE PROJECT LTD,"18,821.34",CHILDREN�S RESID,RESIDENTIAL CARE,2103818620,1000089215
12.02.2024,Children and Adults,THE BEECHES UK LTD,"18,776.88",LD LTS 18-64,SUPPORTED LIVING,2103823091,1000083173
08.02.2024,Housing,BRYHILL TECHNICAL SERVICES,"18,762.83",DISREPAIR,BUILDING R&M,2103820316,3000001722
12.02.2024,Children and Adults,JOHN RUSKIN PRIMARY SCHOOL,"18,750.00",LBS MAINSTREAM,HIGH NEEDS - TOP UP FUNDING,5902621761,5001000040
29.02.2024,Children and Adults,ST SAVIOURS & ST OLAVES SCHOOL,"18,699.00",COVID-19 SCHOOLS GRANTS,SCHOOLS CAPITATION,2103831922,5001000084
27.02.2024,Children and Adults,LIONCARE LIMITED,"18,652.39",CHILDREN�S RESID,RESIDENTIAL CARE,2103830329,1000065330
28.02.2024,Children and Adults,KENT COUNTY COUNCIL,"18,649.42",OTHER LA SPECIAL,STATEMENTED FEES,2103830577,1000053817
12.02.2024,Children and Adults,ALWAYS INCLUSIVE LTD,"18,620.00",LD LTS 18-64,SUPPORTED LIVING,2103823042,1000088268
07.02.2024,Finance,INFOSYS LIMITED,"18,589.00",CAPITAL PS (STRAT SERV),ICT ACQUISITION,5902621264,1000088973
15.02.2024,Finance,LONDON BRIDGE BUSINESS IMPROVEMENT,"18,566.82",TEAM LONDON BRIDGE,EXTERNAL AGENCIES AND BODIES,5902621227,1000050879
12.02.2024,Children and Adults,POSITIVE SOLUTIONS KENT,"18,550.72",LD LTS 18-64,RESIDENTIAL CARE,2103823122,1000090389
15.02.2024,Children and Adults,HALFMOON MONTESSORI NURSERY,"18,516.22",NURSERY ED GRANT 3 AND 4 YR OLDS,GRANTS,2103827322,11219161
29.02.2024,Children and Adults,ST SAVIOURS & ST OLAVES SCHOOL,"18,358.33",YPLA SCHL SIXTH FORM,SCHOOLS CAPITATION,2103831887,5001000084
15.02.2024,Children and Adults,JOHN KEATS PRIMARY SCHOOL,"18,330.53",NURSERY ED GRANT 3 AND 4 YR OLDS,GRANTS,2103827326,1000082645
15.02.2024,Children and Adults,PURPLE JAY LIMITED,"18,327.38",NURSERY ED GRANT 3 AND 4 YR OLDS,GRANTS,2103827367,1000087821
08.02.2024,Housing,BETHEL ROCK LTD,"18,303.97",PSL PLACEMENTS,EXTERNAL AGENCIES AND BODIES,5902621301,1000080864
08.02.2024,Children and Adults,ARCO ACADEMY,"18,280.60",AC & FREE - MSTREAM,STATEMENTED FEES,2103820393,1000080706
02.02.2024,Children and Adults,KEYS PCE LTD,"18,240.00",CHILDREN�S RESID,RESIDENTIAL CARE,2103818169,1000080090
29.02.2024,Children and Adults,KEYS PCE LTD,"18,240.00",CHILDREN�S RESID,RESIDENTIAL CARE,2103831869,1000080090
19.02.2024,Housing,DUCTCLEAN (UK) LTD,"18,190.32",DUCTCLEAN,I-WORLD CONTRACTORS HOLDING ACCOUNT,2103828478,3000001635
13.02.2024,Children and Adults,ST. JOSEPH'S RC PRIMARY SCHOOL,"18,130.03",FREE HEALTHY SCHOOL MEALS,EARLY YEARS - 3 AND 4 YEAR OLDS,2103826386,1000089163
09.02.2024,Environment Neighbourhoods and Growth,CONSTELLIA PUBLIC LIMITED,"18,123.36",CAPITAL PS (LEISURE),CONSTRUCTION FEES,5902621482,1000088137
02.02.2024,Environment Neighbourhoods and Growth,F M CONWAY LTD,"18,103.01",CAPITAL PS (LEISURE),CONSTRUCTION,2103818146,4001384
29.02.2024,Environment Neighbourhoods and Growth,FACULTATIEVE TECHNOLOGIES LTD,"18,097.75",CREMATORIUM,PLANNED MAINTENANCE,5902624647,1000077525
15.02.2024,Children and Adults,BLOSSOM LOWER SCHOOL,"18,069.38",NMSS/ INDEP SPECIAL,STATEMENTED FEES,2103828060,1000040002
09.02.2024,Children and Adults,REDACTED PERSONAL DATA,"18,051.12",LD LTS 18-64,PAYMENTS TO CLIENTS (DIRECT PAYMENTS),2103821399,1000087411
15.02.2024,Children and Adults,SUNHILL DAYCARE (EUROPE) LIMITED,"18,042.08",NURSERY ED GRANT 3 AND 4 YR OLDS,GRANTS,2103827385,1000083945
12.02.2024,Children and Adults,DRUMBEAT DOWNHAM SCHOOL,"17,845.83",OTHER LA SPECIAL,STATEMENTED FEES,2103823500,1000072258
08.02.2024,Environment Neighbourhoods and Growth,SOPHIA LOONEY ASSOCIATES LTD,"17,825.00",STRATEGIC DIRECTOR'S OFFICE E AND L,CONSULTANTS SERVICES,5902621289,1000089094
29.02.2024,Corporate,CAMELOT PRIMARY SCHOOL,"17,822.77",EDUCATION VAT INPUTS,VAT CONTROL ACCOUNT,2103832247,5001000014
23.02.2024,Environment Neighbourhoods and Growth,FABRIKAT (NOTTINGHAM) LTD,"17,620.40",PUBLIC LIGHTING,MATERIALS,5902623821,1036223
02.02.2024,Environment Neighbourhoods and Growth,SHERGROUP LTD,"17,592.00",CAPITAL PS (REGEN),CONSTRUCTION FEES,5902620172,1000087977
15.02.2024,Children and Adults,FOUNTAIN CHILDRENS CENTRE LIMITED,"17,531.40",NURSERY ED GRANT 3 AND 4 YR OLDS,GRANTS,2103827313,1000042265
08.02.2024,Children and Adults,ACCESS MOBILITY TRANSPORT LTD,"17,522.30",SCH TRANS � TRAVEL,CAB FARES,5902621362,1000074637
13.02.2024,Children and Adults,ANGEL OAK ACADEMY,"17,521.35",FREE HEALTHY SCHOOL MEALS,EARLY YEARS - 3 AND 4 YEAR OLDS,2103826373,1000075379
13.02.2024,Children and Adults,HIGHSHORE SCHOOL,"17,500.00",LBS SPECIAL AND HOSP SCHLS,HIGH NEEDS - BASE FUNDING,2103826365,5001000046
08.02.2024,Children and Adults,CAPITA BUSINESS SERVICES LTD,"17,500.00",C&AS SOFTWARE APPS,SOFTWARE,5902621441,1000006291
23.02.2024,Children and Adults,THE COMPLETE WORKS INDEPENDENT SCHOOL,"17,470.00",INDEP MAINSTREAM,STATEMENTED FEES,2103829772,1000033256
23.02.2024,Children and Adults,THE COMPLETE WORKS INDEPENDENT SCHOOL,"17,470.00",INDEP MAINSTREAM,STATEMENTED FEES,2103829773,1000033256
23.02.2024,Children and Adults,THE COMPLETE WORKS INDEPENDENT SCHOOL,"17,470.00",INDEP MAINSTREAM,STATEMENTED FEES,2103829774,1000033256
23.02.2024,Children and Adults,THE COMPLETE WORKS INDEPENDENT SCHOOL,"17,470.00",INDEP MAINSTREAM,STATEMENTED FEES,2103829775,1000033256
23.02.2024,Children and Adults,THE COMPLETE WORKS INDEPENDENT SCHOOL,"17,470.00",INDEP MAINSTREAM,STATEMENTED FEES,2103829776,1000033256
23.02.2024,Children and Adults,THE COMPLETE WORKS INDEPENDENT SCHOOL,"17,470.00",INDEP MAINSTREAM,STATEMENTED FEES,2103829777,1000033256
23.02.2024,Children and Adults,THE COMPLETE WORKS INDEPENDENT SCHOOL,"17,470.00",INDEP MAINSTREAM,STATEMENTED FEES,2103829778,1000033256
23.02.2024,Children and Adults,THE COMPLETE WORKS INDEPENDENT SCHOOL,"17,470.00",INDEP MAINSTREAM,STATEMENTED FEES,2103829779,1000033256
23.02.2024,Children and Adults,THE COMPLETE WORKS INDEPENDENT SCHOOL,"17,470.00",INDEP MAINSTREAM,STATEMENTED FEES,2103829780,1000033256
23.02.2024,Children and Adults,THE COMPLETE WORKS INDEPENDENT SCHOOL,"17,470.00",INDEP MAINSTREAM,STATEMENTED FEES,2103829781,1000033256
23.02.2024,Children and Adults,THE COMPLETE WORKS INDEPENDENT SCHOOL,"17,470.00",INDEP MAINSTREAM,STATEMENTED FEES,2103829782,1000033256
12.02.2024,Children and Adults,ROSEDENE NURSING HOME,"17,468.80",LD LTS 18-64,RESIDENTIAL CARE,2103822261,1163215
15.02.2024,Children and Adults,FIRST CHOICE DAY NURSERY,"17,421.68",NURSERY ED GRANT 3 AND 4 YR OLDS,GRANTS,2103827273,1000075368
16.02.2024,Environment Neighbourhoods and Growth,ASD LIGHTING PLC,"17,405.18",PUBLIC LIGHTING,MATERIALS,5902622927,1000079671
02.02.2024,Children and Adults,KEYS PCE LTD,"17,380.00",CHILDREN�S RESID,RESIDENTIAL CARE,2103818167,1000080090
29.02.2024,Children and Adults,KEYS PCE LTD,"17,380.00",CHILDREN�S RESID,RESIDENTIAL CARE,2103831868,1000080090
12.02.2024,Children and Adults,RYE OAK PRIMARY SCHOOL,"17,333.00",LBS RB / SEN UNIT,HIGH NEEDS - TOP UP FUNDING,5902621803,5001000059
12.02.2024,Children and Adults,ALBION PRIMARY SCHOOL,"17,329.00",NURSERY ED GRANT 3 AND 4 YR OLDS,EARLY YEARS - 3 AND 4 YEAR OLDS,5902621666,5001000000
12.02.2024,Children and Adults,DIAGRAMA HEALTH CARE,"17,304.64",LD LTS 18-64,RESIDENTIAL CARE,2103822324,1000075492
28.02.2024,Environment Neighbourhoods and Growth,KENT COUNTY COUNCIL - LASER,"17,275.08",CAMBERWELL LEISURE CENTRE,ELECTRICITY,5902624267,1000012926
29.02.2024,Housing,LTA DIRECT LTD,"17,149.51",PSL PLACEMENTS,EXTERNAL AGENCIES AND BODIES,5902624570,1000085314
02.02.2024,Children and Adults,SPECTRA CARE LTD,"17,137.12",DISABILITIES LAC,EXTERNAL AGENCIES AND BODIES,2103818253,1000086280
02.02.2024,Children and Adults,SPECTRA CARE LTD,"17,137.12",DISABILITIES LAC,EXTERNAL AGENCIES AND BODIES,2103818254,1000086280
27.02.2024,Children and Adults,SPECTRA CARE LTD,"17,137.12",DISABILITIES LAC,EXTERNAL AGENCIES AND BODIES,2103830381,1000086280
14.02.2024,Housing,DSI BILLING SERVICES LTD,"17,124.44",OPERATIONAL TEAM,POSTAGES,5902622227,1000058640
08.02.2024,Children and Adults,CORAM VOICE,"16,960.64",P & R CARE TEAM,EXTERNAL AGENCIES AND BODIES,5902621467,1000076392
29.02.2024,Corporate,DULWICH WOOD PRIMARY SCHOOL,"16,921.40",EDUCATION VAT INPUTS,VAT CONTROL ACCOUNT,2103832318,5001000042
28.02.2024,Children and Adults,PARKWOOD HALL CO-OPERATIVE ACADEMY,"16,900.00",OTHER LA SPECIAL,STATEMENTED FEES,2103830545,1000077451
23.02.2024,Housing,NIBLOCK (BUILDERS) LTD,"16,852.35",CAPITAL PS (HRA),CONSTRUCTION MAIN CONTRACT -CERTIFICATED,2103829549,3000000235
13.02.2024,Children and Adults,HARRIS PRIMARY ACADEMY PECKHAM PARK,"16,801.08",FREE HEALTHY SCHOOL MEALS,EARLY YEARS - 3 AND 4 YEAR OLDS,2103826379,1000068029
15.02.2024,Children and Adults,K & O CHILDCARE LTD,"16,778.83",NURSERY ED GRANT 3 AND 4 YR OLDS,GRANTS,2103827329,1000065113
13.02.2024,Children and Adults,BRUNSWICK PARK PRIMARY SCHOOL,"16,760.55",FREE HEALTHY SCHOOL MEALS,EARLY YEARS - 3 AND 4 YEAR OLDS,2103826367,5001000013
23.02.2024,Children and Adults,THE COMPLETE WORKS INDEPENDENT SCHOOL,"16,758.60",INDEP MAINSTREAM,STATEMENTED FEES,2103829755,1000033256
23.02.2024,Children and Adults,THE COMPLETE WORKS INDEPENDENT SCHOOL,"16,758.60",INDEP MAINSTREAM,STATEMENTED FEES,2103829756,1000033256
23.02.2024,Children and Adults,THE COMPLETE WORKS INDEPENDENT SCHOOL,"16,758.60",INDEP MAINSTREAM,STATEMENTED FEES,2103829757,1000033256
23.02.2024,Children and Adults,THE COMPLETE WORKS INDEPENDENT SCHOOL,"16,758.60",INDEP MAINSTREAM,STATEMENTED FEES,2103829759,1000033256
23.02.2024,Children and Adults,THE COMPLETE WORKS INDEPENDENT SCHOOL,"16,758.60",INDEP MAINSTREAM,STATEMENTED FEES,2103829760,1000033256
23.02.2024,Children and Adults,THE COMPLETE WORKS INDEPENDENT SCHOOL,"16,758.60",INDEP MAINSTREAM,STATEMENTED FEES,2103829761,1000033256
23.02.2024,Children and Adults,THE COMPLETE WORKS INDEPENDENT SCHOOL,"16,758.60",INDEP MAINSTREAM,STATEMENTED FEES,2103829762,1000033256
23.02.2024,Children and Adults,THE COMPLETE WORKS INDEPENDENT SCHOOL,"16,758.60",INDEP MAINSTREAM,STATEMENTED FEES,2103829763,1000033256
23.02.2024,Children and Adults,THE COMPLETE WORKS INDEPENDENT SCHOOL,"16,758.60",INDEP MAINSTREAM,STATEMENTED FEES,2103829764,1000033256
23.02.2024,Children and Adults,THE COMPLETE WORKS INDEPENDENT SCHOOL,"16,758.60",INDEP MAINSTREAM,STATEMENTED FEES,2103829765,1000033256
23.02.2024,Children and Adults,THE COMPLETE WORKS INDEPENDENT SCHOOL,"16,758.60",INDEP MAINSTREAM,STATEMENTED FEES,2103829766,1000033256
23.02.2024,Children and Adults,THE COMPLETE WORKS INDEPENDENT SCHOOL,"16,758.60",INDEP MAINSTREAM,STATEMENTED FEES,2103829768,1000033256
23.02.2024,Children and Adults,THE COMPLETE WORKS INDEPENDENT SCHOOL,"16,758.60",INDEP MAINSTREAM,STATEMENTED FEES,2103829769,1000033256
23.02.2024,Children and Adults,THE COMPLETE WORKS INDEPENDENT SCHOOL,"16,758.60",INDEP MAINSTREAM,STATEMENTED FEES,2103829770,1000033256
23.02.2024,Children and Adults,THE COMPLETE WORKS INDEPENDENT SCHOOL,"16,758.60",INDEP MAINSTREAM,STATEMENTED FEES,2103829771,1000033256
27.02.2024,Children and Adults,OCTAVIA HOUSE SCHOOLS LTD,"16,666.67",NMSS/ INDEP SPECIAL,STATEMENTED FEES,2103830041,1000073579
27.02.2024,Children and Adults,OCTAVIA HOUSE SCHOOLS LTD,"16,666.67",NMSS/ INDEP SPECIAL,STATEMENTED FEES,2103830044,1000073579
27.02.2024,Children and Adults,OCTAVIA HOUSE SCHOOLS LTD,"16,666.67",NMSS/ INDEP SPECIAL,STATEMENTED FEES,2103830045,1000073579
27.02.2024,Housing,BURKE NIAZI SOLICITORS AND ADVOCATES,"16,666.67",DISREPAIR,PAYMENTS FOR LEGAL SERVICES,2103830056,1000058360
10.02.2024,Environment Neighbourhoods and Growth,METIS CONSULTANTS LIMITED,"16,666.67",FLOOD RISK MANAGEMENT,HIGHWAYS TERM CONTRACT,5902620463,1000086330
26.02.2024,Environment Neighbourhoods and Growth,ASD LIGHTING PLC,"16,648.95",PUBLIC LIGHTING,MATERIALS,5902623965,1000079671
15.02.2024,Children and Adults,DOG KENNEL HILL PRIMARY SCHOOL,"16,644.23",NURSERY ED GRANT 3 AND 4 YR OLDS,GRANTS,2103827301,1000089861
12.02.2024,Children and Adults,WELLSPRING CARE HOMES LIMITED,"16,632.00",LD LTS 18-64 AAD,SUPPORTED LIVING,2103823080,1000088216
26.02.2024,Environment Neighbourhoods and Growth,ASD LIGHTING PLC,"16,585.73",PUBLIC LIGHTING,MATERIALS,5902623961,1000079671
29.02.2024,Children and Adults,FRAMEWORK HOUSING ASSOCIATION,"16,545.00",TIER 4 SERVICES,OTHER CONTRACTORS,5902624432,1000086098
15.02.2024,Children and Adults,VICTORY IN COMMUNITY RESOURCE CENTRE,"16,485.00",NURSERY ED GRANT 3 AND 4 YR OLDS,GRANTS,2103827396,1000058383
06.02.2024,Environment Neighbourhoods and Growth,BOUYGUES (UK) LTD,"16,479.61",CAPITAL PS (REGEN),CONSTRUCTION MAIN CONTRACT -CERTIFICATED,2103818548,3000002179
15.02.2024,Children and Adults,UNDER THE WILLOW NURSERY,"16,476.75",NURSERY ED GRANT 3 AND 4 YR OLDS,GRANTS,2103827374,1000071830
07.02.2024,Children and Adults,LEWISHAM AND GREENWICH NHS TRUST,"16,456.28",SEXUAL HEALTH - STI,MEDICAL / HEALTH & SAFETY SERVICES,5902621053,1000076183
15.02.2024,Children and Adults,PUDDLEDUCK NURSERY,"16,451.78",NURSERY ED GRANT 3 AND 4 YR OLDS,GRANTS,2103827364,11210722
29.02.2024,Housing,HOMELY HOUSING LETS LTD,"16,439.40",NIGHTLY TA (NSC),EXTERNAL AGENCIES AND BODIES,5902624714,1000050013
21.02.2024,Finance,INFOSYS LIMITED,"16,380.00",TECHNOLOGY TRANSFORMATION,SOFTWARE,5902623436,1000088973
27.02.2024,Children and Adults,MY CHOICE CHILDREN'S HOMES LIMITED,"16,314.57",CHILDREN�S RESID,RESIDENTIAL CARE,2103830327,1000085839
13.02.2024,Children and Adults,NASH COLLEGE,"16,305.23",SPECIALIST POST-16,STATEMENTED FEES,2103826333,1000062581
24.02.2024,Children and Adults,FAITHFUL & GOULD,"16,285.05",CAPITAL PS (SOC SERV),CONSTRUCTION FEES  - EXTERNAL,5902623858,1000061390
13.02.2024,Housing,RELIANCE RESIDENTIAL,"16,275.67",PSL PLACEMENTS,EXTERNAL AGENCIES AND BODIES,5902622208,1000084814
15.02.2024,Children and Adults,ST JOHNS PRE SCHOOL,"16,149.75",NURSERY ED GRANT 3 AND 4 YR OLDS,GRANTS,2103827381,1000013380
13.02.2024,Children and Adults,NASH COLLEGE,"16,136.29",SPECIALIST POST-16,STATEMENTED FEES,2103826334,1000062581
29.02.2024,Environment Neighbourhoods and Growth,FAITHFUL & GOULD,"16,130.00",CAPITAL PS (REGEN),CONSTRUCTION FEES  - EXTERNAL,5902624743,1000061390
13.02.2024,Children and Adults,RYE OAK PRIMARY SCHOOL,"16,120.82",NURSERY ED GRANT 2YR OLDS,EARLY YEARS - 2 YEAR OLD,2103826362,5001000059
15.02.2024,Children and Adults,BASCULE LTD,"16,120.73",NURSERY ED GRANT 3 AND 4 YR OLDS,GRANTS,2103827356,1000037268
12.02.2024,Children and Adults,BETHAM SUPPORT LIVING LTD,"16,120.00",LD LTS 18-64,SUPPORTED LIVING,2103822301,1000087649
29.02.2024,Housing,LTA DIRECT LTD,"16,086.79",PSL PLACEMENTS,EXTERNAL AGENCIES AND BODIES,5902624556,1000085314
13.02.2024,Children and Adults,ARK SCHOOLS T/A GLOBE ACADEMY,"16,080.82",FREE HEALTHY SCHOOL MEALS,EARLY YEARS - 3 AND 4 YEAR OLDS,2103826374,1000060008
12.02.2024,Children and Adults,COMMUNITY CYCLEWORKS,"16,077.00",SUPERZONES,PROFESSIONAL FEES,5902620956,1000073000
29.02.2024,Corporate,ALFRED SALTER PRIMARY SCHOOL,"15,994.13",EDUCATION VAT INPUTS,VAT CONTROL ACCOUNT,2103832264,5001000005
15.02.2024,Children and Adults,BLOSSOM LOWER SCHOOL,"15,974.38",NMSS/ INDEP SPECIAL,STATEMENTED FEES,2103828061,1000040002
15.02.2024,Children and Adults,BLOSSOM LOWER SCHOOL,"15,974.38",NMSS/ INDEP SPECIAL,STATEMENTED FEES,2103828063,1000040002
15.02.2024,Children and Adults,BLOSSOM LOWER SCHOOL,"15,974.38",NMSS/ INDEP SPECIAL,STATEMENTED FEES,2103828064,1000040002
29.02.2024,DSO,E & E BUILDING SERVICES LTD,"15,969.99",SR - VOIDS TEAM,OTHER CONTRACTORS,2103831505,3000001176
15.02.2024,Children and Adults,SURE AND FIRM FOUNDATIONS,"15,922.80",NURSERY ED GRANT 3 AND 4 YR OLDS,GRANTS,2103827355,1000066223
01.02.2024,Environment Neighbourhoods and Growth,KENT COUNTY COUNCIL - LASER,"15,911.77",CAMBERWELL LEISURE CENTRE,ELECTRICITY,5902619561,1000012926
26.02.2024,Environment Neighbourhoods and Growth,KENT COUNTY COUNCIL - LASER,"15,854.98",DULWICH LEISURE CENTRE,ELECTRICITY,5902624068,1000012926
08.02.2024,Environment Neighbourhoods and Growth,J KASH LTD,"15,800.00",DULWICH AREA TEAM,OTHER R&M,2103820061,3000002219
27.02.2024,Children and Adults,HORIZON CARE & EDUCATION GROUP LTD,"15,792.53",CHILDREN�S RESID,RESIDENTIAL CARE,2103830277,1000075467
29.02.2024,Corporate,GOODRICH PRIMARY SCHOOL,"15,786.02",EDUCATION VAT INPUTS,VAT CONTROL ACCOUNT,2103832314,5001000028
09.02.2024,Housing,WALWORTH HOMES LTD,"15,772.77",CAPITAL PS (HRA),CONSTRUCTION FEES  - EXTERNAL,5902621525,1000079197
10.02.2024,Environment Neighbourhoods and Growth,F M CONWAY LTD,"15,771.65",CAPITAL PS (LEISURE),CONSTRUCTION FEES  - EXTERNAL,2103818479,4001384
15.02.2024,Children and Adults,TOTS RYE DAY NURSERY LTD,"15,760.58",NURSERY ED GRANT 3 AND 4 YR OLDS,GRANTS,2103827394,1000089357
27.02.2024,Children and Adults,ACORN HOMES (UK) LTD,"15,742.94",CHILDREN�S RESID,RESIDENTIAL CARE,2103830328,1000080423
16.02.2024,Children and Adults,DULWICH WOOD CHILDRENS CENTRE,"15,712.00",DULWICH WOOD NURSERY SCHOOL,EARLY YEARS - 3 AND 4 YEAR OLDS,5902622816,5001000099
09.02.2024,Children and Adults,HARVEST CARE GROUP LTD,"15,686.93",SEMI-IND LAC 16-17,EXTERNAL AGENCIES AND BODIES,2103820787,1000079059
15.02.2024,Children and Adults,HARVEST CARE GROUP LTD,"15,686.93",SEMI-IND LAC 16-17,EXTERNAL AGENCIES AND BODIES,2103827903,1000079059
06.02.2024,Strategy and Communities,CASTELLAN SOLUTIONS LIMITED,"15,680.00",RESILIENCE AND EMERGENCY PLANNING,COMMS & COMPUTING CONTRACT CHARGES,5902620766,1000086924
13.02.2024,Children and Adults,ROTHERHITHE PRIMARY SCHOOL,"15,675.03",FREE HEALTHY SCHOOL MEALS,EARLY YEARS - 3 AND 4 YEAR OLDS,2103826385,1000089862
09.02.2024,Children and Adults,REDACTED PERSONAL DATA,"15,525.44",LD LTS 18-64,PAYMENTS TO CLIENTS (DIRECT PAYMENTS),2103807803,1000046071
09.02.2024,Children and Adults,REDACTED PERSONAL DATA,"15,525.44",LD LTS 18-64,PAYMENTS TO CLIENTS (DIRECT PAYMENTS),2103821157,1000046071
02.02.2024,Children and Adults,CARE2SHARE2 LTD,"15,500.00",CHILDREN�S RESID,EXTERNAL AGENCIES AND BODIES,2103818173,1000086672
13.02.2024,Children and Adults,CARE2SHARE2 LTD,"15,500.00",CHILDREN�S RESID,RESIDENTIAL CARE,2103826516,1000086672
12.02.2024,Children and Adults,DOLPHIN HOMES LTD,"15,465.32",PHY LTS 18-64,RESIDENTIAL CARE,2103822721,1000079959
05.02.2024,Finance,VENN GROUP LTD,"15,400.00",IT MANAGEMENT,CONSULTANTS SERVICES,5902620603,1000033315
28.02.2024,Children and Adults,KENT COUNTY COUNCIL,"15,372.00",OTHER LA SPECIAL,STATEMENTED FEES,2103830576,1000053817
24.02.2024,Children and Adults,WELFARE CALL (LAC) LTD,"15,361.12",VIRTUAL SCHOOL PP,DATA COMMUNICATIONS,5902623277,1000057872
08.02.2024,Environment Neighbourhoods and Growth,MIDSTREAM LIGHTING LTD,"15,335.30",LIGHTING INTERNAL,OTHER CONTRACTORS,2103820059,3000002257
28.02.2024,Children and Adults,ABINGDON HOUSE SCHOOL,"15,318.00",NMSS/ INDEP SPECIAL,STATEMENTED FEES,2103806840,1000072800
28.02.2024,Children and Adults,ABINGDON HOUSE SCHOOL,"15,318.00",NMSS/ INDEP SPECIAL,STATEMENTED FEES,2103806841,1000072800
13.02.2024,Children and Adults,DOG KENNEL HILL PRIMARY SCHOOL,"15,275.03",FREE HEALTHY SCHOOL MEALS,EARLY YEARS - 3 AND 4 YEAR OLDS,2103826376,1000089861
09.02.2024,Corporate,GROUP FINANCE SOLUTIONS CONSULTING,"15,260.00",ERP PROGRAMME BUDGET,PROFESSIONAL FEES,5902621542,1000090315
12.02.2024,Children and Adults,ST JAMES CE PRIMARY SCHOOL,"15,241.00",NURSERY ED GRANT 3 AND 4 YR OLDS,EARLY YEARS - 3 AND 4 YEAR OLDS,5902621829,5001000070
15.02.2024,Children and Adults,APPLEFORD SCHOOL,"15,230.00",NMSS/ INDEP SPECIAL,STATEMENTED FEES,2103827265,1000086235
29.02.2024,DSO,CRATUS BUILDING SERVICES LIMITED,"15,225.01",SR TEMPORARY ACCOMMODATION DD,OTHER CONTRACTORS,2103831608,3000001055
23.02.2024,Environment Neighbourhoods and Growth,FABRIKAT (NOTTINGHAM) LTD,"15,205.69",PUBLIC LIGHTING,MATERIALS,5902623820,1036223
15.02.2024,Children and Adults,WATERGATE SCHOOL,"15,200.00",OTHER LA SPECIAL,STATEMENTED FEES,2103827226,1000081484
15.02.2024,Children and Adults,WATERGATE SCHOOL,"15,200.00",OTHER LA SPECIAL,STATEMENTED FEES,2103827230,1000081484
12.02.2024,Children and Adults,BRUNSWICK PARK PRIMARY SCHOOL,"15,167.00",LBS RB / SEN UNIT,HIGH NEEDS - TOP UP FUNDING,5902621692,5001000013
12.02.2024,Children and Adults,SNOWSFIELDS PRIMARY SCHOOL,"15,167.00",LBS RB / SEN UNIT,HIGH NEEDS - TOP UP FUNDING,5902621809,5001000061
29.02.2024,Children and Adults,ST GEORGES RC SCHOOL,"15,163.34",NURSERY ED GRANT 3 AND 4 YR OLDS,EARLY YEARS - 3 AND 4 YEAR OLDS,2103832104,5001000068
15.02.2024,Children and Adults,REDACTED PERSONAL DATA,"15,110.11",NURSERY ED GRANT 3 AND 4 YR OLDS,GRANTS,2103827287,1000054116
10.02.2024,Environment Neighbourhoods and Growth,METIS CONSULTANTS LIMITED,"15,103.40",CAPITAL PS (LEISURE),CAPITAL GRANTS,5902620414,1000086330
29.02.2024,Corporate,OLIVER GOLDSMITH PRIMARY SCHOOL,"15,101.74",EDUCATION VAT INPUTS,VAT CONTROL ACCOUNT,2103832316,5001000051
22.02.2024,Environment Neighbourhoods and Growth,CABLE TEST LTD,"15,018.22",PUBLIC LIGHTING,OTHER CONTRACTORS,5902623741,1000079183
13.02.2024,Children and Adults,NELL GWYNN NURSERY SCHOOL,"15,000.00",NELL GWYNN CHILDRENS CENTRE,EARLY YEARS - 3 AND 4 YEAR OLDS,2103826356,5001000049
27.02.2024,Children and Adults,OCTAVIA HOUSE SCHOOLS LTD,"15,000.00",NMSS/ INDEP SPECIAL,STATEMENTED FEES,2103830031,1000073579
27.02.2024,Children and Adults,OCTAVIA HOUSE SCHOOLS LTD,"15,000.00",NMSS/ INDEP SPECIAL,STATEMENTED FEES,2103830032,1000073579
27.02.2024,Children and Adults,OCTAVIA HOUSE SCHOOLS LTD,"15,000.00",NMSS/ INDEP SPECIAL,STATEMENTED FEES,2103830033,1000073579
27.02.2024,Children and Adults,OCTAVIA HOUSE SCHOOLS LTD,"15,000.00",NMSS/ INDEP SPECIAL,STATEMENTED FEES,2103830034,1000073579
27.02.2024,Children and Adults,OCTAVIA HOUSE SCHOOLS LTD,"15,000.00",NMSS/ INDEP SPECIAL,STATEMENTED FEES,2103830035,1000073579
27.02.2024,Children and Adults,OCTAVIA HOUSE SCHOOLS LTD,"15,000.00",NMSS/ INDEP SPECIAL,STATEMENTED FEES,2103830036,1000073579
27.02.2024,Children and Adults,OCTAVIA HOUSE SCHOOLS LTD,"15,000.00",NMSS/ INDEP SPECIAL,STATEMENTED FEES,2103830037,1000073579
27.02.2024,Children and Adults,OCTAVIA HOUSE SCHOOLS LTD,"15,000.00",NMSS/ INDEP SPECIAL,STATEMENTED FEES,2103830038,1000073579
27.02.2024,Children and Adults,OCTAVIA HOUSE SCHOOLS LTD,"15,000.00",NMSS/ INDEP SPECIAL,STATEMENTED FEES,2103830039,1000073579
27.02.2024,Children and Adults,OCTAVIA HOUSE SCHOOLS LTD,"15,000.00",NMSS/ INDEP SPECIAL,STATEMENTED FEES,2103830040,1000073579
27.02.2024,Children and Adults,OCTAVIA HOUSE SCHOOLS LTD,"15,000.00",NMSS/ INDEP SPECIAL,STATEMENTED FEES,2103830042,1000073579
27.02.2024,Children and Adults,OCTAVIA HOUSE SCHOOLS LTD,"15,000.00",NMSS/ INDEP SPECIAL,STATEMENTED FEES,2103830043,1000073579
06.02.2024,Children and Adults,ALLPAY LTD (CHILDREN - INSTANT ISSU,"15,000.00",C & F FINANCE TEAM,OTHER PAYMENTS FOR CLIENTS,5902620761,1000079883
06.02.2024,Children and Adults,ALLPAY LTD (CHILDREN - PETTY CASH),"15,000.00",C & F FINANCE TEAM,OTHER PAYMENTS FOR CLIENTS,5902620764,1000079888
29.02.2024,Finance,NEC SOFTWARE SOLUTIONS UK LTD,"15,000.00",ADMINISTRATIVE SUPPORT,SOFTWARE,5902623666,1000087043
23.02.2024,Children and Adults,BLOOM PROCUREMENT SERVICES LTD,"15,000.00",CAPITAL PS (EDUCATION),CONSTRUCTION FEES  - EXTERNAL,5902623853,1000082531
27.02.2024,Children and Adults,ALLPAY LTD (CHILDRENS ALLOWANCE),"15,000.00",C & F FINANCE TEAM,OTHER PAYMENTS FOR CLIENTS,5902624259,1000080484
09.02.2024,Children and Adults,REDACTED PERSONAL DATA,"14,990.08",LD LTS 18-64,PAYMENTS TO CLIENTS (DIRECT PAYMENTS),2103821892,1000070120
08.02.2024,Children and Adults,SUPREME EDUCATION LTD,"14,831.00",ALTERNATIVE PROVISION,EXTERNAL AGENCIES AND BODIES,5902621410,1000089065
13.02.2024,Children and Adults,SURREY SQUARE PRIMARY SCHOOL,"14,772.13",FREE HEALTHY SCHOOL MEALS,EARLY YEARS - 3 AND 4 YEAR OLDS,2103826388,1000082648
06.02.2024,Children and Adults,DAISYBROOK LTD,"14,760.00",DISABILITIES LAC,RESIDENTIAL CARE,2103818653,1000088357
06.02.2024,Children and Adults,DAISYBROOK LTD,"14,760.00",DISABILITIES LAC,RESIDENTIAL CARE,2103818655,1000088357
06.02.2024,Children and Adults,DAISYBROOK LTD,"14,760.00",DISABILITIES LAC,RESIDENTIAL CARE,2103818657,1000088357
21.02.2024,Children and Adults,W UDEN & SONS LTD,"14,754.25",APPOINTEESHIPS,OTHER PAYMENTS FOR CLIENTS,2103829318,1000061347
06.02.2024,Environment Neighbourhoods and Growth,CROMWELL POLYTHENE LTD,"14,740.28",STREET CLEANING-GENERAL,MATERIALS,5902620994,1000021159
08.02.2024,Children and Adults,SAFE HAVEN ACCOMODATION LTD,"14,738.29",SEMI-IND LAC 16-17,EXTERNAL AGENCIES AND BODIES,2103820216,1000081573
12.02.2024,Environment Neighbourhoods and Growth,THE STOCKROOM ARCHIVE MANAGEMENT LTD,"14,729.25",HERITAGE,OTHER CONTRACTORS,5902621651,1000079579
16.02.2024,Children and Adults,THE GROVE CHILDRENS CENTRE,"14,666.00",THE GROVE NURSERY SCHOOL,EARLY YEARS - 3 AND 4 YEAR OLDS,5902622802,5001000090
02.02.2024,Children and Adults,FAMILY ACTION,"14,661.25",ADOPT LONDON SOUTH,PROFESSIONAL FEES,5902619513,1013739
15.02.2024,Children and Adults,PURPLE JAY HERNE HILL LTD,"14,590.20",NURSERY ED GRANT 3 AND 4 YR OLDS,GRANTS,2103827366,1000090364
27.02.2024,Children and Adults,RELA SUPPORT SERVICES LTD,"14,582.85",SEMI-IND CARELEAVERS,EXTERNAL AGENCIES AND BODIES,2103830240,1000073128
15.02.2024,Children and Adults,THE BOSCO CENTRE,"14,575.58",NURSERY ED GRANT 3 AND 4 YR OLDS,GRANTS,2103827288,1000046317
09.02.2024,Environment Neighbourhoods and Growth,BARCHAM TREES PLC,"14,564.00",CAPITAL PS (LEISURE),CONSTRUCTION FEES,5902620670,11254891
29.02.2024,Children and Adults,THE LONDON CITY CARE AND SUPPORT,"14,535.87",SEMI-IND LAC 16-17,EXTERNAL AGENCIES AND BODIES,2103833142,1000090438
15.02.2024,Children and Adults,KINGS COLLEGE NHS FOUNDATION TRUST,"14,491.35",NURSERY ED GRANT 3 AND 4 YR OLDS,GRANTS,2103827331,11255665
19.02.2024,Housing,HM REVENUE & CUSTOMS,"14,473.02",APPRENTICE LEVY,APPRENTICESHIP LEVY,2103813290,1016231
06.02.2024,Children and Adults,BACONS COLLEGE,"14,472.00",SHORT BREAKS,EXTERNAL AGENCIES AND BODIES,5902620981,1693125
12.02.2024,Children and Adults,NASH CARE HOMES LTD,"14,470.72",LD LTS 18-64,RESIDENTIAL CARE,2103822512,1000080224
23.02.2024,Children and Adults,KP LEGAL,"14,469.77",SCH TRANS � TRAVEL,OTHER PAYMENTS FOR CLIENTS,5902623785,1000090833
09.02.2024,Children and Adults,RIVERSTON SCHOOL,"14,469.30",INDEP MAINSTREAM,STATEMENTED FEES,2103822036,11213696
27.02.2024,Children and Adults,ACORN CARE & EDUCATION LTD,"14,419.07",CHILDREN�S RESID,RESIDENTIAL CARE,2103830330,1000085841
15.02.2024,Children and Adults,JOYFUL STAR NURSERY,"14,417.25",NURSERY ED GRANT 3 AND 4 YR OLDS,GRANTS,2103827327,1000074638
10.02.2024,Housing,CARLISLE SECURITY SERVICES LTD,"14,407.68",CAMBERWELL,SECURITY SERVICES,5902620717,11212342
09.02.2024,Children and Adults,POWER2 LTD,"14,400.00",GRANT FUNDED PROJ�S,EXTERNAL AGENCIES AND BODIES,5902621541,1000089217
23.02.2024,Children and Adults,CORAL SUPPORT AND CRISIS INTERVENTION SERVICE,"14,385.60",FAMILY ASSESSMENTS,RESIDENTIAL CARE,2103829573,1000081529
15.02.2024,Children and Adults,ARC COMMUNITY TRUSTEES,"14,363.10",NURSERY ED GRANT 3 AND 4 YR OLDS,GRANTS,2103827283,1000046206
15.02.2024,Corporate,ALLIANCE BERNSTEIN LTD,"14,351.07",CASH MANAGERS' COSTS,PROFESSIONAL FEES,5902622419,1000055012
29.02.2024,Environment Neighbourhoods and Growth,CONWAY AECOM LTD,"14,344.51",CAPITAL PS (REGEN),CONSTRUCTION FEES  - EXTERNAL,2102409991,3000001595
16.02.2024,Housing,A & E ELKINS LTD,"14,339.97",A&E ELKINS,I-WORLD CONTRACTORS HOLDING ACCOUNT,2103828128,4012501
06.02.2024,Children and Adults,BOOKTRUST,"14,280.75",LAC EDUCATION,BOOKS & PUBLICATIONS,5902620818,1000056301
12.02.2024,Children and Adults,DRUMBEAT DOWNHAM SCHOOL,"14,276.67",OTHER LA SPECIAL,STATEMENTED FEES,2103823501,1000072258
15.02.2024,Children and Adults,LITTLE ANGELS DAY NURSERY & CHILDCARE SERVICES LTD,"14,265.15",NURSERY ED GRANT 3 AND 4 YR OLDS,GRANTS,2103827336,1000058464
13.02.2024,Children and Adults,JOHN DONNE PRIMARY SCHOOL,"14,248.97",FREE HEALTHY SCHOOL MEALS,EARLY YEARS - 3 AND 4 YEAR OLDS,2103826380,1000073253
04.02.2024,Housing,PULSE ASSOCIATES LTD (T/A PULSE CONSULT),"14,225.00",CAPITAL PS (HRA),CONSTRUCTION FEES  - EXTERNAL,5902620423,1000087233
02.02.2024,Children and Adults,THE DRIVE CARE HOMES LTD,"14,218.04",DISABILITIES LAC,RESIDENTIAL CARE,2103818242,1000003889
02.02.2024,Children and Adults,THE DRIVE CARE HOMES LTD,"14,218.04",DISABILITIES LAC,RESIDENTIAL CARE,2103818245,1000003889
26.02.2024,Housing,PENNINGTON CHOICES LTD,"14,143.32",PENNINGTON,I-WORLD CONTRACTORS HOLDING ACCOUNT,5902624003,1000067888
29.02.2024,Children and Adults,IVYDALE PRIMARY SCHOOL,"14,111.96",NURSERY ED GRANT 3 AND 4 YR OLDS,EARLY YEARS - 3 AND 4 YEAR OLDS,2103832089,5001000038
15.02.2024,Children and Adults,RYE GARDEN DAY NURSERY,"14,105.25",NURSERY ED GRANT 3 AND 4 YR OLDS,GRANTS,2103827373,1000074965
15.02.2024,Children and Adults,T4 TRUST T/A IAN MIKARDO HIGH SCHOO,"14,102.56",OTHER LA SPECIAL,STATEMENTED FEES,2103827271,1000090796
15.02.2024,Children and Adults,T4 TRUST T/A IAN MIKARDO HIGH SCHOO,"14,102.56",OTHER LA SPECIAL,STATEMENTED FEES,2103827272,1000090796
12.02.2024,Children and Adults,SPA EDUCATION TRUST,"14,069.42",AC & FREE - SPECIAL,STATEMENTED FEES,2103823521,1000081600
12.02.2024,Children and Adults,SPA EDUCATION TRUST,"14,069.42",AC & FREE - SPECIAL,STATEMENTED FEES,2103823522,1000081600
12.02.2024,Children and Adults,SPA EDUCATION TRUST,"14,069.42",AC & FREE - SPECIAL,STATEMENTED FEES,2103823523,1000081600
12.02.2024,Children and Adults,SPA EDUCATION TRUST,"14,069.42",AC & FREE - SPECIAL,STATEMENTED FEES,2103823524,1000081600
12.02.2024,Children and Adults,SPA EDUCATION TRUST,"14,069.42",AC & FREE - SPECIAL,STATEMENTED FEES,2103823525,1000081600
12.02.2024,Children and Adults,SPA EDUCATION TRUST,"14,069.42",AC & FREE - SPECIAL,STATEMENTED FEES,2103823526,1000081600
12.02.2024,Children and Adults,SPA EDUCATION TRUST,"14,069.42",AC & FREE - SPECIAL,STATEMENTED FEES,2103823527,1000081600
12.02.2024,Children and Adults,SPA EDUCATION TRUST,"14,069.42",AC & FREE - SPECIAL,STATEMENTED FEES,2103823528,1000081600
12.02.2024,Children and Adults,SPA EDUCATION TRUST,"14,069.42",AC & FREE - SPECIAL,STATEMENTED FEES,2103823529,1000081600
12.02.2024,Children and Adults,SPA EDUCATION TRUST,"14,069.42",AC & FREE - SPECIAL,STATEMENTED FEES,2103823530,1000081600
12.02.2024,Children and Adults,SPA EDUCATION TRUST,"14,069.42",AC & FREE - SPECIAL,STATEMENTED FEES,2103823531,1000081600
12.02.2024,Children and Adults,SPA EDUCATION TRUST,"14,069.42",AC & FREE - SPECIAL,STATEMENTED FEES,2103823532,1000081600
12.02.2024,Children and Adults,SPA EDUCATION TRUST,"14,069.42",AC & FREE - SPECIAL,STATEMENTED FEES,2103823533,1000081600
12.02.2024,Children and Adults,SPA EDUCATION TRUST,"14,069.42",AC & FREE - SPECIAL,STATEMENTED FEES,2103823534,1000081600
12.02.2024,Children and Adults,SPA EDUCATION TRUST,"14,069.42",AC & FREE - SPECIAL,STATEMENTED FEES,2103823535,1000081600
12.02.2024,Children and Adults,SPA EDUCATION TRUST,"14,069.42",AC & FREE - SPECIAL,STATEMENTED FEES,2103823536,1000081600
12.02.2024,Children and Adults,SPA EDUCATION TRUST,"14,069.42",AC & FREE - SPECIAL,STATEMENTED FEES,2103823537,1000081600
12.02.2024,Children and Adults,SPA EDUCATION TRUST,"14,069.42",AC & FREE - SPECIAL,STATEMENTED FEES,2103823538,1000081600
12.02.2024,Children and Adults,SPA EDUCATION TRUST,"14,069.42",AC & FREE - SPECIAL,STATEMENTED FEES,2103823539,1000081600
12.02.2024,Children and Adults,SPA EDUCATION TRUST,"14,069.42",AC & FREE - SPECIAL,STATEMENTED FEES,2103823540,1000081600
12.02.2024,Children and Adults,SPA EDUCATION TRUST,"14,069.42",AC & FREE - SPECIAL,STATEMENTED FEES,2103823541,1000081600
12.02.2024,Children and Adults,SPA EDUCATION TRUST,"14,069.42",AC & FREE - SPECIAL,STATEMENTED FEES,2103823542,1000081600
12.02.2024,Children and Adults,SPA EDUCATION TRUST,"14,069.42",AC & FREE - SPECIAL,STATEMENTED FEES,2103823543,1000081600
12.02.2024,Children and Adults,SPA EDUCATION TRUST,"14,069.42",AC & FREE - SPECIAL,STATEMENTED FEES,2103823544,1000081600
12.02.2024,Children and Adults,SPA EDUCATION TRUST,"14,069.42",AC & FREE - SPECIAL,STATEMENTED FEES,2103823545,1000081600
12.02.2024,Children and Adults,SPA EDUCATION TRUST,"14,069.42",AC & FREE - SPECIAL,STATEMENTED FEES,2103823546,1000081600
12.02.2024,Children and Adults,SPA EDUCATION TRUST,"14,069.42",AC & FREE - SPECIAL,STATEMENTED FEES,2103823547,1000081600
12.02.2024,Children and Adults,SPA EDUCATION TRUST,"14,069.42",AC & FREE - SPECIAL,STATEMENTED FEES,2103823548,1000081600
10.02.2024,Children and Adults,STAFFORDSHIRE COUNTY COUNCIL,"14,058.00",SCH TRANS � TRAVEL,M&M ALLOWANCE CO-OPS,5902621357,1000072531
12.02.2024,Children and Adults,KEYWORTH PRIMARY SCHOOL,"14,026.00",NURSERY ED GRANT 3 AND 4 YR OLDS,EARLY YEARS - 3 AND 4 YEAR OLDS,5902621762,5001000041
11.02.2024,Housing,LPS CONSULTING (LONDON) LIMITED,"14,000.00",DIRECTOR OF ASSET MANAGEMENT,PROFESSIONAL FEES,5902620648,1000084208
22.02.2024,Environment Neighbourhoods and Growth,CYCLE CONFIDENT LTD,"13,999.27",NON LCN CYCLE TRAINING,PROFESSIONAL FEES,5902622374,1000070228
13.02.2024,Children and Adults,FAMILY SOCIETY,"13,999.00",ALS INTER AGENCY,EXTERNAL AGENCIES AND BODIES,5902622031,1000062924
07.02.2024,Finance,INFOSYS LIMITED,"13,942.00",CAPITAL PS (STRAT SERV),ICT ACQUISITION,5902621262,1000088973
13.02.2024,Children and Adults,CAMPBELL HARRIS TUTORS LTD,"13,920.00",AP & HOSPITAL SCHLS,STATEMENTED FEES,2103826337,1000082646
02.02.2024,Housing,ARMINA LTD,"13,913.17",DISREPAIR,BUILDING R&M,2103818148,3000002121
29.02.2024,Corporate,SOUTHWARK PARK PRIMARY SCHOOL,"13,912.82",EDUCATION VAT INPUTS,VAT CONTROL ACCOUNT,2103832243,5001000062
28.02.2024,Finance,SHARPE PRITCHARD LLP,"13,906.10",CANADA WATER,LEGAL FEES & COURT COSTS,5902624491,1790085
08.02.2024,Environment Neighbourhoods and Growth,TOGETHER FOR MENTAL WELLBEING,"13,905.00",SOUTHWARK ANTI VIOLENCE UNIT,GRANTS,5902621382,1000084108
07.02.2024,Housing,HMRC STAMP TAXES ONLY SDLT,"13,900.00",CAPITAL PS (HRA),LAND & BUILDINGS ACQUISITION FEES,5902621177,1000052141
06.02.2024,Children and Adults,MOAT SCHOOL LTD,"13,897.00",NMSS/ INDEP SPECIAL,STATEMENTED FEES,2103820021,1000010219
06.02.2024,Children and Adults,MOAT SCHOOL LTD,"13,897.00",NMSS/ INDEP SPECIAL,STATEMENTED FEES,2103820022,1000010219
06.02.2024,Children and Adults,MOAT SCHOOL LTD,"13,897.00",NMSS/ INDEP SPECIAL,STATEMENTED FEES,2103820023,1000010219
06.02.2024,Children and Adults,MOAT SCHOOL LTD,"13,897.00",NMSS/ INDEP SPECIAL,STATEMENTED FEES,2103820024,1000010219
07.02.2024,Children and Adults,MOAT SCHOOL LTD,"13,897.00",NMSS/ INDEP SPECIAL,STATEMENTED FEES,2103820037,1000010219
07.02.2024,Children and Adults,MOAT SCHOOL LTD,"13,897.00",NMSS/ INDEP SPECIAL,STATEMENTED FEES,2103820038,1000010219
07.02.2024,Children and Adults,MOAT SCHOOL LTD,"13,897.00",NMSS/ INDEP SPECIAL,STATEMENTED FEES,2103820039,1000010219
07.02.2024,Children and Adults,MOAT SCHOOL LTD,"13,897.00",NMSS/ INDEP SPECIAL,STATEMENTED FEES,2103820040,1000010219
12.02.2024,Children and Adults,IVYDALE PRIMARY SCHOOL,"13,895.00",NURSERY ED GRANT 3 AND 4 YR OLDS,EARLY YEARS - 3 AND 4 YEAR OLDS,5902621753,5001000038
12.02.2024,Children and Adults,CYGNET CARE SERVICES LTD,"13,891.72",LD LTS 18-64,RESIDENTIAL CARE,2103822717,1000050432
02.02.2024,Environment Neighbourhoods and Growth,KENT COUNTY COUNCIL - LASER,"13,827.72",CANADA WATER LIBRARY,ELECTRICITY,5902619431,1000012926
22.02.2024,Housing,BEACON PARTNERSHIP LLP,"13,780.00",AYLESBURY AGENCY COSTS,PROFESSIONAL FEES,5902622361,1000082300
29.02.2024,Environment Neighbourhoods and Growth,THE DEXTROUS WEB LTD,"13,775.00",CAPITAL PS (LEISURE),"PLANT, MACHINERY & EQUIPMENT ACQUISITION",5902624620,1000083020
12.02.2024,Children and Adults,ALFRED SALTER PRIMARY SCHOOL,"13,750.00",LBS MAINSTREAM,HIGH NEEDS - TOP UP FUNDING,5902621673,5001000005
07.02.2024,Children and Adults,FRONTIER SUPPORT SERVICES LTD,"13,684.00",LD LTS 18-64,SUPPORTED LIVING,2103818890,1000072241
29.02.2024,Finance,DIGNITY FUNERALS LTD,"13,650.00",CORONER'S,OTHER CONTRACTORS,5902624711,1000041373
15.02.2024,Children and Adults,BRIGHT HORIZONS FAMILY SOLUTIONS,"13,637.18",NURSERY ED GRANT 3 AND 4 YR OLDS,GRANTS,2103827361,11294322
15.02.2024,Children and Adults,CAMBERWELL AFTER SCHOOL PROJECT,"13,628.18",NURSERY ED GRANT 3 AND 4 YR OLDS,GRANTS,2103827295,1000051625
29.02.2024,Children and Adults,CAMBERWELL AFTER SCHOOL PROJECT,"13,628.18",NURSERY ED GRANT 3 AND 4 YR OLDS,GRANTS,2103831498,1000051625
16.02.2024,Children and Adults,BESSEMER GRANGE PRIMARY SCHOOL,"13,607.00",NURSERY ED GRANT 3 AND 4 YR OLDS,EARLY YEARS - 3 AND 4 YEAR OLDS,5902622625,5001000009
12.02.2024,Children and Adults,ZERO THREE CARE LIMITED,"13,601.48",LD LTS 18-64,SUPPORTED LIVING,2103822790,1000085367
12.02.2024,Children and Adults,SPECTRA CARE LTD,"13,585.72",LD LTS 18-64,SUPPORTED LIVING,2103823241,1000086280
29.02.2024,Housing,FINEFAIR LTD,"13,584.39",PSL PLACEMENTS,EXTERNAL AGENCIES AND BODIES,5902624670,1000075570
12.02.2024,Children and Adults,ROBERT BROWNING PRIMARY SCHOOL,"13,583.00",LBS MAINSTREAM,HIGH NEEDS - TOP UP FUNDING,5902621798,5001000057
28.02.2024,Children and Adults,ABINGDON HOUSE SCHOOL,"13,569.00",NMSS/ INDEP SPECIAL,STATEMENTED FEES,2103830542,1000072800
28.02.2024,Children and Adults,ABINGDON HOUSE SCHOOL,"13,569.00",NMSS/ INDEP SPECIAL,STATEMENTED FEES,2103830543,1000072800
15.02.2024,Children and Adults,SUNSHINE FRUITS NURSERY LTD,"13,568.03",NURSERY ED GRANT 3 AND 4 YR OLDS,GRANTS,2103827386,1000081059
12.02.2024,Children and Adults,YPR LIMITED,"13,520.00",LD LTS 18-64,SUPPORTED LIVING,2103823273,1000086517
06.02.2024,Children and Adults,LONDON BOROUGH OF HAMMERSMITH & FULHAM,"13,446.15",OTHER LA SPECIAL,STATEMENTED FEES,2103820035,1000047234
06.02.2024,Children and Adults,LONDON BOROUGH OF HAMMERSMITH & FULHAM,"13,446.15",OTHER LA SPECIAL,STATEMENTED FEES,2103820036,1000047234
07.02.2024,Children and Adults,LONDON BOROUGH OF HAMMERSMITH & FULHAM,"13,446.15",OTHER LA SPECIAL,STATEMENTED FEES,2103820050,1000047234
29.02.2024,Housing,CROWN HOUSING LTD,"13,444.50",NIGHTLY TA (NSC),EXTERNAL AGENCIES AND BODIES,5902624839,1000075070
02.02.2024,Children and Adults,THE DRIVE CARE HOMES LTD,"13,433.56",DISABILITIES LAC,EXTERNAL AGENCIES AND BODIES,2103818243,1000003889
02.02.2024,Children and Adults,THE DRIVE CARE HOMES LTD,"13,433.56",DISABILITIES LAC,EXTERNAL AGENCIES AND BODIES,2103818244,1000003889
29.02.2024,Children and Adults,FLEET TUTORS,"13,420.00",AP & HOSPITAL SCHLS,STATEMENTED FEES,2103834038,1000044820
23.02.2024,Children and Adults,THE COMPLETE WORKS INDEPENDENT SCHOOL,"13,372.96",INDEP MAINSTREAM,STATEMENTED FEES,2103829767,1000033256
07.02.2024,Housing,BEACON PARTNERSHIP LLP,"13,357.50",DEVELOPMENT DELIVERY,CONSULTANTS SERVICES,5902621210,1000082300
13.02.2024,Children and Adults,THE NEW SCHOOL,"13,333.33",NMSS/ INDEP SPECIAL,STATEMENTED FEES,2103826557,1000088932
12.02.2024,Environment Neighbourhoods and Growth,METIS CONSULTANTS LIMITED,"13,267.50",CAPITAL PS (LEISURE),CONSTRUCTION FEES  - EXTERNAL,5902621898,1000086330
12.02.2024,Children and Adults,MICHAEL FARADAY PRIMARY SCHOOL,"13,260.00",NURSERY ED GRANT 3 AND 4 YR OLDS,EARLY YEARS - 3 AND 4 YEAR OLDS,5902621773,5001000048
22.02.2024,Suspense,UNISON,"13,255.65",SUSPENSE ACCOUNT (COMPANY CODE 1000),PAYROLL CREDITORS - UNION DEDUCTIONS,2103829536,11060053
12.02.2024,Children and Adults,HC-ONE LTD (TOWER BRIDGE CARE HOME),"13,209.12",PHY LTS 65+,OTHER PAYMENTS FOR CLIENTS,2103822640,1000067670
29.02.2024,Corporate,ST FRANCIS'S RC PRIMARY SCHOOL,"13,197.95",EDUCATION VAT INPUTS,VAT CONTROL ACCOUNT,2103832276,5001000067
15.02.2024,Children and Adults,CRYSTAL NURSERY (UK),"13,193.17",NURSERY ED GRANT 3 AND 4 YR OLDS,GRANTS,2103827320,1000016621
12.02.2024,Children and Adults,ST JAMES CE PRIMARY SCHOOL,"13,167.00",LBS MAINSTREAM,HIGH NEEDS - TOP UP FUNDING,5902621832,5001000070
12.02.2024,Children and Adults,PECULIAR CARE HOMES LTD,"13,148.00",LD LTS 18-64,SUPPORTED LIVING,2103822436,1000076991
12.02.2024,Children and Adults,PECULIAR CARE HOMES LTD,"13,129.36",LD LTS 18-64,SUPPORTED LIVING,2103823236,1000076991
29.02.2024,Environment Neighbourhoods and Growth,CONWAY AECOM LTD,"13,124.83",CAPITAL PS (LEISURE),CONSTRUCTION,2102273795,3000001595
29.02.2024,DSO,SER CONTRACTOR LTD,"13,099.18",SR - VOIDS TEAM,OTHER CONTRACTORS,2103831600,3000002234
28.02.2024,Children and Adults,GREAT OAKS SMALL SCHOOL,"13,090.00",NMSS/ INDEP SPECIAL,STATEMENTED FEES,2103830555,1000090768
16.02.2024,Children and Adults,GOODRICH PRIMARY SCHOOL,"13,083.00",NURSERY ED GRANT 3 AND 4 YR OLDS,EARLY YEARS - 3 AND 4 YEAR OLDS,5902622667,5001000028
12.02.2024,Children and Adults,SOUTHWARK PARK PRIMARY SCHOOL,"13,000.00",LBS MAINSTREAM,HIGH NEEDS - TOP UP FUNDING,5902621814,5001000062
12.02.2024,Children and Adults,ST ANTHONYS RC SCHOOL,"12,994.00",NURSERY ED GRANT 3 AND 4 YR OLDS,EARLY YEARS - 3 AND 4 YEAR OLDS,5902621815,5001000064
12.02.2024,Children and Adults,PHOENIX PRIMARY SCHOOL,"12,978.00",NURSERY ED GRANT 3 AND 4 YR OLDS,EARLY YEARS - 3 AND 4 YEAR OLDS,5902621736,5001000032
08.02.2024,Housing,PRB ESTATES LTD,"12,964.16",PRBE,I-WORLD CONTRACTORS HOLDING ACCOUNT,2103820075,3000001691
29.02.2024,Corporate,HEBER PRIMARY SCHOOL,"12,892.62",EDUCATION VAT INPUTS,VAT CONTROL ACCOUNT,2103832284,5001000035
15.02.2024,Children and Adults,MARYAMS NURSERY LTD,"12,856.28",NURSERY ED GRANT 3 AND 4 YR OLDS,GRANTS,2103827351,1000088453
19.02.2024,Housing,DENHAN INTERNATIONAL LIMITED,"12,843.30",NIGHTLY TA (NSC),EXTERNAL AGENCIES AND BODIES,5902623073,1000075567
29.02.2024,Environment Neighbourhoods and Growth,GUILDMORE LTD,"12,839.32",CAPITAL PS (REGEN),CONSTRUCTION MAIN CONTRACT -CERTIFICATED,2103834049,3000002150
08.02.2024,Children and Adults,LONDON SOUTH EAST ACADEMIES TRUST,"12,833.33",AC & FREE - MSTREAM,STATEMENTED FEES,2103820412,1000088592
13.02.2024,Children and Adults,KEYWORTH PRIMARY SCHOOL,"12,829.32",NURSERY ED GRANT 2YR OLDS,EARLY YEARS - 2 YEAR OLD,2103826358,5001000041
20.02.2024,Environment Neighbourhoods and Growth,PROJECT CENTRE LTD,"12,825.74",STREETS FOR PEOPLE - CONTROLLED PARKING,OTHER CONTRACTORS,5902623280,1000072621
29.02.2024,Corporate,SOUTHWARK PARK PRIMARY SCHOOL,"12,815.30",EDUCATION VAT INPUTS,VAT CONTROL ACCOUNT,2103832271,5001000062
12.02.2024,Children and Adults,CASSRA LLP T/A CROHAM PLACE,"12,811.24",LD LTS 18-64,NURSING PLACEMENTS FEES,2103823081,1000082899
12.02.2024,Children and Adults,ALFRED SALTER PRIMARY SCHOOL,"12,785.00",NURSERY ED GRANT 3 AND 4 YR OLDS,EARLY YEARS - 3 AND 4 YEAR OLDS,5902621670,5001000005
15.02.2024,Housing,UNIFIED CONSULTANCY LTD,"12,760.00",CAPITAL PS (HOUSING GF),ICT ACQUISITION,5902622465,1000081827
12.02.2024,Children and Adults,BESSEMER GRANGE PRIMARY SCHOOL,"12,750.00",LBS MAINSTREAM,HIGH NEEDS - TOP UP FUNDING,5902621683,5001000009
23.02.2024,Environment Neighbourhoods and Growth,CONSTELLIA PUBLIC LIMITED,"12,748.66",THE CASTLE CENTRE,PREMISES CLEANING,5902623218,1000088137
29.02.2024,Children and Adults,HIGHSHORE SCHOOL,"12,696.00",COVID-19 SCHOOLS GRANTS,SCHOOLS CAPITATION,2103831942,5001000046
12.02.2024,Children and Adults,JOHN RUSKIN PRIMARY SCHOOL,"12,694.00",LBS RB / SEN UNIT,HIGH NEEDS - BASE FUNDING,5902621758,5001000040
23.02.2024,Finance,VIRGIN MEDIA,"12,662.37",IT MANAGEMENT,COMMS & COMPUTING CONTRACT CHARGES,5902623765,1000026457
29.02.2024,Children and Adults,FRIARS PRIMARY (FOUNDATION) SCHOOL,"12,651.71",NURSERY ED GRANT 3 AND 4 YR OLDS,EARLY YEARS - 3 AND 4 YEAR OLDS,2103832111,5001000033
23.02.2024,Environment Neighbourhoods and Growth,REDACTED PERSONAL DATA,"12,629.40",NO RECOURSE TO PUBLIC FUNDS,ACCOMMODATION CHARGES,5902623803,1000061134
16.02.2024,Children and Adults,THE GROVE CHILDRENS CENTRE,"12,626.00",THE GROVE NURSERY SCHOOL,EARLY YEARS - 3 AND 4 YEAR OLDS,5902622803,5001000090
12.02.2024,Children and Adults,THE DRIVE CARE HOMES LTD,"12,623.04",LD LTS 18-64,RESIDENTIAL CARE,2103822709,1000003889
09.02.2024,Children and Adults,PEOPLE PLUS GROUP LTD (INDEPENDENT LIVING SERVICES),"12,619.20",LD LTS 18-64,PAYMENTS TO CLIENTS (DIRECT PAYMENTS),2103821262,1000061886
29.02.2024,Children and Adults,AMELIA'S HOUSE LIMITED,"12,600.00",DISABILITIES LAC,EXTERNAL AGENCIES AND BODIES,2103833701,1000083007
23.02.2024,Housing,PINNICALE BUILDING SERVICES LIMITED,"12,595.00",CAPITAL PS (HOUSING GF),CAPITAL GRANTS,5902623500,1000082308
23.02.2024,Governance and Assurance,CORPORATE DOCUMENT SERVICES LTD,"12,585.01",REPAIR AND MAINTENANCE SERVICES,PRINTING,5902623849,11324274
12.02.2024,Children and Adults,SOUTHWARK PARK PRIMARY SCHOOL,"12,582.00",NURSERY ED GRANT 3 AND 4 YR OLDS,EARLY YEARS - 3 AND 4 YEAR OLDS,5902621811,5001000062
15.02.2024,Children and Adults,LITTLE WINNERS DAY NURSERY LTD,"12,578.40",NURSERY ED GRANT 3 AND 4 YR OLDS,GRANTS,2103827344,1000041814
29.02.2024,Children and Adults,EVELINA HOSPITAL SCHOOL,"12,558.00",COVID-19 SCHOOLS GRANTS,SCHOOLS CAPITATION,2103831948,5001000031
02.02.2024,Housing,A & E ELKINS LTD,"12,556.57",CAPITAL PS (HRA),CONSTRUCTION MAIN CONTRACT -CERTIFICATED,2103815634,4012501
21.02.2024,Environment Neighbourhoods and Growth,SOFTCAT PLC,"12,556.06",LEISURE CENTRAL COST,COMPUTER MAINTENANCE,5902623336,1000088809
28.02.2024,Children and Adults,FRAMEWORK HOUSING ASSOCIATION,"12,540.00",TIER 4 SERVICES,OTHER CONTRACTORS,5902624433,1000086098
02.02.2024,Housing,PINNICALE BUILDING SERVICES LIMITED,"12,523.00",CAPITAL PS (HOUSING GF),CAPITAL GRANTS,5902619282,1000082308
12.02.2024,Children and Adults,SPA EDUCATION TRUST,"12,512.50",AC & FREE - SPECIAL,STATEMENTED FEES,2103823549,1000081600
12.02.2024,Children and Adults,SPA EDUCATION TRUST,"12,512.50",AC & FREE - SPECIAL,STATEMENTED FEES,2103823550,1000081600
12.02.2024,Children and Adults,SPA EDUCATION TRUST,"12,512.50",AC & FREE - SPECIAL,STATEMENTED FEES,2103823551,1000081600
12.02.2024,Children and Adults,SPA EDUCATION TRUST,"12,512.50",AC & FREE - SPECIAL,STATEMENTED FEES,2103823552,1000081600
12.02.2024,Children and Adults,SPA EDUCATION TRUST,"12,512.50",AC & FREE - SPECIAL,STATEMENTED FEES,2103823553,1000081600
12.02.2024,Children and Adults,SPA EDUCATION TRUST,"12,512.50",AC & FREE - SPECIAL,STATEMENTED FEES,2103823554,1000081600
12.02.2024,Children and Adults,SPA EDUCATION TRUST,"12,512.50",AC & FREE - SPECIAL,STATEMENTED FEES,2103823555,1000081600
12.02.2024,Children and Adults,SPA EDUCATION TRUST,"12,512.50",AC & FREE - SPECIAL,STATEMENTED FEES,2103823556,1000081600
12.02.2024,Children and Adults,SPA EDUCATION TRUST,"12,512.50",AC & FREE - SPECIAL,STATEMENTED FEES,2103823557,1000081600
12.02.2024,Children and Adults,SPA EDUCATION TRUST,"12,512.50",AC & FREE - SPECIAL,STATEMENTED FEES,2103823558,1000081600
12.02.2024,Children and Adults,SPA EDUCATION TRUST,"12,512.50",AC & FREE - SPECIAL,STATEMENTED FEES,2103823559,1000081600
12.02.2024,Children and Adults,SPA EDUCATION TRUST,"12,512.50",AC & FREE - SPECIAL,STATEMENTED FEES,2103823560,1000081600
12.02.2024,Children and Adults,SPA EDUCATION TRUST,"12,512.50",AC & FREE - SPECIAL,STATEMENTED FEES,2103823561,1000081600
12.02.2024,Children and Adults,SPA EDUCATION TRUST,"12,512.50",AC & FREE - SPECIAL,STATEMENTED FEES,2103823562,1000081600
12.02.2024,Children and Adults,SPA EDUCATION TRUST,"12,512.50",AC & FREE - SPECIAL,STATEMENTED FEES,2103823563,1000081600
12.02.2024,Children and Adults,SPA EDUCATION TRUST,"12,512.50",AC & FREE - SPECIAL,STATEMENTED FEES,2103823564,1000081600
12.02.2024,Children and Adults,SPA EDUCATION TRUST,"12,512.50",AC & FREE - SPECIAL,STATEMENTED FEES,2103823565,1000081600
12.02.2024,Children and Adults,SPA EDUCATION TRUST,"12,512.50",AC & FREE - SPECIAL,STATEMENTED FEES,2103823566,1000081600
12.02.2024,Children and Adults,SPA EDUCATION TRUST,"12,512.50",AC & FREE - SPECIAL,STATEMENTED FEES,2103823567,1000081600
13.02.2024,Children and Adults,CARE2SHARE2 LTD,"12,500.00",CHILDREN�S RESID,EXTERNAL AGENCIES AND BODIES,2103826517,1000086672
14.02.2024,Housing,HODGE JONES & ALLEN SOLICITORS,"12,500.00",DISREPAIR,PAYMENTS FOR LEGAL SERVICES,2103826587,11011881
16.02.2024,Children and Adults,JOHN RUSKIN PRIMARY SCHOOL,"12,500.00",LBS MAINSTREAM,HIGH NEEDS - TOP UP FUNDING,5902622701,5001000040
12.02.2024,Children and Adults,FERRY CARE LTD,"12,472.96",LD LTS 18-64,RESIDENTIAL CARE,2103822707,1000041775
15.02.2024,Children and Adults,BUTTERFLY LANE NURSERY LTD,"12,467.48",NURSERY ED GRANT 3 AND 4 YR OLDS,GRANTS,2103827291,1000080549
13.02.2024,Children and Adults,BESSEMER GRANGE PRIMARY SCHOOL,"12,444.00",NURSERY ED GRANT 2YR OLDS,EARLY YEARS - 2 YEAR OLD,2103826360,5001000009
15.02.2024,Children and Adults,PURPLE JAY EAST DULWICH LTD,"12,426.98",NURSERY ED GRANT 3 AND 4 YR OLDS,GRANTS,2103827365,1000086696
22.02.2024,Environment Neighbourhoods and Growth,QA RESEARCH,"12,425.00",HIGHWAYS DEVELOPMENT,OFFICE EXPENSES,5902623631,1000088544
29.02.2024,Suspense,LONDON TOOLS LIMITED,"12,420.00",SUSPENSE ACCOUNT (COMPANY CODE 1000),CREDITORS -GR/IR CLEARING ACCOUNT,5902624823,1000003017
23.02.2024,Children and Adults,FAIRLEY HOUSE SCHOOL,"12,413.00",NMSS/ INDEP SPECIAL,STATEMENTED FEES,2103829801,1000030807
23.02.2024,Children and Adults,FAIRLEY HOUSE SCHOOL,"12,413.00",NMSS/ INDEP SPECIAL,STATEMENTED FEES,2103829802,1000030807
23.02.2024,Children and Adults,FAIRLEY HOUSE SCHOOL,"12,413.00",NMSS/ INDEP SPECIAL,STATEMENTED FEES,2103829803,1000030807
23.02.2024,Children and Adults,FAIRLEY HOUSE SCHOOL,"12,413.00",NMSS/ INDEP SPECIAL,STATEMENTED FEES,2103829804,1000030807
23.02.2024,Children and Adults,FAIRLEY HOUSE SCHOOL,"12,413.00",NMSS/ INDEP SPECIAL,STATEMENTED FEES,2103829805,1000030807
28.02.2024,Children and Adults,ABINGDON HOUSE SCHOOL,"12,397.00",NMSS/ INDEP SPECIAL,STATEMENTED FEES,2103830540,1000072800
28.02.2024,Children and Adults,ABINGDON HOUSE SCHOOL,"12,397.00",NMSS/ INDEP SPECIAL,STATEMENTED FEES,2103830541,1000072800
28.02.2024,Children and Adults,KENT COUNTY COUNCIL,"12,348.79",OTHER LA SPECIAL,STATEMENTED FEES,2103830575,1000053817
12.02.2024,Children and Adults,AGINCARE (SOUTHWARK) LIMITED,"12,312.00",PHY LTS 65+,OTHER PAYMENTS FOR CLIENTS,2103822451,1000089635
23.02.2024,Environment Neighbourhoods and Growth,FABRIKAT (NOTTINGHAM) LTD,"12,303.61",PUBLIC LIGHTING,MATERIALS,5902623823,1036223
12.02.2024,Children and Adults,KISIMUL GROUP LTD,"12,271.44",LD LTS 18-64,SUPPORTED LIVING,2103822641,1000079657
28.02.2024,Finance,INVUSE LIMITED,"12,256.00",CAPITAL PS (STRAT SERV),ICT ACQUISITION,5902624448,1000087372
09.02.2024,Environment Neighbourhoods and Growth,FABRIKAT (NOTTINGHAM) LTD,"12,243.15",PUBLIC LIGHTING,MATERIALS,5902621585,1036223
14.02.2024,Housing,LTA DIRECT LTD,"12,164.50",NIGHTLY TA (NSC),EXTERNAL AGENCIES AND BODIES,5902622287,1000085314
23.02.2024,Housing,HSB ENGINEERING INSURANCE SERVICES,"12,150.00",LIFTS,LIFTS,5902623569,1000089047
12.02.2024,Children and Adults,REESON CARE HOMES LTD,"12,141.04",LD LTS 18-64,SUPPORTED LIVING,2103823481,1000084007
10.02.2024,Housing,AJM ADAPTIONS LTD,"12,036.00",CAPITAL PS (HOUSING GF),CAPITAL GRANTS,5902620973,1000080297
12.02.2024,Children and Adults,DRUMBEAT DOWNHAM SCHOOL,"12,033.33",OTHER LA SPECIAL,STATEMENTED FEES,2103823506,1000072258
16.02.2024,Housing,VIGILANT SECURITY SERVICES UK,"12,032.00",MANOR PLACE HOSTEL,SECURITY SERVICES,5902622543,1000090073
09.02.2024,Children and Adults,REDACTED PERSONAL DATA,"12,010.80",CHILDREN PHB - SEL ICB,PAYMENTS TO CLIENTS (DIRECT PAYMENTS),2103820865,1000076363
28.02.2024,Children and Adults,GREAT OAKS SMALL SCHOOL,"12,000.00",NMSS/ INDEP SPECIAL,STATEMENTED FEES,2103830556,1000090768
12.02.2024,Housing,CALFORD SEADEN LLP,"12,000.00",CAPITAL PS (HRA),CONSTRUCTION FEES - EMPLOYERS AGENT,5902621962,1061592
12.02.2024,Housing,CALFORD SEADEN LLP,"12,000.00",CAPITAL PS (HRA),CONSTRUCTION FEES - EMPLOYERS AGENT,5902621964,1061592
20.02.2024,Environment Neighbourhoods and Growth,DRAIN SCAN (LONDON) LIMITED,"12,000.00",CAPITAL PS (LEISURE),CONSTR'N SUB CONTRACT - NON CERTIFICATED,5902623178,1908746
12.02.2024,Children and Adults,RYE OAK PRIMARY SCHOOL,"11,978.00",NURSERY ED GRANT 3 AND 4 YR OLDS,EARLY YEARS - 3 AND 4 YEAR OLDS,5902621799,5001000059
12.02.2024,Children and Adults,CAMELOT PRIMARY SCHOOL,"11,964.00",NURSERY ED GRANT 3 AND 4 YR OLDS,EARLY YEARS - 3 AND 4 YEAR OLDS,5902621694,5001000014
23.02.2024,Housing,LONDON HOUNSLOW LTD,"11,935.00",NIGHTLY TA (NSC),EXTERNAL AGENCIES AND BODIES,5902623851,1000089873
26.02.2024,Housing,LONDON HOUNSLOW LTD,"11,935.00",NIGHTLY TA (NSC),EXTERNAL AGENCIES AND BODIES,5902623946,1000089873
05.02.2024,Environment Neighbourhoods and Growth,CLYDE & CO,"11,921.00",FACILITIES MANAGEMENT,PAYMENTS FOR LEGAL SERVICES,5902620748,1000067838
01.02.2024,Children and Adults,CARE O LINE,"11,912.97",SEMI-IND CARELEAVERS,OTHER PAYMENTS FOR CLIENTS,2103818268,11241743
12.02.2024,Children and Adults,RIVERSTON SCHOOL,"11,851.88",INDEP MAINSTREAM,STATEMENTED FEES,2103823496,11213696
29.02.2024,Corporate,ST JOSEPHS CATHOLIC INFANTS SCHOOL,"11,849.75",EDUCATION VAT INPUTS,VAT CONTROL ACCOUNT,2103832294,5001000018
12.02.2024,Children and Adults,RIVERSTON SCHOOL,"11,832.80",INDEP MAINSTREAM,STATEMENTED FEES,2103823497,11213696
12.02.2024,Housing,VIGILANT SECURITY SERVICES UK,"11,812.00",DAVID BARKER HOSTEL,SECURITY SERVICES,5902621903,1000090073
02.02.2024,Environment Neighbourhoods and Growth,NOOMA STUDIO LTD,"11,809.45",CAPITAL PS (REGEN),CONSTRUCTION FEES - ARCHITECT,5902619174,1000088638
29.02.2024,Environment Neighbourhoods and Growth,CONWAY AECOM LTD,"11,808.75",CAPITAL PS (REGEN),CONSTRUCTION FEES  - EXTERNAL,2102409991,3000001595
12.02.2024,Children and Adults,RIVERSTON SCHOOL,"11,794.05",INDEP MAINSTREAM,STATEMENTED FEES,2103823495,11213696
13.02.2024,Housing,CALFORD SEADEN LLP,"11,777.17",CAPITAL PS (HRA),CONSTRUCTION FEES - EMPLOYERS AGENT,5902622091,1061592
12.02.2024,Children and Adults,OCEAN COMMUNITY SERVICES LTD,"11,772.88",LD LTS 18-64,RESIDENTIAL CARE,2103822639,1000050124
06.02.2024,Children and Adults,MARJORIE MCCLURE SCHOOL,"11,768.00",OTHER LA SPECIAL,STATEMENTED FEES,2103820029,1000049215
07.02.2024,Children and Adults,MARJORIE MCCLURE SCHOOL,"11,768.00",OTHER LA SPECIAL,STATEMENTED FEES,2103820045,1000049215
12.02.2024,Children and Adults,ALWAYS INCLUSIVE LTD,"11,760.00",LD LTS 18-64,SUPPORTED LIVING,2103822954,1000088268
10.02.2024,Environment Neighbourhoods and Growth,MARTIN ARNOLD LTD,"11,760.00",CAPITAL PS (REGEN),CONSTRUCTION FEES  - EXTERNAL,5902621312,1000076993
26.02.2024,Finance,PROACTIS LTD,"11,760.00",PROCUREMENT ADVICE TEAM,TRAINING,5902624045,1000083745
26.02.2024,Environment Neighbourhoods and Growth,ASD LIGHTING PLC,"11,732.00",PUBLIC LIGHTING,MATERIALS,5902623963,1000079671
12.02.2024,Children and Adults,WELLSPRING CARE HOMES LIMITED,"11,702.08",LD LTS 18-64,SUPPORTED LIVING,2103823244,1000088216
01.02.2024,Children and Adults,THE BREASTFEEDING NETWORK,"11,694.00",FAMILY HUBS GRANT,EXTERNAL AGENCIES AND BODIES,5902620252,1000090479
01.02.2024,Children and Adults,THE BREASTFEEDING NETWORK,"11,694.00",FAMILY HUBS GRANT,EXTERNAL AGENCIES AND BODIES,5902620252,1000090479
01.02.2024,Children and Adults,THE BREASTFEEDING NETWORK,"11,694.00",FAMILY HUBS GRANT,EXTERNAL AGENCIES AND BODIES,5902620252,1000090479
26.02.2024,Environment Neighbourhoods and Growth,TYCO INTEGRATED FIRE & SECURITY,"11,692.66",TOWN CENTRE CCTV,EQUIPMENT PURCHASE & REPAIR,5902623974,1000077948
10.02.2024,Children and Adults,STONEGROVE LIMITED,"11,688.18",CAPITAL PS (SOC SERV),CONSTRUCTION MAIN CONTRACT,2103820317,3000001525
12.02.2024,Children and Adults,CARLTON NURSING HOMES LTD,"11,647.36",LD LTS 18-64,RESIDENTIAL CARE,2103823165,1000070431
12.02.2024,Children and Adults,VOYAGE CARE (MOUNTEARL),"11,622.12",LD LTS 18-64,RESIDENTIAL CARE,2103822315,1000078173
28.02.2024,Children and Adults,WEST LONDON COLLEGE,"11,622.00",FURTHER EDUCATION,STATEMENTED FEES,2103830566,1000086881
28.02.2024,Children and Adults,WEST LONDON COLLEGE,"11,622.00",FURTHER EDUCATION,STATEMENTED FEES,2103830567,1000086881
12.02.2024,Children and Adults,GARLAND LODGE LTD,"11,589.76",LD LTS 18-64,SUPPORTED LIVING,2103822671,1000084016
19.02.2024,Finance,UIPATH LTD,"11,578.63",INCOME MANAGEMENT,SOFTWARE,5902622281,1000088352
23.02.2024,Environment Neighbourhoods and Growth,J & M OASIS LTD,"11,571.80",NO RECOURSE TO PUBLIC FUNDS,ACCOMMODATION CHARGES,5902623919,1000072169
16.02.2024,Children and Adults,RYE OAK PRIMARY SCHOOL,"11,559.00",LBS RB / SEN UNIT,HIGH NEEDS - TOP UP FUNDING,5902622740,5001000059
29.02.2024,Corporate,ST JOHNS & ST CLEMENTS CE SCHOOL,"11,555.79",EDUCATION VAT INPUTS,VAT CONTROL ACCOUNT,2103832325,5001000073
09.02.2024,Children and Adults,FAITHFUL & GOULD,"11,552.76",CAPITAL PS (SOC SERV),CONSTRUCTION FEES,5902621592,1000061390
24.02.2024,Children and Adults,FAITHFUL & GOULD,"11,552.76",CAPITAL PS (SOC SERV),CONSTRUCTION FEES,5902623852,1000061390
12.02.2024,Children and Adults,ACHIEVE TOGETHER SERVICES LIMITED,"11,507.28",LD LTS 18-64,SUPPORTED LIVING,2103822269,1000089975
12.02.2024,Children and Adults,ST JOSEPHS CATHOLIC SCHOOL,"11,500.00",LBS MAINSTREAM,HIGH NEEDS - TOP UP FUNDING,5902621851,5001000076
23.02.2024,Children and Adults,AON SOLUTIONS UK LTD,"11,500.00",DIRECTOR OF EDUCATION,PROFESSIONAL FEES,5902623837,1000000036
15.02.2024,Children and Adults,ST PAULS C OF E PRIMARY SCHOOL,"11,474.32",NURSERY ED GRANT 3 AND 4 YR OLDS,GRANTS,2103827383,1000082314
28.02.2024,Children and Adults,MOAT SCHOOL LTD,"11,465.00",NMSS/ INDEP SPECIAL,STATEMENTED FEES,2103830565,1000010219
12.02.2024,Children and Adults,INSIGHT,"11,458.64",LD LTS 18-64,RESIDENTIAL CARE,2103823225,1825618
12.02.2024,Children and Adults,OPTIMA CARE (SHINE) LONDON LTD,"11,444.80",LD LTS 18-64,SUPPORTED LIVING,2103822667,1000079614
29.02.2024,Children and Adults,SOUTHWARK INCLUSIVE LEARNING SERVICE,"11,388.00",SILS,EARLY YEARS - 3 AND 4 YEAR OLDS,2103831999,5001000105
13.02.2024,Children and Adults,GOOSE GREEN PRIMARY AND NURSERY SCHOOL,"11,296.86",FREE HEALTHY SCHOOL MEALS,EARLY YEARS - 3 AND 4 YEAR OLDS,2103826378,1000070613
09.02.2024,Housing,SAFEGUARDS SECURITY SERVICES LTD,"11,286.00",CAPITAL PS (HRA),CONSTRUCTION SITE COSTS,5902621571,1000087544
12.02.2024,Children and Adults,OVAL CARE HOMES LTD,"11,268.00",LD LTS 18-64 AAD,SUPPORTED LIVING,2103822391,1000089506
12.02.2024,Children and Adults,BRUNSWICK PARK PRIMARY SCHOOL,"11,254.00",NURSERY ED GRANT 3 AND 4 YR OLDS,EARLY YEARS - 3 AND 4 YEAR OLDS,5902621688,5001000013
12.02.2024,Children and Adults,WELLSPRING CARE HOMES LIMITED,"11,252.00",LD LTS 18-64,SUPPORTED LIVING,2103822711,1000088216
12.02.2024,Children and Adults,CAMELOT PRIMARY SCHOOL,"11,250.00",LBS MAINSTREAM,HIGH NEEDS - TOP UP FUNDING,5902621697,5001000014
22.02.2024,Finance,BIG BLUE DOOR LTD,"11,250.00",CAPITAL PS (STRAT SERV),ICT ACQUISITION,5902623710,1000087674
28.02.2024,Children and Adults,KENT COUNTY COUNCIL,"11,230.33",OTHER LA SPECIAL,STATEMENTED FEES,2103830571,1000053817
12.02.2024,Children and Adults,OPTIMA CARE (SHINE) LONDON LTD,"11,198.84",LD LTS 18-64,SUPPORTED LIVING,2103822541,1000079614
12.02.2024,Children and Adults,KARE HEALTHCARE LTD,"11,198.72",LD LTS 18-64,SUPPORTED LIVING,2103823246,1000089212
12.02.2024,Children and Adults,INDEPENDENCE HOMES LTD,"11,184.00",SEN LTS 18-64,RESIDENTIAL CARE,2103822407,1000058961
12.02.2024,Housing,DIAMOND PROPERTY MANAGEMENT LTD,"11,177.00",TA PLACEMENTS,EXTERNAL AGENCIES AND BODIES,5902621602,1000088789
12.02.2024,Children and Adults,BEECHCROFT SUPPORT LIMITED,"11,168.28",LD LTS 18-64,SUPPORTED LIVING,2103822547,1000085412
09.02.2024,Children and Adults,REDACTED PERSONAL DATA,"11,162.76",MEM LTS 18-64,PAYMENTS TO CLIENTS (DIRECT PAYMENTS),2103821671,1000087779
12.02.2024,Children and Adults,SALUTEM SHARED SERVICES II LIMITED,"11,113.20",LD LTS 18-64,SUPPORTED LIVING,2103822578,1000088055
09.02.2024,Children and Adults,REDACTED PERSONAL DATA,"11,100.00",LD LTS 18-64,PAYMENTS TO CLIENTS (DIRECT PAYMENTS),2103821479,1000074131
12.02.2024,Children and Adults,ST GEORGES CE SCHOOL,"11,083.00",LBS MAINSTREAM,HIGH NEEDS - TOP UP FUNDING,5902621828,5001000069
12.02.2024,Children and Adults,HEBER PRIMARY SCHOOL,"11,081.00",NURSERY ED GRANT 3 AND 4 YR OLDS,EARLY YEARS - 3 AND 4 YEAR OLDS,5902621744,5001000035
12.02.2024,Children and Adults,RICHARDSON DUSTON LIMITED,"11,070.52",PHY LTS 18-64,RESIDENTIAL CARE,2103822911,1000089236
15.02.2024,Children and Adults,GERMAN KINDERGARTEN LTD,"11,061.23",NURSERY ED GRANT 3 AND 4 YR OLDS,GRANTS,2103827316,1000058090
12.02.2024,Children and Adults,JOHN RUSKIN PRIMARY SCHOOL,"11,000.00",LBS RB / SEN UNIT,HIGH NEEDS - TOP UP FUNDING,5902621760,5001000040
22.02.2024,Environment Neighbourhoods and Growth,OVE ARUP & PARTNERS LTD,"11,000.00",CAPITAL PS (REGEN),CONSTRUCTION MAIN CONTRACT,5902623712,1000066606
29.02.2024,DSO,SER CONTRACTOR LTD,"10,982.20",SR COMMUNAL - DELIVERY TEAM,OTHER CONTRACTORS,2103831604,3000002234
23.02.2024,Housing,HSB ENGINEERING INSURANCE SERVICES,"10,963.70",LIFTS,LIFTS,5902623596,1000089047
17.02.2024,Housing,BEACON PARTNERSHIP LLP,"10,960.00",DEVELOPMENT DELIVERY,CONSULTANTS SERVICES,5902621510,1000082300
15.02.2024,Children and Adults,HATCHING DRAGONS SOUTHWARK LTD,"10,959.45",NURSERY ED GRANT 3 AND 4 YR OLDS,GRANTS,2103827324,1000087180
29.02.2024,Children and Adults,HATCHING DRAGONS SOUTHWARK LTD,"10,959.45",NURSERY ED GRANT 3 AND 4 YR OLDS,GRANTS,2103831499,1000087180
29.02.2024,Housing,CENTENNIAL PROPERTY LIMITED,"10,911.40",NIGHTLY TA (NSC),EXTERNAL AGENCIES AND BODIES,5902624536,1000083022
21.02.2024,Environment Neighbourhoods and Growth,NORBURY PROPERTY SERVICES (LONDON) LTD,"10,840.00",NO RECOURSE TO PUBLIC FUNDS,ACCOMMODATION CHARGES,5902623347,1000075566
15.02.2024,Children and Adults,UNDER THE WILLOW NURSERY,"10,816.28",NURSERY ED GRANT 3 AND 4 YR OLDS,GRANTS,2103827395,1000071830
14.02.2024,Children and Adults,STONEGROVE LIMITED,"10,812.00",CAPITAL PS (EDUCATION),CONSTRUCTION,2103826567,3000001525
28.02.2024,Children and Adults,ARCHBISHOP SUMNER CHURCH OF ENGLAND,"10,802.55",OTHER LA MAINSTREAM,STATEMENTED FEES,2103830559,1000086013
28.02.2024,Children and Adults,ARCHBISHOP SUMNER CHURCH OF ENGLAND,"10,802.55",OTHER LA MAINSTREAM,STATEMENTED FEES,2103830560,1000086013
12.02.2024,Children and Adults,BEECHCROFT SUPPORT LIMITED,"10,767.12",LD LTS 18-64,SUPPORTED LIVING,2103822546,1000085412
28.02.2024,Children and Adults,KENT COUNTY COUNCIL,"10,765.05",OTHER LA SPECIAL,STATEMENTED FEES,2103830573,1000053817
13.02.2024,Children and Adults,THE NEW SCHOOL,"10,758.33",NMSS/ INDEP SPECIAL,STATEMENTED FEES,2103826558,1000088932
11.02.2024,Environment Neighbourhoods and Growth,J C CONSULTANT SERVICES LTD,"10,746.00",CHIEF EXECUTIVE'S OFFICE,EXTERNAL AGENCIES AND BODIES,5902621422,1000042476
12.02.2024,Children and Adults,FIRST CARE LODGE,"10,734.88",LD LTS 18-64,SUPPORTED LIVING,2103822554,1000084196
15.02.2024,Finance,SAPPHIRE CONSULTANCY LIMITED,"10,725.00",PROJECTS,OTHER CONTRACTORS,5902621248,1000089101
29.02.2024,Corporate,HAYMERLE SCHOOL,"10,723.98",EDUCATION VAT INPUTS,VAT CONTROL ACCOUNT,2103832297,5001000045
29.02.2024,Corporate,HIGHSHORE SCHOOL,"10,709.38",EDUCATION VAT INPUTS,VAT CONTROL ACCOUNT,2103832280,5001000046
12.02.2024,Children and Adults,DRUMBEAT DOWNHAM SCHOOL,"10,707.50",OTHER LA SPECIAL,STATEMENTED FEES,2103823502,1000072258
09.02.2024,Children and Adults,PEOPLE PLUS GROUP LTD (INDEPENDENT LIVING SERVICES),"10,707.20",LD LTS 18-64,PAYMENTS TO CLIENTS (DIRECT PAYMENTS),2103821732,1000061886
23.02.2024,Environment Neighbourhoods and Growth,MARTIN ARNOLD LTD,"10,702.70",CAPITAL PS (REGEN),CONSTRUCTION FEES - EMPLOYERS AGENT,5902623772,1000076993
14.02.2024,Environment Neighbourhoods and Growth,WATER PLUS LTD,"10,674.77",SEVEN ISLANDS LEISURE CENTRE,WATER,5902622230,1000087903
12.02.2024,Children and Adults,KARE HEALTHCARE LTD,"10,674.56",LD LTS 18-64,SUPPORTED LIVING,2103822771,1000089212
05.02.2024,Environment Neighbourhoods and Growth,LIBRA CONSTRUCTION SERVICES LTD,"10,671.00",CAPITAL PS (REGEN),CONSTRUCTION MAIN CONTRACT,2103818351,3000000875
29.02.2024,Corporate,ALBION PRIMARY SCHOOL,"10,656.62",EDUCATION VAT INPUTS,VAT CONTROL ACCOUNT,2103832241,5001000000
13.02.2024,Housing,GOLDSTONE ESTATES LTD,"10,631.10",NIGHTLY TA (NSC),EXTERNAL AGENCIES AND BODIES,5902622154,1000076548
12.02.2024,Children and Adults,LONDON CYRENIANS HOUSING LTD,"10,608.00",LD LTS 18-64,SUPPORTED LIVING,2103823265,1000078600
22.02.2024,Housing,PENNINGTON CHOICES LTD,"10,605.02",PENNINGTON,I-WORLD CONTRACTORS HOLDING ACCOUNT,5902623669,1000067888
21.02.2024,Environment Neighbourhoods and Growth,CONSTELLIA PUBLIC LIMITED,"10,598.76",PECKHAM PULSE LEISURE CENTRE,PREMISES CLEANING,5902623293,1000088137
09.02.2024,Suspense,LONDON PENSIONS FUND AUTHORITY,"10,579.17",SUSPENSE ACCOUNT (COMPANY CODE 1000),PAYROLL CREDITORS - OTHER PENSION FUNDS,2103820416,1000062252
10.02.2024,Environment Neighbourhoods and Growth,BARCHAM TREES PLC,"10,564.00",CAPITAL PS (LEISURE),CONSTRUCTION FEES,5902620679,11254891
29.02.2024,Corporate,CHERRY GARDEN SCHOOL,"10,542.72",EDUCATION VAT INPUTS,VAT CONTROL ACCOUNT,2103832278,5001000020
12.02.2024,Children and Adults,OPTIMA CARE (SHINE) LONDON LTD,"10,535.88",LD LTS 18-64,SUPPORTED LIVING,2103823021,1000079614
28.02.2024,Environment Neighbourhoods and Growth,THEDESIGNCONCEPT LTD,"10,511.00",CAPITAL PS (LEISURE),CAPITAL GRANTS,5902624473,1000090383
07.02.2024,Environment Neighbourhoods and Growth,VIKING SYSTEMS LTD,"10,500.00",SDM BUDGET,SOFTWARE,5902621236,1000090601
29.02.2024,Housing,GEM ENVIRONMENTAL BUILDING,"10,492.30",CAPITAL PS (HRA),CONSTRUCTION,5902623882,1000075428
12.02.2024,Children and Adults,ROYAL HOSPITAL FOR NEURODISABILITY,"10,463.12",PHY LTS 65+,NURSING PLACEMENTS FEES,2103822982,1010365
29.02.2024,Children and Adults,CRAWFORD PRIMARY SCHOOL,"10,451.60",NURSERY ED GRANT 3 AND 4 YR OLDS,EARLY YEARS - 3 AND 4 YEAR OLDS,2103832084,5001000024
11.02.2024,Housing,CONTAKT LTD,"10,450.00",ENG CONTRACTS,PROFESSIONAL FEES,5902620712,1000089730
10.02.2024,Housing,STAR PEOPLE LTD,"10,449.48",PSL PLACEMENTS,EXTERNAL AGENCIES AND BODIES,5902621343,1000088790
09.02.2024,Environment Neighbourhoods and Growth,FABRIKAT (NOTTINGHAM) LTD,"10,429.35",PUBLIC LIGHTING,MATERIALS,5902621584,1036223
12.02.2024,Children and Adults,BOUGHTON GREEN ROAD LIMITED,"10,427.64",PHY LTS 18-64,NURSING PLACEMENTS FEES,2103822268,1000089115
14.02.2024,Housing,HANNE & CO SOLICITORS LLP,"10,416.67",DISREPAIR,PAYMENTS FOR LEGAL SERVICES,2103826582,1000017312
12.02.2024,Children and Adults,LOVING CARE LTD,"10,405.00",LD LTS 18-64,RESIDENTIAL CARE,2103822504,1000082873
21.02.2024,Finance,AMPLIFY TECHNOLOGY LIMITED,"10,400.00",SAP & PAYROLL STAFFING COSTS,CONSULTANTS SERVICES,5902623388,1000090570
01.02.2024,Housing,TLK PROPERTY & INVESTMENTS LTD,"10,396.50",NIGHTLY TA (NSC),EXTERNAL AGENCIES AND BODIES,5902620508,1000065661
06.02.2024,Housing,REDACTED PERSONAL DATA,"10,396.50",NIGHTLY TA (NSC),EXTERNAL AGENCIES AND BODIES,5902620801,1000061134
23.02.2024,Environment Neighbourhoods and Growth,NORBURY PROPERTY SERVICES (LONDON) LTD,"10,385.00",NO RECOURSE TO PUBLIC FUNDS,ACCOMMODATION CHARGES,5902623906,1000075566
12.02.2024,Children and Adults,INSIGHT,"10,368.64",LD LTS 18-64,RESIDENTIAL CARE,2103823163,1825618
09.02.2024,Children and Adults,PENDERELS TRUST LTD,"10,367.62",PHB - SEL ICB,RECOVERABLE COSTS INCL. HEALTH,2103822008,1000075856
29.02.2024,Corporate,ST ANTHONYS RC SCHOOL,"10,365.28",EDUCATION VAT INPUTS,VAT CONTROL ACCOUNT,2103832268,5001000064
12.02.2024,Children and Adults,LONDON BOROUGH OF BEXLEY,"10,354.00",SCH TRANS � TRAVEL,M&M ALLOWANCE CO-OPS,5902621914,1000015275
28.02.2024,Children and Adults,KENT COUNTY COUNCIL,"10,333.63",OTHER LA SPECIAL,STATEMENTED FEES,2103830574,1000053817
26.02.2024,Housing,SECURENT LTD,"10,323.00",NIGHTLY TA (NSC),EXTERNAL AGENCIES AND BODIES,5902624038,1000079400
23.02.2024,Environment Neighbourhoods and Growth,LONDON WILDLIFE TRUST,"10,322.82",CAPITAL PS (LEISURE),CAPITAL GRANTS,5902623552,1000031606
13.02.2024,Children and Adults,CARBONE CLINIC UK LTD,"10,305.00",AP & HOSPITAL SCHLS,STATEMENTED FEES,2103826345,1000080937
12.02.2024,Children and Adults,WELLSPRING CARE HOMES LIMITED,"10,296.00",LD LTS 18-64,SUPPORTED LIVING,2103822748,1000088216
01.02.2024,Environment Neighbourhoods and Growth,KNOX BHAVAN ARCHITECTS LLP,"10,260.69",CAPITAL PS (REGEN),CONSTRUCTION FEES - ARCHITECT,5902619184,1000088675
09.02.2024,Housing,SAFEGUARDS SECURITY SERVICES LTD,"10,260.00",CAPITAL PS (HRA),CONSTRUCTION SITE COSTS,5902621569,1000087544
11.02.2024,Children and Adults,VOICEABILITY ADVOCACY,"10,250.00",INDEPENDENT MC ADVOCACY,ADVOCACY,5902620792,1000064254
20.02.2024,Children and Adults,VOICEABILITY ADVOCACY,"10,250.00",INDEPENDENT MC ADVOCACY,ADVOCACY,5902623206,1000064254
09.02.2024,Children and Adults,PEOPLE PLUS GROUP LTD (INDEPENDENT LIVING SERVICES),"10,225.97",PHY LTS 18-64,DISCRETIONARY FLEXIBLE FEES & INCOME,2103821576,1000061886
18.02.2024,Environment Neighbourhoods and Growth,CYCLEHOOP LTD,"10,200.00",CAPITAL PS (LEISURE),CONSTRUCTION,5902621954,1000057894
15.02.2024,Children and Adults,BASCULE LTD,"10,191.23",NURSERY ED GRANT 3 AND 4 YR OLDS,GRANTS,2103827357,1000037268
12.02.2024,Children and Adults,HM PRISON & PROBATION SERVICE,"10,168.00",REMAND - YDA YOI,RESIDENTIAL CARE,5902621621,1000083827
09.02.2024,Children and Adults,REDACTED PERSONAL DATA,"10,158.77",SPECIALIST CARE,PAYMENTS TO CLIENTS (DIRECT PAYMENTS),2103821006,1000074135
22.02.2024,Children and Adults,REDACTED PERSONAL DATA,"10,146.00",KINSHIP FOSTERING,PAYMENTS TO CARERS,2103829362,1000085615
12.02.2024,Children and Adults,ACHIEVE TOGETHER SERVICES LIMITED,"10,142.40",LD LTS 18-64,RESIDENTIAL CARE,2103822999,1000089975
06.02.2024,DSO,J KASH LTD,"10,141.58",DAMP & MOULD TEAM,OTHER CONTRACTORS,2103818858,3000002219
12.02.2024,Children and Adults,ST JAMES THE GREAT RC SCHOOL,"10,137.00",NURSERY ED GRANT 3 AND 4 YR OLDS,EARLY YEARS - 3 AND 4 YEAR OLDS,5902621833,5001000071
12.02.2024,Children and Adults,VALUE IN CARE LTD,"10,120.72",LD LTS 18-64,RESIDENTIAL CARE,2103823128,1000041975
16.02.2024,Children and Adults,BRUNSWICK PARK PRIMARY SCHOOL,"10,107.00",LBS RB / SEN UNIT,HIGH NEEDS - TOP UP FUNDING,5902622637,5001000013
16.02.2024,Children and Adults,SNOWSFIELDS PRIMARY SCHOOL,"10,107.00",LBS RB / SEN UNIT,HIGH NEEDS - TOP UP FUNDING,5902622746,5001000061
12.02.2024,Children and Adults,IVYDALE PRIMARY SCHOOL,"10,083.00",LBS MAINSTREAM,HIGH NEEDS - TOP UP FUNDING,5902621755,5001000038
29.02.2024,Corporate,ENGLISH MARTYRS RC PRIMARY SCHOOL,"10,079.97",EDUCATION VAT INPUTS,VAT CONTROL ACCOUNT,2103832282,5001000030
12.02.2024,Housing,HACKNEY COUNCIL,"10,062.50",DEVELOPMENT DELIVERY,CONSULTANTS SERVICES,5902621894,1000071852
12.02.2024,Children and Adults,CARETECH COMMUNITY SERVICES LTD,"10,034.64",LD LTS 18-64,RESIDENTIAL CARE,2103822844,1000066698
07.02.2024,Finance,HIAM ALI LTD,"10,023.50",CORONER'S,PROFESSIONAL FEES,5902621160,1000084044
21.02.2024,Housing,BRESLIN CONSTRUCTION LTD,"10,000.00",COMMERCIAL PROPERTIES,BUILDING R&M,2103828120,3000001948
28.02.2024,Housing,COYNE LEARMONTH (CROSBY) LIMITED,"10,000.00",DISREPAIR,PAYMENTS FOR LEGAL SERVICES,2103830533,1000088221
02.02.2024,Environment Neighbourhoods and Growth,WAKUDA LTD,"10,000.00",SOUTHWARK PIONEER FUND,GRANTS,5902620424,1000090662
02.02.2024,Environment Neighbourhoods and Growth,JUST FAB KITCHEN LTD,"10,000.00",SOUTHWARK PIONEER FUND,GRANTS,5902620425,1000090628
06.02.2024,Children and Adults,ALLPAY LTD (CHILDRENS ALLOWANCE),"10,000.00",C & F FINANCE TEAM,OTHER PAYMENTS FOR CLIENTS,5902620762,1000080484
19.02.2024,Environment Neighbourhoods and Growth,GEP ENVIRONMENTAL LIMITED,"10,000.00",CAPITAL PS (REGEN),CONSTRUCTION MAIN CONTRACT,5902621010,1000086143
07.02.2024,Environment Neighbourhoods and Growth,THE POLAR BEAR LAB LTD,"10,000.00",SOUTHWARK PIONEER FUND,GRANTS,5902621178,1000090708
09.02.2024,Finance,KALMARS COMMERCIAL LTD,"10,000.00",MASTER PLAN - H/WAY & TRANS INTERCHANGE,PROFESSIONAL FEES,5902621484,1000081844
09.02.2024,Environment Neighbourhoods and Growth,WHITESIDE ELLIOTT DESIGN LTD,"10,000.00",SOUTHWARK PIONEER FUND,GRANTS,5902621488,1000084721
12.02.2024,Finance,FAMILY FUND TRADING LTD,"10,000.00",SESS,OTHER PAYMENTS FOR CLIENTS,5902621889,1000071092
14.02.2024,Environment Neighbourhoods and Growth,BLACK COWBOY COFFEE LTD,"10,000.00",SOUTHWARK PIONEER FUND,GRANTS,5902622316,1000084448
19.02.2024,Children and Adults,ALLPAY LTD (ADULTS - INSTANT ISSUE,"10,000.00",DIR OF ASC,MISCELLANEOUS RECHARGES,5902623087,1000079884
21.02.2024,Environment Neighbourhoods and Growth,NORBURY PROPERTY SERVICES (LONDON) LTD,"10,000.00",NO RECOURSE TO PUBLIC FUNDS,ACCOMMODATION CHARGES,5902623353,1000075566
23.02.2024,Environment Neighbourhoods and Growth,PECKHAM PLATFORM LTD,"10,000.00",ARTS GRANTS,GRANTS,5902623527,1000075417
29.02.2024,Environment Neighbourhoods and Growth,CHASE GARDENS LIMITED,"10,000.00",SOUTHWARK PIONEER FUND,GRANTS,5902624056,1000090629
29.02.2024,Housing,AJM ADAPTIONS LTD,"10,000.00",CAPITAL PS (HOUSING GF),CAPITAL GRANTS,5902624575,1000080297
29.02.2024,Children and Adults,LONDON BOROUGH OF LAMBETH,"10,000.00",SEXUAL HEALTH - ADVICE,EXTERNAL AGENCIES AND BODIES,5902624927,1000044545
16.02.2024,Housing,CHRIS DAVIS CONSULTANCY LTD,"9,975.00",CAPITAL PS (HRA),CONSTRUCTION,5902622820,1000084202
09.02.2024,Housing,BRIDGEWATER ROOFING CONTRACTORS LTD,"9,969.35",MAJOR REPAIRS,BUILDING R&M,2103805231,3000001482
12.02.2024,Housing,BRIDGEWATER ROOFING CONTRACTORS LTD,"9,969.35",MAJOR REPAIRS,BUILDING R&M,2103823485,3000001482
12.02.2024,Children and Adults,OPTIMA CARE (SHINE) LONDON LTD,"9,946.12",LD LTS 18-64,SUPPORTED LIVING,2103822726,1000079614
12.02.2024,Children and Adults,OPTIMA CARE (SHINE) LONDON LTD,"9,946.12",LD LTS 18-64,SUPPORTED LIVING,2103822727,1000079614
13.02.2024,Children and Adults,RIVERSIDE PRIMARY SCHOOL,"9,944.00",MATERNITY COVER,SCHOOLS CAPITATION,2103826363,5001000056
21.02.2024,Housing,SPD ESTATE LTD,"9,920.00",RAPID REHOUSING,EXTERNAL AGENCIES AND BODIES,5902623324,1000087122
12.02.2024,Children and Adults,OZUMBA TRAINING AND CONSULTANCY SERVICES,"9,914.72",LD LTS 18-64,SUPPORTED LIVING,2103822805,1000090089
12.02.2024,Children and Adults,BEECHCROFT SUPPORT LIMITED,"9,909.96",LD LTS 18-64,SUPPORTED LIVING,2103822548,1000085412
02.02.2024,Housing,URANG PROPERTY MANAGEMENT LTD,"9,905.55",RESIDENT SERVICES BUSINESS SUPPORT,SERVICE CHARGES,5902620430,1000083463
12.02.2024,Children and Adults,LONDON CYRENIANS HOUSING LTD,"9,876.16",LD LTS 18-64,SUPPORTED LIVING,2103823019,1000078600
12.02.2024,Children and Adults,INSIGHT,"9,857.96",LD LTS 18-64,RESIDENTIAL CARE,2103823213,1825618
15.02.2024,Children and Adults,GERMAN KINDERGARTEN LTD,"9,855.90",NURSERY ED GRANT 3 AND 4 YR OLDS,GRANTS,2103827317,1000058090
28.02.2024,Environment Neighbourhoods and Growth,DKUK PROJECTS LTD,"9,850.00",SOUTHWARK PIONEER FUND,GRANTS,5902624411,1000080510
23.02.2024,Children and Adults,HM PRISON & PROBATION SERVICE,"9,840.00",REMAND - YDA YOI,RESIDENTIAL CARE,2103829569,1000083827
07.02.2024,Finance,BIDVEST NOONAN (UK) LTD,"9,836.68",TOWER WORKSHOPS,SECURITY SERVICES,5902621221,1000087102
16.02.2024,Children and Adults,ST JAMES CE PRIMARY SCHOOL,"9,833.00",NURSERY ED GRANT 3 AND 4 YR OLDS,EARLY YEARS - 3 AND 4 YEAR OLDS,5902622765,5001000070
29.02.2024,Corporate,MICHAEL FARADAY PRIMARY SCHOOL,"9,826.80",EDUCATION VAT INPUTS,VAT CONTROL ACCOUNT,2103832305,5001000048
12.02.2024,Children and Adults,ARLINGTON COURT CARE HOME,"9,822.77",PHY LTS 65+,NURSING PLACEMENTS FEES,2103822473,1000084313
29.02.2024,Children and Adults,TIGERS CHILDCARE LTD,"9,784.80",SCHOOLS SUPPLEMENTARY GRANT,GRANTS,2103834023,1000084290
12.02.2024,Children and Adults,CASSRA LLP T/A CROHAM PLACE,"9,780.00",PHY LTS 18-64,NURSING PLACEMENTS FEES,2103822864,1000082899
08.02.2024,Housing,PRB ESTATES LTD,"9,776.13",DUCTCLEAN,I-WORLD CONTRACTORS HOLDING ACCOUNT,2103820071,3000001691
12.02.2024,Children and Adults,BELLENDEN PRIMARY SCHOOL,"9,764.00",NURSERY ED GRANT 3 AND 4 YR OLDS,EARLY YEARS - 3 AND 4 YEAR OLDS,5902621674,5001000007
07.02.2024,Children and Adults,BARTS HEALTH NHS TRUST,"9,748.08",SEXUAL HEALTH - STI,MEDICAL / HEALTH & SAFETY SERVICES,5902621155,1000055762
12.02.2024,Children and Adults,HIGH VIEW CARE SERVICES LTD,"9,745.92",SUB LTS 18-64,RESIDENTIAL CARE,2103822338,1000065920
29.02.2024,Children and Adults,CAVENDISH SCHOOL,"9,740.00",NMSS/ INDEP SPECIAL,STATEMENTED FEES,2103831571,1000024278
29.02.2024,Children and Adults,CAVENDISH SCHOOL,"9,740.00",NMSS/ INDEP SPECIAL,STATEMENTED FEES,2103831572,1000024278
29.02.2024,Children and Adults,CAVENDISH SCHOOL,"9,740.00",NMSS/ INDEP SPECIAL,STATEMENTED FEES,2103831573,1000024278
29.02.2024,Children and Adults,CAVENDISH SCHOOL,"9,740.00",NMSS/ INDEP SPECIAL,STATEMENTED FEES,2103831574,1000024278
29.02.2024,Children and Adults,CAVENDISH SCHOOL,"9,740.00",NMSS/ INDEP SPECIAL,STATEMENTED FEES,2103831575,1000024278
29.02.2024,Children and Adults,CAVENDISH SCHOOL,"9,740.00",NMSS/ INDEP SPECIAL,STATEMENTED FEES,2103831576,1000024278
29.02.2024,Children and Adults,CAVENDISH SCHOOL,"9,740.00",NMSS/ INDEP SPECIAL,STATEMENTED FEES,2103831577,1000024278
29.02.2024,Children and Adults,CAVENDISH SCHOOL,"9,740.00",NMSS/ INDEP SPECIAL,STATEMENTED FEES,2103831578,1000024278
29.02.2024,Children and Adults,CAVENDISH SCHOOL,"9,740.00",NMSS/ INDEP SPECIAL,STATEMENTED FEES,2103831579,1000024278
29.02.2024,Children and Adults,CAVENDISH SCHOOL,"9,740.00",NMSS/ INDEP SPECIAL,STATEMENTED FEES,2103831580,1000024278
29.02.2024,Children and Adults,CAVENDISH SCHOOL,"9,740.00",NMSS/ INDEP SPECIAL,STATEMENTED FEES,2103831581,1000024278
29.02.2024,Children and Adults,CAVENDISH SCHOOL,"9,740.00",NMSS/ INDEP SPECIAL,STATEMENTED FEES,2103831582,1000024278
29.02.2024,Children and Adults,CAVENDISH SCHOOL,"9,740.00",NMSS/ INDEP SPECIAL,STATEMENTED FEES,2103831583,1000024278
29.02.2024,Children and Adults,CAVENDISH SCHOOL,"9,740.00",NMSS/ INDEP SPECIAL,STATEMENTED FEES,2103831584,1000024278
29.02.2024,Children and Adults,CAVENDISH SCHOOL,"9,740.00",NMSS/ INDEP SPECIAL,STATEMENTED FEES,2103831585,1000024278
29.02.2024,Children and Adults,CAVENDISH SCHOOL,"9,740.00",NMSS/ INDEP SPECIAL,STATEMENTED FEES,2103831586,1000024278
29.02.2024,Children and Adults,CAVENDISH SCHOOL,"9,740.00",NMSS/ INDEP SPECIAL,STATEMENTED FEES,2103831596,1000024278
15.02.2024,Housing,HMRC STAMP TAXES ONLY SDLT,"9,740.00",CAPITAL PS (HRA),LAND & BUILDINGS ACQUISITION FEES,5902622466,1000052141
12.02.2024,Children and Adults,FIRST CARE LODGE,"9,730.24",LD LTS 18-64,SUPPORTED LIVING,2103823022,1000084196
08.02.2024,Children and Adults,CHIPTECH INTERNATIONAL LIMITED,"9,720.00",TELECARE EQUIPMENT,EQUIPMENT PURCHASE & REPAIR,5902621461,1000088502
12.02.2024,Children and Adults,ASD UNIQUE SERVICES LTD,"9,665.80",LD LTS 18-64,RESIDENTIAL CARE,2103823015,1000038819
15.02.2024,Children and Adults,LITTLE PIPS PRESCHOOL,"9,649.80",NURSERY ED GRANT 3 AND 4 YR OLDS,GRANTS,2103827342,1000079580
12.02.2024,Children and Adults,BRANDON TRUST,"9,620.36",LD LTS 18-64,SUPPORTED LIVING,2103823138,1000042417
22.02.2024,Environment Neighbourhoods and Growth,SALIX MECHANICAL SERVICES LLP,"9,610.00",SEVEN ISLANDS LEISURE CENTRE,BUILDING R&M,5902623706,1000088961
27.02.2024,Children and Adults,INTEGRATED SERVICES PROGRAMME,"9,572.07",FRIENDS & FAMILY FOSTERING,EXTERNAL AGENCIES AND BODIES,2103830299,1642068
12.02.2024,Children and Adults,CARETECH COMMUNITY SERVICES LTD,"9,553.40",LD LTS 18-64,RESIDENTIAL CARE,2103822498,1000066698
09.02.2024,Environment Neighbourhoods and Growth,FABRIKAT (NOTTINGHAM) LTD,"9,522.45",PUBLIC LIGHTING,MATERIALS,5902621574,1036223
15.02.2024,Housing,STABILIS ASSOCIATES LTD,"9,504.00",REPAIRS OPERATIONS,PROFESSIONAL FEES,5902621401,1000082512
29.02.2024,Housing,ENTITLEDTO LTD,"9,500.00",HOUSING OPTIONS,COMMS & COMPUTING CONTRACT CHARGES,5902624676,1000088386
29.02.2024,Children and Adults,GOODRICH PRIMARY SCHOOL,"9,497.57",NURSERY ED GRANT 3 AND 4 YR OLDS,EARLY YEARS - 3 AND 4 YEAR OLDS,2103832085,5001000028
10.02.2024,Environment Neighbourhoods and Growth,METIS CONSULTANTS LIMITED,"9,495.83",SECTION 278 & 38,OTHER CONTRACTORS,5902620394,1000086330
12.02.2024,Children and Adults,RAINTREE CARE LTD,"9,480.00",LD LTS 18-64 AAD,SUPPORTED LIVING,2103822584,1000087495
13.02.2024,Children and Adults,ST PAULS C OF E PRIMARY SCHOOL,"9,470.81",FREE HEALTHY SCHOOL MEALS,EARLY YEARS - 3 AND 4 YEAR OLDS,2103826387,1000082314
09.02.2024,Environment Neighbourhoods and Growth,MACE LTD,"9,450.00",CAPITAL PS (REGEN),CONSTRUCTION FEES  - EXTERNAL,5902620418,1000067959
12.02.2024,Children and Adults,CHOICE SUPPORT,"9,434.40",LD LTS 18-64,SUPPORTED LIVING,2103823254,1104183
12.02.2024,Children and Adults,ALWAYS INCLUSIVE LTD,"9,422.40",LD LTS 18-64,SUPPORTED LIVING,2103822976,1000088268
12.02.2024,Children and Adults,THE ST THOMAS THE APOSTLE COLLEGE,"9,417.00",LBS MAINSTREAM,HIGH NEEDS - TOP UP FUNDING,5902621843,5001000074
12.02.2024,Children and Adults,THE GROVE CHILDRENS CENTRE,"9,417.00",LBS MAINSTREAM,HIGH NEEDS - TOP UP FUNDING,5902621871,5001000090
29.02.2024,Children and Adults,TUKE SCHOOL,"9,384.00",COVID-19 SCHOOLS GRANTS,SCHOOLS CAPITATION,2103831943,5001000097
29.02.2024,Children and Adults,BRUNSWICK PARK PRIMARY SCHOOL,"9,380.75",NURSERY ED GRANT 3 AND 4 YR OLDS,EARLY YEARS - 3 AND 4 YEAR OLDS,2103832100,5001000013
10.02.2024,Finance,FAMILY FUND TRADING LTD,"9,373.32",SESS,OTHER PAYMENTS FOR CLIENTS,5902621090,1000071092
29.02.2024,Corporate,ST JOHNS & ST CLEMENTS CE SCHOOL,"9,367.54",EDUCATION VAT INPUTS,VAT CONTROL ACCOUNT,2103832230,5001000073
23.02.2024,Children and Adults,CORAL SUPPORT AND CRISIS INTERVENTION SERVICE,"9,365.60",FAMILY ASSESSMENTS,RESIDENTIAL CARE,2103829575,1000081529
10.02.2024,Finance,LEADTEC LIMITED,"9,350.00",CAPITAL PS (STRAT SERV),ICT ACQUISITION,5902620834,1000088992
15.02.2024,Children and Adults,WATERGATE SCHOOL,"9,348.69",OTHER LA SPECIAL,STATEMENTED FEES,2103827227,1000081484
15.02.2024,Children and Adults,WATERGATE SCHOOL,"9,348.69",OTHER LA SPECIAL,STATEMENTED FEES,2103827228,1000081484
16.02.2024,Children and Adults,KEYWORTH PRIMARY SCHOOL,"9,347.00",NURSERY ED GRANT 3 AND 4 YR OLDS,EARLY YEARS - 3 AND 4 YEAR OLDS,5902622702,5001000041
10.02.2024,Environment Neighbourhoods and Growth,BESA PUBLICATIONS LIMITED,"9,342.00",CAPITAL PS (REGEN),CONSTRUCTION MAIN CONTRACT,5902620951,1000087778
26.02.2024,Children and Adults,KENT HOMEFINDING & FOSTERING LTD,"9,333.58",DISABILITIES LAC,EXTERNAL AGENCIES AND BODIES,2103829988,1000033978
12.02.2024,Children and Adults,RYE OAK PRIMARY SCHOOL,"9,333.00",LBS MAINSTREAM,HIGH NEEDS - TOP UP FUNDING,5902621804,5001000059
12.02.2024,Children and Adults,ST ANTHONYS RC SCHOOL,"9,333.00",LBS MAINSTREAM,HIGH NEEDS - TOP UP FUNDING,5902621818,5001000064
12.02.2024,Children and Adults,GREEN CARE AND SUPPORT LIMITED,"9,276.80",LD LTS 18-64,SUPPORTED LIVING,2103822553,1000087661
16.02.2024,Children and Adults,IVYDALE PRIMARY SCHOOL,"9,260.00",NURSERY ED GRANT 3 AND 4 YR OLDS,EARLY YEARS - 3 AND 4 YEAR OLDS,5902622694,5001000038
21.02.2024,Children and Adults,FAITHFUL & GOULD,"9,256.89",CAPITAL PS (EDUCATION),CONSTRUCTION FEES  - EXTERNAL,5902623346,1000061390
16.02.2024,Governance and Assurance,EXCEL EXECUTIVE LTD,"9,256.25",REPAIR AND MAINTENANCE SERVICES,CAB FARES,5902622523,1000080424
12.02.2024,Children and Adults,FIRST CARE LODGE,"9,256.00",LD LTS 18-64,SUPPORTED LIVING,2103823005,1000084196
04.02.2024,Housing,PULSE ASSOCIATES LTD (T/A PULSE CONSULT),"9,250.00",CAPITAL PS (HRA),CONSTRUCTION FEES  - EXTERNAL,5902620419,1000087233
16.02.2024,Children and Adults,UNIVERSITY OF GREENWICH,"9,250.00",SCHOLARSHIP SCHEME,EXTERNAL AGENCIES AND BODIES,5902622842,1000013432
16.02.2024,Children and Adults,UNIVERSITY OF GREENWICH,"9,250.00",SCHOLARSHIP SCHEME,EXTERNAL AGENCIES AND BODIES,5902622844,1000013432
16.02.2024,Children and Adults,UNIVERSITY OF GREENWICH,"9,250.00",SCHOLARSHIP SCHEME,EXTERNAL AGENCIES AND BODIES,5902622845,1000013432
16.02.2024,Children and Adults,UNIVERSITY OF GREENWICH,"9,250.00",SCHOLARSHIP SCHEME,EXTERNAL AGENCIES AND BODIES,5902622846,1000013432
28.02.2024,Housing,QUINARY LTD,"9,238.00",NIGHTLY TA (NSC),EXTERNAL AGENCIES AND BODIES,5902624398,1000029106
29.02.2024,DSO,DIAMOND SCAFFOLDING (SOUTH EAST),"9,220.80",SR COMMUNAL - DELIVERY TEAM,OTHER CONTRACTORS,2103831601,3000001625
27.02.2024,Housing,LONDON COUNCILS,"9,215.00",RAPID REHOUSING,DATA COMMUNICATIONS,5902624081,11237079
29.02.2024,Corporate,ST JOSEPHS CATHOLIC INFANTS SCHOOL,"9,208.21",EDUCATION VAT INPUTS,VAT CONTROL ACCOUNT,2103832257,5001000018
12.02.2024,Children and Adults,CHOICE CARE GROUP,"9,200.08",LD LTS 18-64,RESIDENTIAL CARE,2103823031,1572506
12.02.2024,Children and Adults,LONDON CYRENIANS HOUSING LTD,"9,196.40",LD LTS 18-64,SUPPORTED LIVING,2103823264,1000078600
12.02.2024,Children and Adults,CHOICE CARE GROUP,"9,181.28",LD LTS 18-64,RESIDENTIAL CARE,2103822439,1572506
10.02.2024,Housing,VIGILANT SECURITY SERVICES UK,"9,176.00",MANOR PLACE HOSTEL,SECURITY SERVICES,5902621561,1000090073
13.02.2024,Housing,SOUTH EAST BUILDING CONTRACTORS LTD,"9,172.14",CAPITAL PS (HOUSING GF),CAPITAL GRANTS,5902622042,1000049893
12.02.2024,Children and Adults,OLIVER GOLDSMITH PRIMARY SCHOOL,"9,171.00",NURSERY ED GRANT 3 AND 4 YR OLDS,EARLY YEARS - 3 AND 4 YEAR OLDS,5902621778,5001000051
16.02.2024,Children and Adults,ALFRED SALTER PRIMARY SCHOOL,"9,167.00",LBS MAINSTREAM,HIGH NEEDS - TOP UP FUNDING,5902622618,5001000005
12.02.2024,Children and Adults,ST JOSEPHS CATHOLIC PRIMARY SCHOOL,"9,164.00",NURSERY ED GRANT 3 AND 4 YR OLDS,EARLY YEARS - 3 AND 4 YEAR OLDS,5902621852,5001000078
02.02.2024,Environment Neighbourhoods and Growth,CRYSTAL PALACE COMM DEV TRUST,"9,150.75",GRANTS COMMISSIONING,GRANTS,5902620486,1000054200
14.02.2024,Housing,LODGISTICS ESTATES,"9,143.40",PSL PLACEMENTS,EXTERNAL AGENCIES AND BODIES,5902622234,1000080324
09.02.2024,Children and Adults,REDACTED PERSONAL DATA,"9,142.28",LD LTS 18-64 AAD,PAYMENTS TO CLIENTS (DIRECT PAYMENTS),2103821186,1000080806
12.02.2024,Children and Adults,COUNTRY COURT CARE HOMES 2 LTD,"9,137.14",PHY LTS 65+,NURSING PLACEMENTS FEES,2103822933,1000080172
29.02.2024,Housing,ANTHONY GOLD SOLICITORS,"9,135.95",TA HOSTELS,PAYMENTS FOR LEGAL SERVICES,2103832113,1000050198
29.02.2024,Corporate,IVYDALE PRIMARY SCHOOL,"9,134.49",EDUCATION VAT INPUTS,VAT CONTROL ACCOUNT,2103832300,5001000038
29.02.2024,Governance and Assurance,WORKING ON WELLBEING LTD,"9,134.36",OPTIMA HEALTH,MEDICAL / HEALTH & SAFETY SERVICES,5902624735,1000077251
17.02.2024,Housing,BAILY  GARNER LLP,"9,130.00",CAPITAL PS (HRA),CONSTRUCTION FEES - EMPLOYERS AGENT,5902621537,1000663
12.02.2024,Children and Adults,LEONARD CHESHIRE (CHIPSTEAD LAKE),"9,126.12",PHY LTS 18-64,RESIDENTIAL CARE,2103822705,1000049764
07.02.2024,Finance,HIAM ALI LTD,"9,126.10",CORONER'S,PROFESSIONAL FEES,5902621158,1000084044
08.02.2024,Finance,T BROWN GROUP  LTD,"9,125.45",CAPITAL PS (STRAT SERV),ICT ACQUISITION,2103820067,3000000310
13.02.2024,Children and Adults,ORCHARD HILL COLLEGE ACADEMY TRUST,"9,100.00",SPECIALIST POST-16,STATEMENTED FEES,2103826555,1000081716
13.02.2024,Children and Adults,ORCHARD HILL COLLEGE ACADEMY TRUST,"9,100.00",SPECIALIST POST-16,STATEMENTED FEES,2103826556,1000081716
29.02.2024,Children and Adults,WALWORTH ACADEMY,"9,100.00",VIRTUAL SCHOOL PP,SCHOOLS CAPITATION,2103833720,1000062868
12.02.2024,Children and Adults,THE AVENUES TRUST,"9,091.48",LD LTS 18-64,RESIDENTIAL CARE,2103822891,1981708
15.02.2024,Children and Adults,CEDAR HOUSE DAY NURSERY,"9,090.30",NURSERY ED GRANT 3 AND 4 YR OLDS,GRANTS,2103827296,11298694
12.02.2024,Children and Adults,CHOICE CARE GROUP,"9,089.08",LD LTS 18-64,RESIDENTIAL CARE,2103822387,1572506
12.02.2024,Children and Adults,CHOICE SUPPORT,"9,079.36",LD LTS 65+,SUPPORTED LIVING,2103822725,1104183
09.02.2024,Children and Adults,REDACTED PERSONAL DATA,"9,079.20",PHB - SEL ICB,RECOVERABLE COSTS INCL. HEALTH,2103821987,1000044274
12.02.2024,Children and Adults,LUU-BRIDGETS HEALTHCARE LIMITED,"9,072.00",MEM LTS 65+,OTHER PAYMENTS FOR CLIENTS,2103822412,1000090695
16.02.2024,Children and Adults,ROBERT BROWNING PRIMARY SCHOOL,"9,059.00",LBS MAINSTREAM,HIGH NEEDS - TOP UP FUNDING,5902622735,5001000057
12.02.2024,Children and Adults,DRUMBEAT DOWNHAM SCHOOL,"9,025.00",OTHER LA SPECIAL,STATEMENTED FEES,2103823507,1000072258
29.02.2024,Environment Neighbourhoods and Growth,THE DEXTROUS WEB LTD,"9,025.00",CAPITAL PS (LEISURE),"PLANT, MACHINERY & EQUIPMENT ACQUISITION",5902624616,1000083020
28.02.2024,Housing,SANDERSONS BUILDING SERVICES LTD,"9,007.38",MAJOR REPAIRS,BUILDING R&M,2103831482,3000002065
23.02.2024,Finance,VIRGIN MEDIA,"9,000.72",IT MANAGEMENT,COMMS & COMPUTING CONTRACT CHARGES,5902623774,1000026457
15.02.2024,Environment Neighbourhoods and Growth,REDACTED PERSONAL DATA,"9,000.00",FOOD SAFETY,LEGAL FEES & COURT COSTS,2103828085,1000068997
12.02.2024,Children and Adults,KEYWORTH PRIMARY SCHOOL,"9,000.00",LBS MAINSTREAM,HIGH NEEDS - TOP UP FUNDING,5902621765,5001000041
13.02.2024,Housing,HUNTER & PARTNERS LTD,"9,000.00",CAPITAL PS (HRA),CONSTRUCTION FEES - ARCHITECT,5902622029,1000055088
13.02.2024,Housing,HUNTER & PARTNERS LTD,"9,000.00",CAPITAL PS (HRA),CONSTRUCTION FEES - ARCHITECT,5902622034,1000055088
16.02.2024,Finance,WEB LABS LTD,"9,000.00",CAPITAL PS (STRAT SERV),ICT ACQUISITION,5902622597,1000039819
12.02.2024,Children and Adults,FIR TREE LODGE (SEE ABILITY),"8,995.40",LD LTS 18-64,RESIDENTIAL CARE,2103823157,1000052257
12.02.2024,Children and Adults,SAFFRONLAND HOMES (MINEHEAD),"8,979.36",LD LTS 65+,RESIDENTIAL CARE,2103822961,1000072152
12.02.2024,Children and Adults,SAFFRONLAND HOMES (HESTIA),"8,978.92",LD LTS 18-64,RESIDENTIAL CARE,2103822419,1000021616
12.02.2024,Children and Adults,SAFFRONLAND HOMES (HESTIA),"8,978.92",LD LTS 18-64,RESIDENTIAL CARE,2103822597,1000021616
12.02.2024,Children and Adults,FINBOND LIMITED,"8,957.14",PHY LTS 65+,RESIDENTIAL CARE,2103823139,1000090670
29.02.2024,Corporate,ST JOSEPHS CATHOLIC SCHOOL,"8,953.73",EDUCATION VAT INPUTS,VAT CONTROL ACCOUNT,2103832256,5001000076
10.02.2024,Finance,EXPERIAN LTD,"8,952.32",INCOME MANAGEMENT,SOFTWARE,5902620722,1000026339
02.02.2024,Children and Adults,ROYAL BOROUGH OF KENSINGTON & CHELSEA,"8,937.30",POST 16,SOFTWARE,5902620245,1000033864
23.02.2024,Environment Neighbourhoods and Growth,CYCLEHOOP LTD,"8,933.33",CAPITAL PS (LEISURE),CONSTRUCTION,5902623931,1000057894
12.02.2024,Children and Adults,CARETECH COMMUNITY SERVICES LTD,"8,927.16",LD LTS 18-64,RESIDENTIAL CARE,2103822659,1000066698
29.02.2024,Corporate,CRAWFORD PRIMARY SCHOOL,"8,922.37",EDUCATION VAT INPUTS,VAT CONTROL ACCOUNT,2103832234,5001000024
08.02.2024,Housing,SITTARA LTD,"8,910.00",TA PLACEMENTS,EXTERNAL AGENCIES AND BODIES,5902621460,1000080857
12.02.2024,Children and Adults,SAFFRONLAND HOMES (HESTIA),"8,906.00",LD LTS 18-64,RESIDENTIAL CARE,2103822716,1000021616
12.02.2024,Children and Adults,DIAGRAMA HEALTH CARE,"8,859.44",LD LTS 18-64,RESIDENTIAL CARE,2103823090,1000075492
22.02.2024,Environment Neighbourhoods and Growth,DIRECT SERVICES SOLUTIONS LTD,"8,840.00",PUBLIC LIGHTING,OTHER CONTRACTORS,2103829332,3000002277
29.02.2024,Children and Adults,BETHLEM & MAUDSLEY HOSPITAL SCHOOL,"8,832.00",COVID-19 SCHOOLS GRANTS,SCHOOLS CAPITATION,2103831949,5001000010
29.02.2024,Children and Adults,THE LONDON CITY CARE AND SUPPORT,"8,829.00",SEMI-IND LAC 16-17,EXTERNAL AGENCIES AND BODIES,2103833143,1000090438
15.02.2024,Children and Adults,MARJORIE MCCLURE SCHOOL,"8,826.00",OTHER LA SPECIAL,STATEMENTED FEES,2103827267,1000049215
03.02.2024,Environment Neighbourhoods and Growth,FAITHFUL & GOULD,"8,826.00",CAPITAL PS (REGEN),CONSTRUCTION FEES,5902620185,1000061390
12.02.2024,Children and Adults,RIGHT SUPPORT MANAGEMENT LTD,"8,825.84",LD LTS 18-64,SUPPORTED LIVING,2103822729,1000070289
12.02.2024,Children and Adults,ASHINGHAM HOUSE LIMITED,"8,819.16",LD LTS 18-64,RESIDENTIAL CARE,2103823146,1000016504
15.02.2024,Environment Neighbourhoods and Growth,LEX AUTOLEASE,"8,818.08",COMMERCIAL VEH CTRL A/C,HIRED VEHICLES,5902622382,1000069462
10.02.2024,Finance,BETTER BANKSIDE,"8,810.96",BETTER BANKSIDE,EXTERNAL AGENCIES AND BODIES,5902621222,1000036227
01.02.2024,Environment Neighbourhoods and Growth,KENT COUNTY COUNCIL - LASER,"8,809.13",JOHN HARVARD LIBRARY,ELECTRICITY,5902619432,1000012926
12.02.2024,Children and Adults,BEECHCROFT SUPPORT LIMITED,"8,806.72",MH LTS 18-64,SUPPORTED LIVING,2103822672,1000085412
09.02.2024,Children and Adults,ESTHER SWIFT LIMITED,"8,800.00",SEMI-IND CARELEAVERS,EXTERNAL AGENCIES AND BODIES,2103820788,1000089226
12.02.2024,Children and Adults,BRITISH HOME & HOSPITAL FOR INCURABLES,"8,789.16",PHY LTS 65+,NURSING PLACEMENTS FEES,2103822321,1001606
29.02.2024,Children and Adults,LITTLE RABBIT DAY NURSERY,"8,785.20",SCHOOLS SUPPLEMENTARY GRANT,GRANTS,2103833976,1000084320
16.02.2024,Children and Adults,ST JAMES CE PRIMARY SCHOOL,"8,774.00",LBS MAINSTREAM,HIGH NEEDS - TOP UP FUNDING,5902622768,5001000070
12.02.2024,Children and Adults,PUDDINGSTONE GRANGE CARE HOME,"8,759.54",PHY LTS 65+,RESIDENTIAL CARE,2103822393,1000080394
29.02.2024,Corporate,ROBERT BROWNING PRIMARY SCHOOL,"8,753.39",EDUCATION VAT INPUTS,VAT CONTROL ACCOUNT,2103832226,5001000057
13.02.2024,Children and Adults,CARBONE CLINIC UK LTD,"8,752.50",AP & HOSPITAL SCHLS,STATEMENTED FEES,2103826338,1000080937
12.02.2024,Children and Adults,BROADHAM CARE LIMITED,"8,752.16",LD LTS 18-64,RESIDENTIAL CARE,2103822509,1000057411
23.02.2024,Children and Adults,ANSPEAR LTD,"8,750.00",VIRTUAL SCHOOL PP,SOFTWARE,5902623159,1000048910
12.02.2024,Children and Adults,AUTISM PARTNERSHIP LONDON LIMITED,"8,745.00",AP & HOSPITAL SCHLS,STATEMENTED FEES,2103822117,1000089499
21.02.2024,Children and Adults,EVERYONE HEALTH LTD,"8,728.33",HEALTH INTERVENTIONS,EXTERNAL AGENCIES AND BODIES,5902623419,1000084159
10.02.2024,Finance,FAMILY FUND TRADING LTD,"8,694.00",SESS,OTHER PAYMENTS FOR CLIENTS,5902621090,1000071092
12.02.2024,Children and Adults,RYE OAK PRIMARY SCHOOL,"8,694.00",LBS RB / SEN UNIT,HIGH NEEDS - BASE FUNDING,5902621801,5001000059
12.02.2024,Children and Adults,HIGH VIEW CARE SERVICES LTD,"8,682.80",PHY LTS 18-64,RESIDENTIAL CARE,2103822610,1000053562
12.02.2024,Children and Adults,ALBION PRIMARY SCHOOL,"8,667.00",LBS MAINSTREAM,HIGH NEEDS - TOP UP FUNDING,5902621669,5001000000
12.02.2024,Children and Adults,ST FRANCIS'S RC PRIMARY SCHOOL,"8,667.00",LBS MAINSTREAM,HIGH NEEDS - TOP UP FUNDING,5902621822,5001000067
16.02.2024,Children and Adults,SOUTHWARK PARK PRIMARY SCHOOL,"8,667.00",LBS MAINSTREAM,HIGH NEEDS - TOP UP FUNDING,5902622751,5001000062
12.02.2024,Children and Adults,BRITISH HOME & HOSPITAL FOR INCURABLES,"8,664.00",PHY LTS 18-64,NURSING PLACEMENTS FEES,2103823126,1001606
29.02.2024,Children and Adults,ST JAMES CE PRIMARY SCHOOL,"8,663.75",COVID-19 SCHOOLS GRANTS,SCHOOLS CAPITATION,2103831920,5001000070
12.02.2024,Children and Adults,BRANDON TRUST,"8,647.00",LD LTS 18-64,SUPPORTED LIVING,2103822877,1000042417
23.02.2024,Corporate,ABERDEEN ASSET MANAGERS LTD,"8,632.96",CASH MANAGERS' COSTS,PROFESSIONAL FEES,5902622570,1000020647
12.02.2024,Children and Adults,NCYPE,"8,620.00",PHY LTS 18-64,RESIDENTIAL CARE,2103822938,1264546
29.02.2024,Children and Adults,KNIGHTSBRIDGE FURNITURE PRODUCTIONS,"8,617.00",CAPITAL PS (SOC SERV),CONSTRUCTION MAIN CONTRACT,5902624899,1000066747
12.02.2024,Children and Adults,SAFFRONLAND HOMES (HESTIA),"8,612.20",LD LTS 18-64,RESIDENTIAL CARE,2103822955,1000021616
12.02.2024,Children and Adults,MICHAEL FARADAY PRIMARY SCHOOL,"8,583.00",LBS MAINSTREAM,HIGH NEEDS - TOP UP FUNDING,5902621776,5001000048
08.02.2024,Housing,ARMINA LTD,"8,571.31",DISREPAIR,BUILDING R&M,2103820068,3000002121
11.02.2024,Housing,CAPITAL SERVICES LONDON LTD,"8,555.00",COMMERCIAL (QS),PROFESSIONAL FEES,5902620892,1000082548
16.02.2024,Environment Neighbourhoods and Growth,PROJECT CENTRE LTD,"8,550.00",TRANSPORT PROJECTS,OTHER CONTRACTORS,5902621417,1000072621
07.02.2024,Children and Adults,JOHN KEATS PRIMARY SCHOOL,"8,535.74",AC & FREE - MSTREAM,STATEMENTED FEES,2103819957,1000082645
07.02.2024,Children and Adults,JOHN KEATS PRIMARY SCHOOL,"8,535.74",AC & FREE - MSTREAM,STATEMENTED FEES,2103819958,1000082645
08.02.2024,Children and Adults,ST PAULS C OF E PRIMARY SCHOOL,"8,535.74",AC & FREE - MSTREAM,STATEMENTED FEES,2103820403,1000082314
12.02.2024,Children and Adults,KINGSDALE FOUNDATION SCHOOL,"8,535.74",AC & FREE - MSTREAM,STATEMENTED FEES,2103823573,1000065405
12.02.2024,Children and Adults,KINGSDALE FOUNDATION SCHOOL,"8,535.74",AC & FREE - MSTREAM,STATEMENTED FEES,2103823582,1000065405
27.02.2024,Housing,DACS LTD,"8,535.50",CAPITAL PS (HOUSING GF),CAPITAL GRANTS,5902624100,1000079747
07.02.2024,Finance,HIAM ALI LTD,"8,535.10",CORONER'S,PROFESSIONAL FEES,5902621156,1000084044
08.02.2024,Children and Adults,FOREST HILL SCHOOL,"8,531.00",OTHER LA MAINSTREAM,STATEMENTED FEES,2103820402,1000078512
26.02.2024,Environment Neighbourhoods and Growth,ASD LIGHTING PLC,"8,528.52",PUBLIC LIGHTING,MATERIALS,5902623962,1000079671
26.02.2024,Children and Adults,ATEGI LTD,"8,527.56",LD LTS 18-64,SUPPORTED LIVING,2103830003,1000081382
16.02.2024,Children and Adults,ALFRED SALTER PRIMARY SCHOOL,"8,517.00",NURSERY ED GRANT 3 AND 4 YR OLDS,EARLY YEARS - 3 AND 4 YEAR OLDS,5902622615,5001000005
23.02.2024,Environment Neighbourhoods and Growth,CONSTELLIA PUBLIC LIMITED,"8,510.18",DULWICH LEISURE CENTRE,PREMISES CLEANING,5902623251,1000088137
12.02.2024,Children and Adults,BOUGHTON GREEN ROAD LIMITED,"8,505.00",PHY LTS 18-64,NURSING PLACEMENTS FEES,2103822829,1000089115
06.02.2024,Environment Neighbourhoods and Growth,DARTFORD METALCRAFTS,"8,500.00",ENGINEERING CRAFTS,MATERIALS,5902620960,1000047726
16.02.2024,Children and Adults,BESSEMER GRANGE PRIMARY SCHOOL,"8,500.00",LBS MAINSTREAM,HIGH NEEDS - TOP UP FUNDING,5902622628,5001000009
22.02.2024,Environment Neighbourhoods and Growth,SOUTH LONDON GALLERY,"8,500.00",ARTS GRANTS,GRANTS,5902623516,11011694
12.02.2024,Children and Adults,AUTISM PARTNERSHIP LONDON LIMITED,"8,497.50",AP & HOSPITAL SCHLS,STATEMENTED FEES,2103822118,1000089499
12.02.2024,Children and Adults,AUTISM PARTNERSHIP LONDON LIMITED,"8,497.50",AP & HOSPITAL SCHLS,STATEMENTED FEES,2103822119,1000089499
12.02.2024,Children and Adults,AUTISM PARTNERSHIP LONDON LIMITED,"8,497.50",AP & HOSPITAL SCHLS,STATEMENTED FEES,2103822120,1000089499
12.02.2024,Children and Adults,AUTISM PARTNERSHIP LONDON LIMITED,"8,497.50",AP & HOSPITAL SCHLS,STATEMENTED FEES,2103822121,1000089499
12.02.2024,Children and Adults,AUTISM PARTNERSHIP LONDON LIMITED,"8,497.50",AP & HOSPITAL SCHLS,STATEMENTED FEES,2103822122,1000089499
12.02.2024,Children and Adults,AUTISM PARTNERSHIP LONDON LIMITED,"8,497.50",AP & HOSPITAL SCHLS,STATEMENTED FEES,2103822123,1000089499
12.02.2024,Children and Adults,AUTISM PARTNERSHIP LONDON LIMITED,"8,497.50",AP & HOSPITAL SCHLS,STATEMENTED FEES,2103822124,1000089499
12.02.2024,Children and Adults,AUTISM PARTNERSHIP LONDON LIMITED,"8,497.50",AP & HOSPITAL SCHLS,STATEMENTED FEES,2103822125,1000089499
12.02.2024,Children and Adults,L & Q LIVING,"8,485.00",LD LTS 18-64,SUPPORTED LIVING,2103823238,1000057917
22.02.2024,Finance,SHARPE PRITCHARD LLP,"8,472.84",CANADA WATER,LEGAL FEES & COURT COSTS,5902623685,1790085
16.02.2024,Children and Adults,JOHN RUSKIN PRIMARY SCHOOL,"8,468.00",LBS RB / SEN UNIT,HIGH NEEDS - BASE FUNDING,5902622698,5001000040
16.02.2024,Housing,VIGILANT SECURITY SERVICES UK,"8,467.20",MANOR PLACE HOSTEL,SECURITY SERVICES,5902622545,1000090073
29.02.2024,Corporate,CHARLOTTE  SHARMAN PRIMARY SCHOOL,"8,460.21",EDUCATION VAT INPUTS,VAT CONTROL ACCOUNT,2103832309,5001000016
11.02.2024,Children and Adults,BRESLIN CONSTRUCTION LTD,"8,450.00",PROPERTY MANAGEMENT,BUILDING R&M,5902621514,1000078031
12.02.2024,Children and Adults,COUNTRY COURT CARE HOMES 2 LTD,"8,448.95",PHY LTS 65+,NURSING PLACEMENTS FEES,2103822453,1000080172
12.02.2024,Children and Adults,GARLAND LODGE LTD,"8,444.80",LD LTS 18-64,SUPPORTED LIVING,2103822545,1000084016
13.02.2024,Housing,NPOWER LTD,"8,434.20",RESIDENT SERVICES BUSINESS SUPPORT,ELECTRICITY,2103824921,1000078994
12.02.2024,Children and Adults,OPTIMA CARE (SHINE) LONDON LTD,"8,433.00",LD LTS 18-64,SUPPORTED LIVING,2103822540,1000079614
29.02.2024,Corporate,ST JAMES CE PRIMARY SCHOOL,"8,393.13",EDUCATION VAT INPUTS,VAT CONTROL ACCOUNT,2103832307,5001000070
12.02.2024,Children and Adults,SAFFRONLAND HOMES (MINEHEAD),"8,377.68",LD LTS 18-64,RESIDENTIAL CARE,2103822507,1000072152
28.02.2024,Finance,INVUSE LIMITED,"8,370.00",CAPITAL PS (STRAT SERV),ICT ACQUISITION,5902624445,1000087372
28.02.2024,Finance,INVUSE LIMITED,"8,370.00",CAPITAL PS (STRAT SERV),ICT ACQUISITION,5902624451,1000087372
12.02.2024,Children and Adults,GRANGE PRIMARY SCHOOL,"8,364.00",NURSERY ED GRANT 3 AND 4 YR OLDS,EARLY YEARS - 3 AND 4 YEAR OLDS,5902621726,5001000029
12.02.2024,Children and Adults,SAFFRONLAND HOMES (MINEHEAD),"8,352.12",LD LTS 18-64,RESIDENTIAL CARE,2103822531,1000072152
12.02.2024,Children and Adults,P.A.K.S,"8,348.00",PHY LTS 18-64,RESIDENTIAL CARE,2103822932,1000078011
13.02.2024,Children and Adults,JOHN KEATS PRIMARY SCHOOL,"8,341.86",FREE HEALTHY SCHOOL MEALS,EARLY YEARS - 3 AND 4 YEAR OLDS,2103826381,1000082645
02.02.2024,Children and Adults,MIME CONSULTING LTD,"8,333.37",ALC MANAGEMENT AND SUPPORT,PROFESSIONAL FEES,5902620404,1000057079
02.02.2024,Children and Adults,MIME CONSULTING LTD,"8,333.33",ALC MANAGEMENT AND SUPPORT,PROFESSIONAL FEES,5902620406,1000057079
13.02.2024,Children and Adults,MIME CONSULTING LTD,"8,333.33",ALC MANAGEMENT AND SUPPORT,PROFESSIONAL FEES,5902622107,1000057079
13.02.2024,Children and Adults,MIME CONSULTING LTD,"8,333.33",ALC MANAGEMENT AND SUPPORT,PROFESSIONAL FEES,5902622109,1000057079
12.02.2024,Children and Adults,KARE HEALTHCARE LTD,"8,320.00",PHY LTS 65+,SUPPORTED LIVING,2103822979,1000089212
02.02.2024,Finance,SWALLOWTAIL PRINT LIMITED,"8,316.06",PECKHAM THI,MARKETING & PUBLICITY SERVICES,5902620512,1000090638
16.02.2024,Children and Adults,SOUTHWARK PARK PRIMARY SCHOOL,"8,305.00",NURSERY ED GRANT 3 AND 4 YR OLDS,EARLY YEARS - 3 AND 4 YEAR OLDS,5902622748,5001000062
07.02.2024,Housing,CROWN HOUSING LTD,"8,300.00",TA PLACEMENTS,EXTERNAL AGENCIES AND BODIES,5902621214,1000075070
28.02.2024,Children and Adults,RAYMOND MEDICAL LIMITED,"8,300.00",COVID-19 CONTROL OUTBREAK MGMNT.FUND,EXTERNAL AGENCIES AND BODIES,5902624503,1000089204
15.02.2024,Children and Adults,VICTORIOUS VENTURA LIMITED,"8,292.30",NURSERY ED GRANT 3 AND 4 YR OLDS,GRANTS,2103827379,1000087823
02.02.2024,Housing,CALFORD SEADEN LLP,"8,280.55",CAPITAL PS (HRA),CONSTRUCTION FEES  - EXTERNAL,5902619390,1061592
12.02.2024,Children and Adults,ASHMEAD HEALTHCARE LTD,"8,278.24",LD LTS 18-64,RESIDENTIAL CARE,2103822719,1000077917
16.02.2024,Housing,MX ESTATES LTD,"8,260.00",PSL PLACEMENTS,EXTERNAL AGENCIES AND BODIES,5902622550,1000083639
29.02.2024,Housing,AJMADAPTIONS LTD,"8,250.00",CAPITAL PS (HRA),UTILITIES INSTALLATION,2103832717,3000002056
12.02.2024,Children and Adults,GLENPAT HOMES,"8,239.12",LD LTS 18-64,RESIDENTIAL CARE,2103822701,1000059312
10.02.2024,Children and Adults,FLEET TUTORS,"8,226.50",VIRTUAL SCHOOL PP,EXTERNAL AGENCIES AND BODIES,5902621087,1000044820
12.02.2024,Children and Adults,ALWAYS INCLUSIVE LTD,"8,199.36",LD LTS 18-64,SUPPORTED LIVING,2103822676,1000088268
28.02.2024,Housing,WALWORTH GARDEN LTD,"8,198.42",GARDEN MAINTENANCE PROJECT,GROUNDS MAINTENANCE,5902624463,1000042204
29.02.2024,Housing,GC CONSTRUCT LTD,"8,196.10",DISREPAIR,BUILDING R&M,2103829749,3000002106
12.02.2024,Children and Adults,GREEN CARE AND SUPPORT LIMITED,"8,195.20",LD LTS 18-64,SUPPORTED LIVING,2103822552,1000087661
29.02.2024,Children and Adults,LITTLE ME CANADA WATER LTD,"8,183.00",SCHOOLS SUPPLEMENTARY GRANT,GRANTS,2103833974,1000083348
12.02.2024,Children and Adults,CHOICE SUPPORT,"8,168.84",LD LTS 18-64,SUPPORTED LIVING,2103822781,1104183
12.02.2024,Children and Adults,BEECHCROFT SUPPORT LIMITED,"8,161.36",LD LTS 18-64,SUPPORTED LIVING,2103822674,1000085412
12.02.2024,Children and Adults,GLEN CARE GROUP,"8,141.12",LD LTS 18-64,RESIDENTIAL CARE,2103823180,1000050223
12.02.2024,Children and Adults,CHOICE CARE GROUP,"8,118.80",LD LTS 18-64,RESIDENTIAL CARE,2103822502,1572506
12.02.2024,Children and Adults,ENGLISH MARTYRS RC PRIMARY SCHOOL,"8,114.00",NURSERY ED GRANT 3 AND 4 YR OLDS,EARLY YEARS - 3 AND 4 YEAR OLDS,5902621730,5001000030
08.02.2024,Governance and Assurance,THE FLAVOUR KITCHEN CATERING,"8,100.00",SUPPORT COSTS,CATERING MATERIALS & SUPPLIES,5902621379,1000090776
11.02.2024,Housing,CITYGLEN LTD,"8,091.80",NIGHTLY TA (NSC),EXTERNAL AGENCIES AND BODIES,5902620891,1000026239
28.02.2024,Housing,THEORI HOUSING MANAGEMENT SERVICES,"8,076.74",NIGHTLY TA (NSC),EXTERNAL AGENCIES AND BODIES,5902624361,1000079264
29.02.2024,Housing,LTA DIRECT LTD,"8,075.00",NIGHTLY TA (NSC),EXTERNAL AGENCIES AND BODIES,5902624543,1000085314
12.02.2024,Children and Adults,ALWAYS INCLUSIVE LTD,"8,064.00",LD LTS 18-64,SUPPORTED LIVING,2103822370,1000088268
23.02.2024,Environment Neighbourhoods and Growth,CONSTELLIA PUBLIC LIMITED,"8,060.48",CAMBERWELL LEISURE CENTRE,PREMISES CLEANING,5902623222,1000088137
13.02.2024,Environment Neighbourhoods and Growth,RS REAL ESTATE LTD,"8,060.00",NO RECOURSE TO PUBLIC FUNDS,ACCOMMODATION CHARGES,5902622086,1000072485
17.02.2024,Housing,EDF ENERGY PLC,"8,051.84",MANOR PLACE HOSTEL,ELECTRICITY,5902622522,1008746
12.02.2024,Children and Adults,ST JOHNS RC PRIMARY SCHOOL,"8,047.00",NURSERY ED GRANT 3 AND 4 YR OLDS,EARLY YEARS - 3 AND 4 YEAR OLDS,5902621844,5001000075
12.02.2024,Children and Adults,LEONARD CHESHIRE (THICKET ROAD),"8,004.84",LD LTS 18-64,RESIDENTIAL CARE,2103823053,1000049761
12.02.2024,Children and Adults,THE LONDON CARE GROUP,"8,000.00",LD LTS 18-64,SUPPORTED LIVING,2103823070,1000090111
09.02.2024,Finance,BORER DATA SYSTEMS LIMITED,"7,990.00",CAPITAL PS (STRAT SERV),ICT ACQUISITION,5902621505,1000013544
12.02.2024,Children and Adults,ACHIEVE TOGETHER SERVICES LIMITED,"7,988.00",LD LTS 18-64,RESIDENTIAL CARE,2103823106,1000089975
16.02.2024,Children and Adults,RYE OAK PRIMARY SCHOOL,"7,981.00",NURSERY ED GRANT 3 AND 4 YR OLDS,EARLY YEARS - 3 AND 4 YEAR OLDS,5902622736,5001000059
16.02.2024,Children and Adults,CAMELOT PRIMARY SCHOOL,"7,975.00",NURSERY ED GRANT 3 AND 4 YR OLDS,EARLY YEARS - 3 AND 4 YEAR OLDS,5902622639,5001000014
23.02.2024,Children and Adults,KENT COUNTY COUNCIL - LASER,"7,963.48",CENTRAL SUPPORT,GAS,5902623798,1000012926
12.02.2024,Children and Adults,HIGH VIEW CARE SERVICES LTD,"7,957.88",MEM LTS 18-64,NURSING PLACEMENTS FEES,2103822774,1000053562
29.02.2024,Children and Adults,STONEGROVE LIMITED,"7,947.42",CAPITAL PS (EDUCATION),CONSTRUCTION,2103832715,3000001525
12.02.2024,Children and Adults,REESON CARE HOMES LTD,"7,931.04",LD LTS 18-64,SUPPORTED LIVING,2103823480,1000084007
23.02.2024,Housing,MARTIN ARNOLD LTD,"7,924.46",CAPITAL PS (HRA),CONSTRUCTION FEES  - EXTERNAL,5902623916,1000076993
22.02.2024,Environment Neighbourhoods and Growth,FIELD FISHER WATERHOUSE,"7,906.50",CAMBERWELL LIBRARY,PROFESSIONAL FEES,5902623179,1000047449
06.02.2024,DSO,J KASH LTD,"7,892.82",DAMP & MOULD TEAM,OTHER CONTRACTORS,2103818857,3000002219
13.02.2024,Environment Neighbourhoods and Growth,ADAM THOMAS LANDSCAPE DESIGN LTD,"7,881.67",CAPITAL PS (LEISURE),CONST'N MAIN CONTRACT - NON CERTIFICATED,5902621979,1000080845
29.02.2024,Corporate,ST MARY MAGDALENE CE SCHOOL,"7,875.24",EDUCATION VAT INPUTS,VAT CONTROL ACCOUNT,2103832244,5001000080
15.02.2024,Children and Adults,CASA TIERRA BILINGUAL CHILDCARE LIMITED,"7,860.60",NURSERY ED GRANT 3 AND 4 YR OLDS,GRANTS,2103827294,1000087759
12.02.2024,Children and Adults,VOYAGE LTD (EVESLEIGH KENT),"7,859.88",PHY LTS 18-64,RESIDENTIAL CARE,2103822251,1000041320
29.02.2024,Corporate,SNOWSFIELDS PRIMARY SCHOOL,"7,850.90",EDUCATION VAT INPUTS,VAT CONTROL ACCOUNT,2103832227,5001000061
22.02.2024,Children and Adults,BLOOM PROCUREMENT SERVICES LTD,"7,850.00",CAPITAL PS (EDUCATION),CONSTRUCTION FEES,5902623641,1000082531
12.02.2024,Children and Adults,CHOICE SUPPORT,"7,818.80",LD LTS 18-64,SUPPORTED LIVING,2103822990,1104183
12.02.2024,Children and Adults,HC-ONE LTD (TOWER BRIDGE CARE HOME),"7,817.14",DISCHARGE TO ACCESS,NURSING PLACEMENTS FEES,2103822405,1000067670
12.02.2024,Children and Adults,DISABILITIES TRUST,"7,815.40",PHY LTS 18-64,NURSING PLACEMENTS FEES,2103823205,1000043358
12.02.2024,Children and Adults,SAFFRONLAND HOMES (MINEHEAD),"7,800.00",LD LTS 18-64,RESIDENTIAL CARE,2103822856,1000072152
12.02.2024,Children and Adults,SUNRISE REHABILITATION CENTRE,"7,789.60",LD LTS 18-64,SUPPORTED LIVING,2103823023,1000086998
29.02.2024,Children and Adults,LITTLE ACORNS DAY NURSERY,"7,784.77",SCHOOLS SUPPLEMENTARY GRANT,GRANTS,2103833967,1000015844
21.02.2024,Children and Adults,EVERYONE HEALTH LTD,"7,777.00",HEALTHY WEIGHT,EXTERNAL AGENCIES AND BODIES,5902623418,1000084159
02.02.2024,Housing,LHG THORNTON HEATH LTD,"7,775.00",NIGHTLY TA (NSC),EXTERNAL AGENCIES AND BODIES,5902620384,1000086942
08.02.2024,Children and Adults,CAMBIAN GROUP LTD,"7,764.22",NMSS/ INDEP SPECIAL,STATEMENTED FEES,2103820401,1000077659
12.02.2024,Children and Adults,VALUE IN CARE LTD,"7,761.08",LD LTS 18-64,RESIDENTIAL CARE,2103822722,1000041975
29.02.2024,Children and Adults,MICHAEL FARADAY PRIMARY SCHOOL,"7,749.89",NURSERY ED GRANT 3 AND 4 YR OLDS,EARLY YEARS - 3 AND 4 YEAR OLDS,2103832090,5001000048
29.02.2024,Children and Adults,LONDON EARLY YEARS FOUNDATION,"7,748.40",SCHOOLS SUPPLEMENTARY GRANT,GRANTS,2103833924,1000077919
02.02.2024,Environment Neighbourhoods and Growth,DOG KENNEL HILL ADVENTURE PLAYGROUND LTD,"7,740.75",GRANTS COMMISSIONING,GRANTS,5902620493,11134529
12.02.2024,Children and Adults,PLUS SERVICES,"7,721.60",LD LTS 18-64,RESIDENTIAL CARE,2103822780,1000021241
15.02.2024,Children and Adults,LITTLE ANGELS 247 LTD,"7,716.31",NURSERY ED GRANT 3 AND 4 YR OLDS,GRANTS,2103827335,1000059329
12.02.2024,Children and Adults,VOYAGE CARE (MOUNTEARL),"7,713.64",LD LTS 18-64,RESIDENTIAL CARE,2103822588,1000078173
12.02.2024,Children and Adults,BRANDON TRUST,"7,705.60",LD LTS 18-64,SUPPORTED LIVING,2103823293,1000042417
07.02.2024,Children and Adults,ELEVEN D'S LTD,"7,700.00",SEMI-IND LAC 16-17,EXTERNAL AGENCIES AND BODIES,2103819849,1000089531
12.02.2024,Children and Adults,CHOICE SUPPORT,"7,685.84",LD LTS 18-64,SUPPORTED LIVING,2103822357,1104183
20.02.2024,Suspense,TRAVIS PERKINS TRADING COMPANY LTD,"7,668.00",SUSPENSE ACCOUNT (COMPANY CODE 1000),CREDITORS -GR/IR CLEARING ACCOUNT,5902623201,1514319
12.02.2024,Children and Adults,SNOWSFIELDS PRIMARY SCHOOL,"7,667.00",LBS RB / SEN UNIT,HIGH NEEDS - BASE FUNDING,5902621807,5001000061
16.02.2024,Children and Adults,ST JOSEPHS CATHOLIC SCHOOL,"7,667.00",LBS MAINSTREAM,HIGH NEEDS - TOP UP FUNDING,5902622786,5001000076
12.02.2024,Children and Adults,ACHIEVE TOGETHER SERVICES LIMITED,"7,666.12",LD LTS 18-64,SUPPORTED LIVING,2103822567,1000089975
12.02.2024,Children and Adults,ACHIEVE TOGETHER SERVICES LIMITED,"7,662.68",LD LTS 18-64,RESIDENTIAL CARE,2103822305,1000089975
29.02.2024,Children and Adults,CAVENDISH SCHOOL,"7,652.86",NMSS/ INDEP SPECIAL,STATEMENTED FEES,2103831569,1000024278
09.02.2024,Children and Adults,PEOPLE PLUS GROUP LTD (INDEPENDENT LIVING SERVICES),"7,641.46",LD LTS 18-64,PAYMENTS TO CLIENTS (DIRECT PAYMENTS),2103821210,1000061886
28.02.2024,Children and Adults,OPENMINDS SOCIAL CARE,"7,639.29",SEMI-IND LAC 16-17,EXTERNAL AGENCIES AND BODIES,2103831214,1000085800
05.02.2024,Environment Neighbourhoods and Growth,CLYDE & CO,"7,635.00",FACILITIES MANAGEMENT,PAYMENTS FOR LEGAL SERVICES,5902620747,1000067838
26.02.2024,Environment Neighbourhoods and Growth,GOLDSTONE ESTATES LTD,"7,631.50",NO RECOURSE TO PUBLIC FUNDS,ACCOMMODATION CHARGES,5902624060,1000076548
12.02.2024,Children and Adults,RESIDENTIAL CARE SERVICES LTD,"7,628.20",LD LTS 18-64,SUPPORTED LIVING,2103823266,1000082629
08.02.2024,Children and Adults,TEACHER ACTIVE LIMITED,"7,622.10",AP & HOSPITAL SCHLS,STATEMENTED FEES,2103820396,1000088338
20.02.2024,DSO,RTS WASTE MANAGEMENT LTD,"7,593.57",VOIDS OVERHEADS,WASTE DISPOSAL CONTRACT,5902623195,1000061248
12.02.2024,Children and Adults,HEBER PRIMARY SCHOOL,"7,583.00",LBS MAINSTREAM,HIGH NEEDS - TOP UP FUNDING,5902621746,5001000035
15.02.2024,Children and Adults,PLAYSHACK PLAYGROUP,"7,580.41",NURSERY ED GRANT 3 AND 4 YR OLDS,GRANTS,2103827363,1608859
07.02.2024,Environment Neighbourhoods and Growth,YELLOW LINE PARKING LTD,"7,576.25",PROJECT SUPPORT,SOFTWARE,5902621205,1000083708
12.02.2024,Children and Adults,BRANDON TRUST,"7,575.40",LD LTS 18-64,SUPPORTED LIVING,2103822994,1000042417
12.02.2024,Children and Adults,BRANDON TRUST,"7,575.40",LD LTS 18-64,SUPPORTED LIVING,2103823033,1000042417
12.02.2024,Children and Adults,BRANDON TRUST,"7,575.40",LD LTS 18-64,SUPPORTED LIVING,2103823101,1000042417
12.02.2024,Children and Adults,BRANDON TRUST,"7,575.40",LD LTS 18-64,SUPPORTED LIVING,2103823259,1000042417
29.02.2024,Corporate,ILDERTON PRIMARY SCHOOL,"7,572.98",EDUCATION VAT INPUTS,VAT CONTROL ACCOUNT,2103832290,5001000037
